{"text_format":"1","workbook":"xlsx","n_sheets":5,"sheets":["تسجيل_الموظفين","التغذية","تنسيق التعليم الإعدادي","مكتب المدير العام","شئون الطلبة والامتحانات"],"not_rendered":{"charts":0,"images":0,"macros":1,"external_links":1,"defined_names":16,"comments":1,"pivot_tables":0},"unopened":[],"bounds":{"document_bytes":16777216,"sheet_cells":100000,"rows_first":2000,"rows_last":500,"rows_between":2000,"halvings":0,"cell_chars":16384,"cell_head_chars":4096},"cells_cut":0,"cells_raw":0,"read":"whole","date_system":"1900"}

{"sheet":"تسجيل_الموظفين","index":0,"n_rows":1101,"n_cols":57,"rows_kept":1101,"cut":false,"hidden":false,"merged":[[3,39,3,43],[4,6,4,8],[2,21,2,23],[4,21,4,23]]}
["إدارة ……………………. التعليميـة"]
["قسم شئون الطلبة والامتحانات"]
["بيانات العاملين بقسم شئون الطلبة والامتحانات",null,null,null,null,null,null,null,null,null,null,null,null,null,null,null,null,null,null,null,null,{"$f":"TODAY()","v":"2020-12-25"}]
[null,null,null,null,null,null,"\" يــــوم \"","\" شهـــر \"","\" سنــة \"",null,{"$f":"60*365.25","v":21915},null,null,null,null,null,null,null,null,null,null," \" يوم \"  "," \" شهر \"  "," \" سنة \"  ",null,null,null,null,null,null,null,null,null,null,null,null,null,null,null,"مؤهلات أعلى .. "]
["مسلسل","جهــــــــــة العمـــــــــــــل","المرحلــــة المقيد عليهــــــا","كـــــــــود المعلــــــــــــم","الرقـــــــــــم القــــــومـــي","الاســــــــــــــــــــــــــــــم","تاريـــــــخ الميــــــلاد",null,null,"تاريـــــــخ الميـــــــــــــلاد","تاريـــــــخ المعـــــــــــــاش","محافظــــــة الميـــــــــــلاد","النـــــــــــــــــــــــــــــــوع","الديــــــــــــــــــــــــانـــة","الجنسيـــــــــة","الحــــالـــة الاجتمــــاعية","محافظـــــة العنـــــــــــوان","العنـــــــــــــــــــــــــــــوان","رقـــــــم الهـــــــــــــــــاتف","المجمـــــــوعة النوعيــــــة","تاريـــــــــخ التعــــــــــيين","سنــــــوات الخبـــــــرة",null,null,"المـوقف مـــن العمـــــــــــل","تاريخ استـــلام العمــــــــل","الوظيفــــــة الحــــاليـــــة","رقـــــــم القــــــــــــــــــرار","تاريــــخ الوظيفـــــــــــــة","الدرجـــــــة الماليـــــــــــة","رقـــــــم القــــــــــــــــــرار","تاريـــــــــخ القــــــــــــرار","مــــــادة التــدريــــــــــس","التخصص على الكــــــادر","نــــــــوع المـــؤهــــــــــــــل","اســــــم المــــــؤهـــــــــــــل","جهـــــــــة الحصـــــــــــول ","تقديــــــر المــــؤهــــــــــل","تاريــــــــخ المـــــؤهـــــــــل","نوع المؤهل","اسم المؤهل","جهة الحصول","تاريخ الحصول","تقدير المؤهل"]
[]
["مسلسل","جهــــــــــة العمـــــــــــــل","المرحلــــة المقيد عليهــــــا","كــود المعلــــم","الرقـــــــــــم القــــــومـــي","الاســـــــــم","تاريـــــــخ الميــــــلاد\" يــــوم \"","تاريـــــــخ الميــــــلاد\" شهـــر \"","تاريـــــــخ الميــــــلاد\" سنــة \"","تاريـــــــخ الميـــــــــــــلاد","تاريـــــــخ المعـــــــــــــاش","محافظــــــة الميـــــــــــلاد","النـــــــــــــــــــــــــــــــوع","الديــــــــــــــــــــــــانـــة","الجنسيــــة","الحــــالـــة الاجتمــــاعية","محافظـــــة العنــــوان","العنـــــــــــــوان","رقـــــــم الهــــــاتف","المجمـــــــوعة النوعيــــــة","تاريـــــــــخ التعــــــــــيين","سنــــــوات الخبـــــــرة \" يوم \"  ","سنــــــوات الخبـــــــرة \" شهر \"  ","سنــــــوات الخبـــــــرة \" سنة \"  ","المـوقف مـــن العمـــــــــــل","تاريخ استـــلام العمــــــــل","الوظيفــــــة الحــــاليـــــة","رقـــــــم القــــــــــــــــــرار","تاريــــخ الوظيفـــــــــــــة","الدرجـــــــة الماليـــــــــــة","رقـــــــم القــــــــــــــــــرار","تاريـــــــــخ القــــــــــــرار","مــــــادة التــدريــــــــــس","التخصص على الكــــــادر","نــــــــوع المـــؤهــــــــــــــل","اســــــم المــــــؤهـــــــــــــل","جهـــــــــة الحصـــــــــــول ","تقديــــــر المــــؤهــــــــــل","تاريــــــــخ المـــــؤهـــــــــل","مؤهلات أعلى .. نوع المؤهل","مؤهلات أعلى .. اسم المؤهل","مؤهلات أعلى .. جهة الحصول","مؤهلات أعلى .. تاريخ الحصول","مؤهلات أعلى .. تقدير المؤهل"]
[1,"شئون الطلبة والامتحانات","ابتدائي",123456,28509181600510,"حاتم 1",{"$f":"RIGHT(LEFT(E8,7),2)","v":"18"},{"$f":"RIGHT(LEFT(E8,5),2)","v":"09"},{"$f":"IF(E8=\"\",\"\",IF(ISODD(MID(E8,1,1)),MID(E8,2,2)+2000,MID(E8,2,2)+1900))","v":1985},{"$f":"IF(E8=\"\",\"\",DATE(I8,H8,G8))","v":"1985-09-18"},{"$f":"IF(J8=\"\",\"\",$K$4+J8-1)","v":"2045-09-17"},"A",{"$f":"IF(E8=\"\",\"\",IF(ISODD(MID(E8,13,1)),\"ذكر\",\"أنثى\"))","v":"ذكر"},"مسلم","مصري","متزوج + 3",{"$f":"IF(F8=\"\",\"\",\"الغربية\")","v":"الغربية"},"طنطا - محافظة الغربية","012345678910","المجموعة النوعية لوظائف كادر المعلم","1996-12-28",{"$f":"IF(U8=\"\",\"\",DATEDIF(U8,$V$3,\"md\"))","v":27},{"$f":"IF(U8=\"\",\"\",DATEDIF(U8,$V$3,\"ym\"))","v":11},{"$f":"IF(U8=\"\",\"\",DATEDIF(U8,$V$3,\"y\"))","v":23},"منتدب داخل الوزارة",null,"معلم خبير","5109","2018-10-18","-----","ــــــــــ","ــــــــــ","اللغة العربية","معلم فصل ابتدائي","عليا","بكالوريوس تربية","جامعة طنطا","مقبول",null,"بدون","بدون","بدون","بدون","بدون"]
[2,"شئون الطلبة والامتحانات","ابتدائي",123457,28509181600510,"حاتم 2",{"$f":"RIGHT(LEFT(E9,7),2)","v":"18"},{"$f":"RIGHT(LEFT(E9,5),2)","v":"09"},{"$f":"IF(E9=\"\",\"\",IF(ISODD(MID(E9,1,1)),MID(E9,2,2)+2000,MID(E9,2,2)+1900))","v":1985},{"$f":"IF(E9=\"\",\"\",DATE(I9,H9,G9))","v":"1985-09-18"},{"$f":"IF(J9=\"\",\"\",$K$4+J9-1)","v":"2045-09-17"},"B",{"$f":"IF(E9=\"\",\"\",IF(ISODD(MID(E9,13,1)),\"ذكر\",\"أنثى\"))","v":"ذكر"},"مسلم","مصري","متزوج + 3",{"$f":"IF(F9=\"\",\"\",\"الغربية\")","v":"الغربية"},"طنطا - محافظة الغربية","012345678910","المجموعة النوعية لوظائف كادر المعلم","1997-07-03",{"$f":"IF(U9=\"\",\"\",DATEDIF(U9,$V$3,\"md\"))","v":22},{"$f":"IF(U9=\"\",\"\",DATEDIF(U9,$V$3,\"ym\"))","v":5},{"$f":"IF(U9=\"\",\"\",DATEDIF(U9,$V$3,\"y\"))","v":23},"منتدب داخل الوزارة","2002-02-07","معلم خبير","5109","2018-10-18","ــــــــــ","ــــــــــ","ــــــــــ","حاسب آلي متفرغ","معلم الحاسب الآلي","عليا","بكالوريوس تربية","جامعة طنطا","مقبول","2000-11-01","بدون","بدون","بدون","بدون","بدون"]
[3,"مكتب المدير العام","ابتدائي",123458,28509181600510,"حاتم 3",{"$f":"RIGHT(LEFT(E10,7),2)","v":"18"},{"$f":"RIGHT(LEFT(E10,5),2)","v":"09"},{"$f":"IF(E10=\"\",\"\",IF(ISODD(MID(E10,1,1)),MID(E10,2,2)+2000,MID(E10,2,2)+1900))","v":1985},{"$f":"IF(E10=\"\",\"\",DATE(I10,H10,G10))","v":"1985-09-18"},"2045-09-17","C",{"$f":"IF(E10=\"\",\"\",IF(ISODD(MID(E10,13,1)),\"ذكر\",\"أنثى\"))","v":"ذكر"},"مسلم","مصري","متزوج + 3","الغربية","طنطا - محافظة الغربية","012345678910","المجموعة النوعية لوظائف كادر المعلم","2000-03-20",5,9,20,"منتدب داخل الوزارة","2005-04-19","معلم أول أ","6210","2014-10-20","ــــــــــ","ــــــــــ","ــــــــــ","اللغة العربية والتربية الاسلامية","مدرس ابتدائي","عليا","ليسانس آداب وتربية","جامعة طنطا","جيد جدا","2002-07-01","بدون","بدون","بدون","بدون","بدون"]
[{"$f":"IF(F11=\"\",\"\",A10+1)","v":4},"شئون الطلبة والامتحانات","ثانوي عام",123459,28509181600510,"حاتم 4","18","09",1985,"1985-09-18","2045-09-17","D","ذكر","مسلم","مصري","متزوج + 3","الغربية","طنطا - محافظة الغربية","012345678910","المجموعة النوعية للوظائف المكتبية","1984-12-01",24,0,36,"منتدب داخل الوزارة","1985-03-23","رئيس وحدة","6311","2003-12-08","الأولى","6665","2014-10-01","ــــــــــ","ــــــــــ","متوسطة","ثانوية تجارية","وزارة التربية والتعليم","ـــــ","1980-05-01","بدون","بدون","بدون","بدون","بدون"]
[5,"شئون الطلبة والامتحانات","ـــــ",123460,28509181600510,"حاتم 5","18","09",1985,"1985-09-18","2045-09-17","E","ذكر","مسلم","مصري","متزوج ","الغربية","طنطا - محافظة الغربية","012345678910","المجموعة النوعية للوظائف المكتبية","1994-03-26",29,8,26,"على رأس العمل","1994-06-06","رئيس وحدة","6313","2003-12-08","الأولى","5646","2014-12-01","ــــــــــ","ــــــــــ","فوق المتوسطة","شهادة إعداد فنيين تجاريين","وزارة التعليم العالي","ـــــ","1983-09-01","بدون","بدون","بدون","بدون","بدون"]
[6,"شئون الطلبة والامتحانات","ـــــ",123461,28509181600510,"حاتم 6","18","09",1985,"1985-09-18","2045-09-17","F","ذكر","مسلم","مصري","متزوج ","الغربية","طنطا - محافظة الغربية","012345678910","المجموعة النوعية للوظائف المكتبية","1994-11-12",13,1,26,"على رأس العمل","1995-02-11","رئيس وحدة","6486","2005-11-17","الأولى","5646","2016-07-01","ــــــــــ","ــــــــــ","متوسطة","ثانوية تجارية","وزارة التربية والتعليم","ـــــ","1983-06-15","بدون","بدون","بدون","بدون","بدون"]
[7,"شئون الطلبة والامتحانات","ـــــ",123462,28509181600510,"حاتم 7","18","09",1985,"1985-09-18","2045-09-17","G","ذكر","مسلم","مصري","متزوج + 3","الغربية","طنطا - محافظة الغربية","012345678910","المجموعة النوعية للوظائف المكتبية","1989-06-30",25,5,31,"على رأس العمل","1991-06-06","رئيس وحدة","121","2004-03-14","الأولى",6665,"2014-10-01","ــــــــــ","ــــــــــ","متوسطة","ثانوية تجارية","وزارة التربية والتعليم","ـــــ","1982-01-07","بدون","بدون","بدون","بدون","بدون"]
[8,"شئون الطلبة والامتحانات","ـــــ",123463,28509181600510,"حاتم 8","18","09",1985,"1985-09-18","2045-09-17","H","ذكر","مسلم","مصري","أرمل","الغربية","طنطا - محافظة الغربية","012345678910","المجموعة النوعية للوظائف المكتبية","1994-11-12",13,1,26,"على رأس العمل","1994-12-05","رئيس وحدة","6486","2005-11-12","الأولى","5646","2016-07-01","ــــــــــ","ــــــــــ","متوسطة","ثانوية تجارية","وزارة التربية والتعليم","ـــــ","1983-07-01","بدون","بدون","بدون","بدون","بدون"]
[9,"شئون الطلبة والامتحانات","ـــــ",123464,28509181600510,"حاتم 9","18","09",1985,"1985-09-18","2045-09-17","I","ذكر","مسلم","مصري","متزوج","الغربية","طنطا - محافظة الغربية","012345678910","المجموعة النوعية للوظائف المكتبية","1994-03-26",29,8,26,"على رأس العمل","1994-04-16","رئيس وحدة","6486","2005-11-17","الأولى","5646","2016-07-01","ــــــــــ","ــــــــــ","متوسطة","ثانوية تجارية","وزارة التربية والتعليم","ـــــ","1983-06-01","بدون","بدون","بدون","بدون","بدون"]
[10,"شئون الطلبة والامتحانات","---------",123465,28509181600510,"حاتم 10",{"$f":"RIGHT(LEFT(E17,7),2)","v":"18"},{"$f":"RIGHT(LEFT(E17,5),2)","v":"09"},{"$f":"IF(E17=\"\",\"\",IF(ISODD(MID(E17,1,1)),MID(E17,2,2)+2000,MID(E17,2,2)+1900))","v":1985},{"$f":"IF(E17=\"\",\"\",DATE(I17,H17,G17))","v":"1985-09-18"},"2045-09-17","J",{"$f":"IF(E17=\"\",\"\",IF(ISODD(MID(E17,13,1)),\"ذكر\",\"أنثى\"))","v":"ذكر"},"مسلم","مصري","متزوج","الغربية","طنطا - محافظة الغربية","012345678910","المجموعة النوعية للوظائف المكتبية","2013-01-30",25,10,7,"على رأس العمل","2013-08-14","كاتب رابع - سكرتير رابع","2391","2013-07-28","الرابعة","2391","2013-01-30","------","-------","متوسطة","دبلوم صناعة ثانوي","وزارة التربية والتعليم","-----","1995-05-01","بدون","بدون","بدون","بدون","بدون"]
[11,"شئون الطلبة والامتحانات","------",123466,28509181600510,"حاتم 11",{"$f":"RIGHT(LEFT(E18,7),2)","v":"18"},{"$f":"RIGHT(LEFT(E18,5),2)","v":"09"},{"$f":"IF(E18=\"\",\"\",IF(ISODD(MID(E18,1,1)),MID(E18,2,2)+2000,MID(E18,2,2)+1900))","v":1985},{"$f":"IF(E18=\"\",\"\",DATE(I18,H18,G18))","v":"1985-09-18"},"2045-09-17","K",{"$f":"IF(E18=\"\",\"\",IF(ISODD(MID(E18,13,1)),\"ذكر\",\"أنثى\"))","v":"ذكر"},"مسلم","مصري","متزوج","الغربية","طنطا - محافظة الغربية","012345678910","المجموعة النوعية للوظائف المكتبية","1994-11-12",13,1,26,"على رأس العمل","1994-12-03","رئيس وحدة","6486","2005-11-12","الأولى","5646","2011-07-01","------","------","متوسطة","ثانوية تجارية","وزارة التربية والتعليم","------","1983-07-01","بدون","بدون","بدون","بدون","بدون"]
[12,"شئون الطلبة والامتحانات","ـــــ",123467,28509181600510,"حاتم 12",{"$f":"RIGHT(LEFT(E19,7),2)","v":"18"},{"$f":"RIGHT(LEFT(E19,5),2)","v":"09"},{"$f":"IF(E19=\"\",\"\",IF(ISODD(MID(E19,1,1)),MID(E19,2,2)+2000,MID(E19,2,2)+1900))","v":1985},{"$f":"IF(E19=\"\",\"\",DATE(I19,H19,G19))","v":"1985-09-18"},"2045-09-17","L",{"$f":"IF(E19=\"\",\"\",IF(ISODD(MID(E19,13,1)),\"ذكر\",\"أنثى\"))","v":"ذكر"},"مسلم","مصري","متزوج","الغربية","طنطا - محافظة الغربية","012345678910","المجموعة النوعية لوظائف الهندسة","2015-08-27",28,3,5,"منتدب داخل الوزارة","2017-07-11","فني رابع","911","2017-05-17","الرابعة","911","2015-08-27","ــــــــــ","ــــــــــ","متوسطة","دبلوم صناعة ثانوي","وزارة التربية والتعليم",null,"1995-05-01","بدون","بدون","بدون","بدون","بدون"]
[13,"شئون الطلبة والامتحانات","ـــــ",123468,28509181600510,"حاتم 13",{"$f":"RIGHT(LEFT(E20,7),2)","v":"18"},{"$f":"RIGHT(LEFT(E20,5),2)","v":"09"},{"$f":"IF(E20=\"\",\"\",IF(ISODD(MID(E20,1,1)),MID(E20,2,2)+2000,MID(E20,2,2)+1900))","v":1985},{"$f":"IF(E20=\"\",\"\",DATE(I20,H20,G20))","v":"1985-09-18"},"2045-09-17","M",{"$f":"IF(E20=\"\",\"\",IF(ISODD(MID(E20,13,1)),\"ذكر\",\"أنثى\"))","v":"ذكر"},"مسلم","مصري","متزوج + 2","الغربية","طنطا - محافظة الغربية","012345678910","المجموعة النوعية لوظائف كادر المعلم","1988-09-01",24,3,32,"منتدب داخل الوزارة","1988-09-21","معلم أول أ","6210","2014-10-20","ــــــــــ","ــــــــــ","ــــــــــ","مدرس فصل","معلم لغة عربية ابتدائي","فوق المتوسطة","دبلوم المعلمين و المعلمات","وزارة التربية والتعليم","------","1988-05-01","بدون","بدون","بدون","بدون","بدون"]
[14,"شئون الطلبة والامتحانات","ـــــ",123469,28509181600510,"حاتم 14","18","09",1985,"1985-09-18","2045-09-17","N","ذكر","مسلم","مصري","متزوج + 1","الغربية","طنطا - محافظة الغربية","012345678910","المجموعة النوعية للوظتئف المكتبية","1987-05-01",24,7,33,"على رأس العمل","1987-10-01","رئيس وحدة","6313","2003-12-08","الأولى","6665","2014-07-01","ــــــــــ","ــــــــــ","متوسطة","ثانوية تجارية","وزارة التربية والتعليم","------","1981-06-01","بدون","بدون","بدون","بدون","بدون"]
[15,"مكتب المدير العام","------",123470,28509181600510,"حاتم 15",{"$f":"RIGHT(LEFT(E22,7),2)","v":"18"},{"$f":"RIGHT(LEFT(E22,5),2)","v":"09"},{"$f":"IF(E22=\"\",\"\",IF(ISODD(MID(E22,1,1)),MID(E22,2,2)+2000,MID(E22,2,2)+1900))","v":1985},{"$f":"IF(E22=\"\",\"\",DATE(I22,H22,G22))","v":"1985-09-18"},"2045-09-17","O",{"$f":"IF(E22=\"\",\"\",IF(ISODD(MID(E22,13,1)),\"ذكر\",\"أنثى\"))","v":"ذكر"},"مسلم","مصري","أعزب","الغربية","طنطا - محافظة الغربية","012345678910","المجموعة النوعية للوظائف المكتبية","2015-07-28",27,4,5,"على رأس العمل","2017-05-28","كاتب رابع - سكرتير رابع","911","2017-05-17","الرابعة","911","2015-07-28","------","------","متوسطة","ثانوية تجارية","وزارة التربية و التعليم","------","1994-05-01","بدون","بدون","بدون","بدون","بدون"]
[16,"مكتب المدير العام","------",123471,28509181600510,"حاتم 16","18","09",1985,"1985-09-18","2045-09-17","P","ذكر","مسلم","مصري","متزوج","الغربية","طنطا - محافظة الغربية","012345678910","المجموعة النوعية للوظائف المكتبية","2015-08-27",28,3,5,"على رأس العمل","2017-05-28","كاتب رابع - سكرتير رابع","911","2017-05-17","الرابعة","911","2015-08-27","------","------","متوسطة","ثانوية تجارية","وزارة التربية و التعليم","------","1989-05-01","بدون","بدون","بدون","بدون","بدون"]
[17,"مكتب المدير العام","------",123472,28509181600510,"حاتم 17","18","09",1985,"1985-09-18","2045-09-17","Q","ذكر","مسلم","مصري","متزوج","الغربية","طنطا - محافظة الغربية","012345678910","المجموعة النوعية للوظائف المكتبية","1994-03-26",{"$f":"IF(U24=\"\",\"\",DATEDIF(U24,$V$3,\"md\"))","v":29},{"$f":"IF(U24=\"\",\"\",DATEDIF(U24,$V$3,\"ym\"))","v":8},{"$f":"IF(U24=\"\",\"\",DATEDIF(U24,$V$3,\"y\"))","v":26},"على رأس العمل","1994-05-15","رئيس وحدة","6468","2005-11-25","الأولى","5646","2016-12-13","------","------","متوسطة","ثانوية تجارية","وزارة التربية والتعليم","------","1983-06-30","بدون","بدون","بدون","بدون","بدون"]
[18,"مكتب المدير العام","------",123473,28509181600510,"حاتم 18","18","09",1985,"1985-09-18","2045-09-17","R","ذكر","مسلم","مصري","متزوج","الغربية","طنطا - محافظة الغربية","012345678910","المجموعة النوعية للوظائف المكتبية","1994-11-12",13,1,26,"على رأس العمل","1995-01-18","رئيس وحدة","213","2005-11-17","الأولى","5646","2016-07-01","------","------","متوسطة","ثانوية تجارية","وزارة التربية و التعليم","------","1983-09-01","بدون","بدون","بدون","بدون","بدون"]
[19,"مكتب المدير العام","------",123474,28509181600510,"حاتم 19","18","09",1985,"1985-09-18","2045-09-17","S","ذكر","مسلم","مصري","متزوج + 3","الغربية","طنطا - محافظة الغربية","012345678910","وظائف الخدمات المعاونة","1994-02-12",13,10,26,"على رأس العمل","1994-02-12","عامل خدمات ","80","1994-01-22","الثالثة","1876","2012-01-16","------","------","أقل من متوسطة","الابتدائية","وزارة التربية والتعليم","------","1983-12-01","بدون","بدون","بدون","بدون","بدون"]
[20,"مكتب المدير العام","------",123475,28509181600510,"حاتم 20","18","09",1985,"1985-09-18","2045-09-17","T","ذكر","مسلم","مصري","متزوج + 2","الغربية","طنطا - محافظة الغربية","012345678910","وظائف الخدمات المعاونة","1993-09-16",9,3,27,"على رأس العمل","1993-10-16","عامل خدمات","4336","1993-09-26","الثالثة","5487","2010-09-21","------","------","محو أمية","محو أمية","هيئة محو الأمية","------","1982-07-03","بدون","بدون","بدون","بدون","بدون"]
[21,"شئون الطلبة والامتحانات","------",123476,28509181600510,"حاتم 21","18","09",1985,"1985-09-18","2045-09-17","U","ذكر","مسلم","مصري","متزوج","الغربية","طنطا - محافظة الغربية","012345678910","المجموعة النوعية للوظائف المكتبية","2013-01-30",25,10,7,"على رأس العمل","2013-08-28","كاتب رابع - سكرتير رابع","2391","2013-07-28","الرابعة","2391","2013-01-30","------","------","متوسطة","دبلوم صناعة ثانوي","وزارة التربية والتعليم","------","1993-05-01","بدون","بدون","بدون","بدون","بدون"]
[22,"تنسيق التعليم الإعدادي","إعدادي",123477,28509181600510,"حاتم 22","18","09",1985,"1985-09-18","2045-09-17","V","ذكر","مسلم","مصري","متزوج",{"$f":"IF(F29=\"\",\"\",\"الغربية\")","v":"الغربية"},"طنطا - محافظة الغربية","012345678910","المجموعة النوعية لوظائف كادر المعلم","1991-09-01",24,3,29,"منتدب داخل الوزارة","1992-01-16","معلم خبير","6210","2014-10-20","------","------","------","لغة إنجليزية","معلم لغة إنجليزية إعدادي / ثانوي","عليا","ليسانس آداب وتربية","جامعة طنطا","مقبول","1991-05-01","بدون","بدون","بدون","بدون","بدون"]
[23,"تنسيق التعليم الإعدادي","------",123478,28509181600510,"حاتم 23","18","09",1985,"1985-09-18","2045-09-17","W","ذكر","مسلم","مصري","متزوج + أكثر من 3","الغربية","طنطا - محافظة الغربية","012345678910","المجموعة النوعية للوظائف المكتبية","1993-06-06",19,6,27,"على رأس العمل","1993-07-10","رئيس وحدة","6313","2003-12-08","الأولى","6665","2014-12-11","------","------","فوق المتوسطة","شهادة إعداد فنيين تجاريين","وزارة التعليم العالي","------","1983-06-30","بدون","بدون","بدون","بدون","بدون"]
[24,"التغذية","ابتدائي",123479,28509181600510,"حاتم 24","18","09",1985,"1985-09-18","2045-09-17","X","ذكر","مسلم","مصري","متزوج + أكثر من 3","الغربية","طنطا - محافظة الغربية","012345678910","المجموعة النوعية لوظائف كادر المعلم","1995-12-04",21,0,25,"منتدب داخل الوزارة","2001-02-04","معلم خبير","5109","2018-10-18","------","------","------","لغة عربية ودين","معلم لغة عربية ابتدائي","عليا","ليسانس آداب وتربية","جامعة طنطا","جيد جدا","1996-06-03","بدون","بدون","بدون","بدون","بدون"]
[25,"التغذية","------",123480,28509181600510,"حاتم 25",{"$f":"RIGHT(LEFT(E32,7),2)","v":"18"},{"$f":"RIGHT(LEFT(E32,5),2)","v":"09"},{"$f":"IF(E32=\"\",\"\",IF(ISODD(MID(E32,1,1)),MID(E32,2,2)+2000,MID(E32,2,2)+1900))","v":1985},{"$f":"IF(E32=\"\",\"\",DATE(I32,H32,G32))","v":"1985-09-18"},{"$f":"IF(J32=\"\",\"\",$K$4+J32-1)","v":"2045-09-17"},"Y",{"$f":"IF(E32=\"\",\"\",IF(ISODD(MID(E32,13,1)),\"ذكر\",\"أنثى\"))","v":"ذكر"},"مسلم","مصري","متزوج + 2",{"$f":"IF(F32=\"\",\"\",\"الغربية\")","v":"الغربية"},"طنطا - محافظة الغربية","012345678910","المجموعة النوعية لوظائف الهندسة","2012-07-22",{"$f":"IF(U32=\"\",\"\",DATEDIF(U32,$V$3,\"md\"))","v":3},{"$f":"IF(U32=\"\",\"\",DATEDIF(U32,$V$3,\"ym\"))","v":5},{"$f":"IF(U32=\"\",\"\",DATEDIF(U32,$V$3,\"y\"))","v":8},"على رأس العمل","2012-08-27","امين معمل - مرافق زراعية رابع","3886","2012-08-09","الثالثة",5038,"2019-10-29","------","------","متوسطة","دبلوم زراعة متوسطة","وزارة التربية والتعليم","------","2009-05-01","------","------","------","------","------"]
["",null,null,null,null,null,"","","","","",null,"",null,null,null,"",null,null,null,null,"","",""]
[]
["",null,null,null,null,null,"","","","","",null,"",null,null,null,"",null,null,null,null,"","",""]
["",null,null,null,null,null,"","","","","",null,"",null,null,null,"",null,null,null,null,"","",""]
["",null,null,null,null,null,"","","","","",null,"",null,null,null,"",null,null,null,null,"","",""]
["",null,null,null,null,null,"","","","","",null,"",null,null,null,"",null,null,null,null,"","",""]
["",null,null,null,null,null,"","","","","",null,"",null,null,null,"",null,null,null,null,"","",""]
["",null,null,null,null,null,"","","","","",null,"",null,null,null,"",null,null,null,null,"","",""]
["",null,null,null,null,null,"","","","","",null,"",null,null,null,"",null,null,null,null,"","",""]
["",null,null,null,null,null,"","","","","",null,"",null,null,null,"",null,null,null,null,"","",""]
["",null,null,null,null,null,"","","","","",null,"",null,null,null,"",null,null,null,null,"","",""]
["",null,null,null,null,null,"","","","","",null,"",null,null,null,"",null,null,null,null,"","",""]
["",null,null,null,null,null,"","","","","",null,"",null,null,null,"",null,null,null,null,"","",""]
["",null,null,null,null,null,"","","","","",null,"",null,null,null,"",null,null,null,null,"","",""]
["",null,null,null,null,null,"","","","","",null,"",null,null,null,"",null,null,null,null,"","",""]
["",null,null,null,null,null,"","","","","",null,"",null,null,null,"",null,null,null,null,"","",""]
["",null,null,null,null,null,"","","","","",null,"",null,null,null,"",null,null,null,null,"","",""]
["",null,null,null,null,null,"","","","","",null,"",null,null,null,"",null,null,null,null,"","",""]
["",null,null,null,null,null,"","","","","",null,"",null,null,null,"",null,null,null,null,"","",""]
["",null,null,null,null,null,"","","","","",null,"",null,null,null,"",null,null,null,null,"","",""]
["",null,null,null,null,null,"","","","","",null,"",null,null,null,"",null,null,null,null,"","",""]
["",null,null,null,null,null,"","","","","",null,"",null,null,null,"",null,null,null,null,"","",""]
["",null,null,null,null,null,"","","","","",null,"",null,null,null,"",null,null,null,null,"","",""]
["",null,null,null,null,null,"","","","","",null,"",null,null,null,"",null,null,null,null,"","",""]
["",null,null,null,null,null,"","","","","",null,"",null,null,null,"",null,null,null,null,"","",""]
["",null,null,null,null,null,"","","","","",null,"",null,null,null,"",null,null,null,null,"","",""]
["",null,null,null,null,null,"","","","","",null,"",null,null,null,"",null,null,null,null,"","","",null,null,null,null,null,null,null,null,null,null,null,null,null,null,null,null,null,null,null,null,null,null,{"$f":"IF(U59=\"\",\"\",DATEDIF(U59,$AU$3,\"md\"))","v":""},{"$f":"IF(U59=\"\",\"\",DATEDIF(U59,$AU$3,\"ym\"))","v":""},{"$f":"IF(U59=\"\",\"\",DATEDIF(U59,$AU$3,\"y\"))","v":""},{"$f":"IF(J59=\"\",\"\",$AX$3+J59-1)","v":""},null,null,null,null,{"$f":"IF(A59=\"\",\"\",A59)","v":""},{"$f":"IF(D59=\"\",\"\",D59)","v":""},{"$f":"IF(F59=\"\",\"\",F59)","v":""}]
["",null,null,null,null,null,"","","","","",null,"",null,null,null,"",null,null,null,null,"","","",null,null,null,null,null,null,null,null,null,null,null,null,null,null,null,null,null,null,null,null,null,null,"","","","",null,null,null,null,"","",""]
["",null,null,null,null,null,"","","","","",null,"",null,null,null,"",null,null,null,null,"","","",null,null,null,null,null,null,null,null,null,null,null,null,null,null,null,null,null,null,null,null,null,null,"","","","",null,null,null,null,"","",""]
["",null,null,null,null,null,"","","","","",null,"",null,null,null,"",null,null,null,null,"","","",null,null,null,null,null,null,null,null,null,null,null,null,null,null,null,null,null,null,null,null,null,null,"","","","",null,null,null,null,"","",""]
["",null,null,null,null,null,"","","","","",null,"",null,null,null,"",null,null,null,null,"","","",null,null,null,null,null,null,null,null,null,null,null,null,null,null,null,null,null,null,null,null,null,null,"","","","",null,null,null,null,"","",""]
["",null,null,null,null,null,"","","","","",null,"",null,null,null,"",null,null,null,null,"","","",null,null,null,null,null,null,null,null,null,null,null,null,null,null,null,null,null,null,null,null,null,null,"","","","",null,null,null,null,"","",""]
["",null,null,null,null,null,"","","","","",null,"",null,null,null,"",null,null,null,null,"","","",null,null,null,null,null,null,null,null,null,null,null,null,null,null,null,null,null,null,null,null,null,null,"","","","",null,null,null,null,"","",""]
["",null,null,null,null,null,"","","","","",null,"",null,null,null,"",null,null,null,null,"","","",null,null,null,null,null,null,null,null,null,null,null,null,null,null,null,null,null,null,null,null,null,null,"","","","",null,null,null,null,"","",""]
["",null,null,null,null,null,"","","","","",null,"",null,null,null,"",null,null,null,null,"","","",null,null,null,null,null,null,null,null,null,null,null,null,null,null,null,null,null,null,null,null,null,null,"","","","",null,null,null,null,"","",""]
["",null,null,null,null,null,"","","","","",null,"",null,null,null,"",null,null,null,null,"","","",null,null,null,null,null,null,null,null,null,null,null,null,null,null,null,null,null,null,null,null,null,null,"","","","",null,null,null,null,"","",""]
["",null,null,null,null,null,"","","","","",null,"",null,null,null,"",null,null,null,null,"","","",null,null,null,null,null,null,null,null,null,null,null,null,null,null,null,null,null,null,null,null,null,null,"","","","",null,null,null,null,"","",""]
["",null,null,null,null,null,"","","","","",null,"",null,null,null,"",null,null,null,null,"","","",null,null,null,null,null,null,null,null,null,null,null,null,null,null,null,null,null,null,null,null,null,null,"","","","",null,null,null,null,"","",""]
["",null,null,null,null,null,"","","","","",null,"",null,null,null,"",null,null,null,null,"","","",null,null,null,null,null,null,null,null,null,null,null,null,null,null,null,null,null,null,null,null,null,null,"","","","",null,null,null,null,"","",""]
["",null,null,null,null,null,"","","",{"$f":"IF(E72=\"\",\"\",DATE(I72,H72,G72))","v":""},"",null,{"$f":"IF(E72=\"\",\"\",IF(ISODD(MID(E72,13,1)),\"ذكر\",\"أنثى\"))","v":""},null,null,null,"",null,null,null,null,"","","",null,null,null,null,null,null,null,null,null,null,null,null,null,null,null,null,null,null,null,null,null,null,"","","","",null,null,null,null,"","",""]
[{"$f":"IF(F73=\"\",\"\",A72+1)","v":""},null,null,null,null,null,{"$f":"RIGHT(LEFT(E73,7),2)","v":""},{"$f":"RIGHT(LEFT(E73,5),2)","v":""},{"$f":"IF(E73=\"\",\"\",IF(ISODD(MID(E73,1,1)),MID(E73,2,2)+2000,MID(E73,2,2)+1900))","v":""},"",{"$f":"IF(J73=\"\",\"\",$K$4+J73-1)","v":""},null,"",null,null,null,{"$f":"IF(F73=\"\",\"\",\"الغربية\")","v":""},null,null,null,null,{"$f":"IF(U73=\"\",\"\",DATEDIF(U73,$V$3,\"md\"))","v":""},{"$f":"IF(U73=\"\",\"\",DATEDIF(U73,$V$3,\"ym\"))","v":""},{"$f":"IF(U73=\"\",\"\",DATEDIF(U73,$V$3,\"y\"))","v":""},null,null,null,null,null,null,null,null,null,null,null,null,null,null,null,null,null,null,null,null,null,null,{"$f":"IF(U73=\"\",\"\",DATEDIF(U73,$AU$3,\"md\"))","v":""},{"$f":"IF(U73=\"\",\"\",DATEDIF(U73,$AU$3,\"ym\"))","v":""},{"$f":"IF(U73=\"\",\"\",DATEDIF(U73,$AU$3,\"y\"))","v":""},"",null,null,null,null,{"$f":"IF(A73=\"\",\"\",A73)","v":""},{"$f":"IF(D73=\"\",\"\",D73)","v":""},{"$f":"IF(F73=\"\",\"\",F73)","v":""}]
["",null,null,null,null,null,"","","","","",null,"",null,null,null,"",null,null,null,null,"","","",null,null,null,null,null,null,null,null,null,null,null,null,null,null,null,null,null,null,null,null,null,null,"","","",{"$f":"IF(J74=\"\",\"\",$AX$3+J74-1)","v":""},null,null,null,null,"","",""]
["",null,null,null,null,null,"","","","","",null,"",null,null,null,"",null,null,null,null,"","","",null,null,null,null,null,null,null,null,null,null,null,null,null,null,null,null,null,null,null,null,null,null,"","","","",null,null,null,null,"","",""]
["",null,null,null,null,null,"","","","","",null,"",null,null,null,"",null,null,null,null,"","","",null,null,null,null,null,null,null,null,null,null,null,null,null,null,null,null,null,null,null,null,null,null,"","","","",null,null,null,null,"","",""]
["",null,null,null,null,null,"","","","","",null,"",null,null,null,"",null,null,null,null,"","","",null,null,null,null,null,null,null,null,null,null,null,null,null,null,null,null,null,null,null,null,null,null,"","","","",null,null,null,null,"","",""]
["",null,null,null,null,null,"","","","","",null,"",null,null,null,"",null,null,null,null,"","","",null,null,null,null,null,null,null,null,null,null,null,null,null,null,null,null,null,null,null,null,null,null,"","","","",null,null,null,null,"","",""]
["",null,null,null,null,null,"","","","","",null,"",null,null,null,"",null,null,null,null,"","","",null,null,null,null,null,null,null,null,null,null,null,null,null,null,null,null,null,null,null,null,null,null,"","","","",null,null,null,null,"","",""]
["",null,null,null,null,null,"","","","","",null,"",null,null,null,"",null,null,null,null,"","","",null,null,null,null,null,null,null,null,null,null,null,null,null,null,null,null,null,null,null,null,null,null,"","","","",null,null,null,null,"","",""]
["",null,null,null,null,null,"","","","","",null,"",null,null,null,"",null,null,null,null,"","","",null,null,null,null,null,null,null,null,null,null,null,null,null,null,null,null,null,null,null,null,null,null,"","","","",null,null,null,null,"","",""]
["",null,null,null,null,null,"","","","","",null,"",null,null,null,"",null,null,null,null,"","","",null,null,null,null,null,null,null,null,null,null,null,null,null,null,null,null,null,null,null,null,null,null,"","","","",null,null,null,null,"","",""]
["",null,null,null,null,null,"","","","","",null,"",null,null,null,"",null,null,null,null,"","","",null,null,null,null,null,null,null,null,null,null,null,null,null,null,null,null,null,null,null,null,null,null,"","","","",null,null,null,null,"","",""]
["",null,null,null,null,null,"","","","","",null,"",null,null,null,"",null,null,null,null,"","","",null,null,null,null,null,null,null,null,null,null,null,null,null,null,null,null,null,null,null,null,null,null,"","","","",null,null,null,null,"","",""]
["",null,null,null,null,null,"","","","","",null,"",null,null,null,"",null,null,null,null,"","","",null,null,null,null,null,null,null,null,null,null,null,null,null,null,null,null,null,null,null,null,null,null,"","","","",null,null,null,null,"","",""]
["",null,null,null,null,null,"","","","","",null,"",null,null,null,"",null,null,null,null,"","","",null,null,null,null,null,null,null,null,null,null,null,null,null,null,null,null,null,null,null,null,null,null,"","","","",null,null,null,null,"","",""]
["",null,null,null,null,null,"","","","","",null,"",null,null,null,"",null,null,null,null,"","","",null,null,null,null,null,null,null,null,null,null,null,null,null,null,null,null,null,null,null,null,null,null,"","","","",null,null,null,null,"","",""]
["",null,null,null,null,null,"","","","","",null,"",null,null,null,"",null,null,null,null,"","","",null,null,null,null,null,null,null,null,null,null,null,null,null,null,null,null,null,null,null,null,null,null,"","","","",null,null,null,null,"","",""]
["",null,null,null,null,null,"","","","","",null,"",null,null,null,"",null,null,null,null,"","","",null,null,null,null,null,null,null,null,null,null,null,null,null,null,null,null,null,null,null,null,null,null,"","","","",null,null,null,null,"","",""]
["",null,null,null,null,null,"","","","","",null,"",null,null,null,"",null,null,null,null,"","","",null,null,null,null,null,null,null,null,null,null,null,null,null,null,null,null,null,null,null,null,null,null,"","","","",null,null,null,null,"","",""]
["",null,null,null,null,null,"","","","","",null,"",null,null,null,"",null,null,null,null,"","","",null,null,null,null,null,null,null,null,null,null,null,null,null,null,null,null,null,null,null,null,null,null,"","","","",null,null,null,null,"","",""]
["",null,null,null,null,null,"","","","","",null,"",null,null,null,"",null,null,null,null,"","","",null,null,null,null,null,null,null,null,null,null,null,null,null,null,null,null,null,null,null,null,null,null,"","","","",null,null,null,null,"","",""]
["",null,null,null,null,null,"","","","","",null,"",null,null,null,"",null,null,null,null,"","","",null,null,null,null,null,null,null,null,null,null,null,null,null,null,null,null,null,null,null,null,null,null,"","","","",null,null,null,null,"","",""]
["",null,null,null,null,null,"","","","","",null,"",null,null,null,"",null,null,null,null,"","","",null,null,null,null,null,null,null,null,null,null,null,null,null,null,null,null,null,null,null,null,null,null,"","","","",null,null,null,null,"","",""]
["",null,null,null,null,null,"","","","","",null,"",null,null,null,"",null,null,null,null,"","","",null,null,null,null,null,null,null,null,null,null,null,null,null,null,null,null,null,null,null,null,null,null,"","","","",null,null,null,null,"","",""]
["",null,null,null,null,null,"","","","","",null,"",null,null,null,"",null,null,null,null,"","","",null,null,null,null,null,null,null,null,null,null,null,null,null,null,null,null,null,null,null,null,null,null,"","","","",null,null,null,null,"","",""]
["",null,null,null,null,null,"","","","","",null,"",null,null,null,"",null,null,null,null,"","","",null,null,null,null,null,null,null,null,null,null,null,null,null,null,null,null,null,null,null,null,null,null,"","","","",null,null,null,null,"","",""]
["",null,null,null,null,null,"","","","","",null,"",null,null,null,"",null,null,null,null,"","","",null,null,null,null,null,null,null,null,null,null,null,null,null,null,null,null,null,null,null,null,null,null,"","","","",null,null,null,null,"","",""]
["",null,null,null,null,null,"","","","","",null,"",null,null,null,"",null,null,null,null,"","","",null,null,null,null,null,null,null,null,null,null,null,null,null,null,null,null,null,null,null,null,null,null,"","","","",null,null,null,null,"","",""]
["",null,null,null,null,null,"","","","","",null,"",null,null,null,"",null,null,null,null,"","","",null,null,null,null,null,null,null,null,null,null,null,null,null,null,null,null,null,null,null,null,null,null,"","","","",null,null,null,null,"","",""]
["",null,null,null,null,null,"","","","","",null,"",null,null,null,"",null,null,null,null,"","","",null,null,null,null,null,null,null,null,null,null,null,null,null,null,null,null,null,null,null,null,null,null,"","","","",null,null,null,null,"","",""]
["",null,null,null,null,null,"","","","","",null,"",null,null,null,"",null,null,null,null,"","","",null,null,null,null,null,null,null,null,null,null,null,null,null,null,null,null,null,null,null,null,null,null,"","","","",null,null,null,null,"","",""]
["",null,null,null,null,null,"","","","","",null,"",null,null,null,"",null,null,null,null,"","","",null,null,null,null,null,null,null,null,null,null,null,null,null,null,null,null,null,null,null,null,null,null,"","","","",null,null,null,null,"","",""]
["",null,null,null,null,null,"","","","","",null,"",null,null,null,"",null,null,null,null,"","","",null,null,null,null,null,null,null,null,null,null,null,null,null,null,null,null,null,null,null,null,null,null,"","","","",null,null,null,null,"","",""]
["",null,null,null,null,null,"","","","","",null,"",null,null,null,"",null,null,null,null,"","","",null,null,null,null,null,null,null,null,null,null,null,null,null,null,null,null,null,null,null,null,null,null,"","","","",null,null,null,null,"","",""]
["",null,null,null,null,null,"","","","","",null,"",null,null,null,"",null,null,null,null,"","","",null,null,null,null,null,null,null,null,null,null,null,null,null,null,null,null,null,null,null,null,null,null,"","","","",null,null,null,null,"","",""]
["",null,null,null,null,null,"","","","","",null,"",null,null,null,"",null,null,null,null,"","","",null,null,null,null,null,null,null,null,null,null,null,null,null,null,null,null,null,null,null,null,null,null,"","","","",null,null,null,null,"","",""]
["",null,null,null,null,null,"","","","","",null,"",null,null,null,"",null,null,null,null,"","","",null,null,null,null,null,null,null,null,null,null,null,null,null,null,null,null,null,null,null,null,null,null,"","","","",null,null,null,null,"","",""]
["",null,null,null,null,null,"","","","","",null,"",null,null,null,"",null,null,null,null,"","","",null,null,null,null,null,null,null,null,null,null,null,null,null,null,null,null,null,null,null,null,null,null,"","","","",null,null,null,null,"","",""]
["",null,null,null,null,null,"","","","","",null,"",null,null,null,"",null,null,null,null,"","","",null,null,null,null,null,null,null,null,null,null,null,null,null,null,null,null,null,null,null,null,null,null,"","","","",null,null,null,null,"","",""]
["",null,null,null,null,null,"","","","","",null,"",null,null,null,"",null,null,null,null,"","","",null,null,null,null,null,null,null,null,null,null,null,null,null,null,null,null,null,null,null,null,null,null,"","","","",null,null,null,null,"","",""]
["",null,null,null,null,null,"","","","","",null,"",null,null,null,"",null,null,null,null,"","","",null,null,null,null,null,null,null,null,null,null,null,null,null,null,null,null,null,null,null,null,null,null,"","","","",null,null,null,null,"","",""]
["",null,null,null,null,null,"","","","","",null,"",null,null,null,"",null,null,null,null,"","","",null,null,null,null,null,null,null,null,null,null,null,null,null,null,null,null,null,null,null,null,null,null,"","","","",null,null,null,null,"","",""]
["",null,null,null,null,null,"","","","","",null,"",null,null,null,"",null,null,null,null,"","","",null,null,null,null,null,null,null,null,null,null,null,null,null,null,null,null,null,null,null,null,null,null,"","","","",null,null,null,null,"","",""]
["",null,null,null,null,null,"","","","","",null,"",null,null,null,"",null,null,null,null,"","","",null,null,null,null,null,null,null,null,null,null,null,null,null,null,null,null,null,null,null,null,null,null,"","","","",null,null,null,null,"","",""]
["",null,null,null,null,null,"","","","","",null,"",null,null,null,"",null,null,null,null,"","","",null,null,null,null,null,null,null,null,null,null,null,null,null,null,null,null,null,null,null,null,null,null,"","","","",null,null,null,null,"","",""]
["",null,null,null,null,null,"","","","","",null,"",null,null,null,"",null,null,null,null,"","","",null,null,null,null,null,null,null,null,null,null,null,null,null,null,null,null,null,null,null,null,null,null,"","","","",null,null,null,null,"","",""]
["",null,null,null,null,null,"","","","","",null,"",null,null,null,"",null,null,null,null,"","","",null,null,null,null,null,null,null,null,null,null,null,null,null,null,null,null,null,null,null,null,null,null,"","","","",null,null,null,null,"","",""]
["",null,null,null,null,null,"","","","","",null,"",null,null,null,"",null,null,null,null,"","","",null,null,null,null,null,null,null,null,null,null,null,null,null,null,null,null,null,null,null,null,null,null,"","","","",null,null,null,null,"","",""]
["",null,null,null,null,null,"","","","","",null,"",null,null,null,"",null,null,null,null,"","","",null,null,null,null,null,null,null,null,null,null,null,null,null,null,null,null,null,null,null,null,null,null,"","","","",null,null,null,null,"","",""]
["",null,null,null,null,null,"","","","","",null,"",null,null,null,"",null,null,null,null,"","","",null,null,null,null,null,null,null,null,null,null,null,null,null,null,null,null,null,null,null,null,null,null,"","","","",null,null,null,null,"","",""]
["",null,null,null,null,null,"","","","","",null,"",null,null,null,"",null,null,null,null,"","","",null,null,null,null,null,null,null,null,null,null,null,null,null,null,null,null,null,null,null,null,null,null,"","","","",null,null,null,null,"","",""]
["",null,null,null,null,null,"","","","","",null,"",null,null,null,"",null,null,null,null,"","","",null,null,null,null,null,null,null,null,null,null,null,null,null,null,null,null,null,null,null,null,null,null,"","","","",null,null,null,null,"","",""]
["",null,null,null,null,null,"","","","","",null,"",null,null,null,"",null,null,null,null,"","","",null,null,null,null,null,null,null,null,null,null,null,null,null,null,null,null,null,null,null,null,null,null,"","","","",null,null,null,null,"","",""]
["",null,null,null,null,null,"","","","","",null,"",null,null,null,"",null,null,null,null,"","","",null,null,null,null,null,null,null,null,null,null,null,null,null,null,null,null,null,null,null,null,null,null,"","","","",null,null,null,null,"","",""]
["",null,null,null,null,null,"","","","","",null,"",null,null,null,"",null,null,null,null,"","","",null,null,null,null,null,null,null,null,null,null,null,null,null,null,null,null,null,null,null,null,null,null,"","","","",null,null,null,null,"","",""]
["",null,null,null,null,null,"","","","","",null,"",null,null,null,"",null,null,null,null,"","","",null,null,null,null,null,null,null,null,null,null,null,null,null,null,null,null,null,null,null,null,null,null,"","","","",null,null,null,null,"","",""]
["",null,null,null,null,null,"","","","","",null,"",null,null,null,"",null,null,null,null,"","","",null,null,null,null,null,null,null,null,null,null,null,null,null,null,null,null,null,null,null,null,null,null,"","","","",null,null,null,null,"","",""]
["",null,null,null,null,null,"","","","","",null,"",null,null,null,"",null,null,null,null,"","","",null,null,null,null,null,null,null,null,null,null,null,null,null,null,null,null,null,null,null,null,null,null,"","","","",null,null,null,null,"","",""]
["",null,null,null,null,null,"","","","","",null,"",null,null,null,"",null,null,null,null,"","","",null,null,null,null,null,null,null,null,null,null,null,null,null,null,null,null,null,null,null,null,null,null,"","","","",null,null,null,null,"","",""]
["",null,null,null,null,null,"","","","","",null,"",null,null,null,"",null,null,null,null,"","","",null,null,null,null,null,null,null,null,null,null,null,null,null,null,null,null,null,null,null,null,null,null,"","","","",null,null,null,null,"","",""]
["",null,null,null,null,null,"","","","","",null,"",null,null,null,"",null,null,null,null,"","","",null,null,null,null,null,null,null,null,null,null,null,null,null,null,null,null,null,null,null,null,null,null,"","","","",null,null,null,null,"","",""]
["",null,null,null,null,null,"","","","","",null,"",null,null,null,"",null,null,null,null,"","","",null,null,null,null,null,null,null,null,null,null,null,null,null,null,null,null,null,null,null,null,null,null,"","","","",null,null,null,null,"","",""]
["",null,null,null,null,null,"","","","","",null,"",null,null,null,"",null,null,null,null,"","","",null,null,null,null,null,null,null,null,null,null,null,null,null,null,null,null,null,null,null,null,null,null,"","","","",null,null,null,null,"","",""]
["",null,null,null,null,null,"","","","","",null,"",null,null,null,"",null,null,null,null,"","","",null,null,null,null,null,null,null,null,null,null,null,null,null,null,null,null,null,null,null,null,null,null,"","","","",null,null,null,null,"","",""]
["",null,null,null,null,null,"","","",{"$f":"IF(E136=\"\",\"\",DATE(I136,H136,G136))","v":""},"",null,{"$f":"IF(E136=\"\",\"\",IF(ISODD(MID(E136,13,1)),\"ذكر\",\"أنثى\"))","v":""},null,null,null,"",null,null,null,null,"","","",null,null,null,null,null,null,null,null,null,null,null,null,null,null,null,null,null,null,null,null,null,null,"","","","",null,null,null,null,"","",""]
[{"$f":"IF(F137=\"\",\"\",A136+1)","v":""},null,null,null,null,null,{"$f":"RIGHT(LEFT(E137,7),2)","v":""},{"$f":"RIGHT(LEFT(E137,5),2)","v":""},{"$f":"IF(E137=\"\",\"\",IF(ISODD(MID(E137,1,1)),MID(E137,2,2)+2000,MID(E137,2,2)+1900))","v":""},"",{"$f":"IF(J137=\"\",\"\",$K$4+J137-1)","v":""},null,"",null,null,null,{"$f":"IF(F137=\"\",\"\",\"الغربية\")","v":""},null,null,null,null,{"$f":"IF(U137=\"\",\"\",DATEDIF(U137,$V$3,\"md\"))","v":""},{"$f":"IF(U137=\"\",\"\",DATEDIF(U137,$V$3,\"ym\"))","v":""},{"$f":"IF(U137=\"\",\"\",DATEDIF(U137,$V$3,\"y\"))","v":""},null,null,null,null,null,null,null,null,null,null,null,null,null,null,null,null,null,null,null,null,null,null,{"$f":"IF(U137=\"\",\"\",DATEDIF(U137,$AU$3,\"md\"))","v":""},{"$f":"IF(U137=\"\",\"\",DATEDIF(U137,$AU$3,\"ym\"))","v":""},{"$f":"IF(U137=\"\",\"\",DATEDIF(U137,$AU$3,\"y\"))","v":""},"",null,null,null,null,{"$f":"IF(A137=\"\",\"\",A137)","v":""},{"$f":"IF(D137=\"\",\"\",D137)","v":""},{"$f":"IF(F137=\"\",\"\",F137)","v":""}]
["",null,null,null,null,null,"","","","","",null,"",null,null,null,"",null,null,null,null,"","","",null,null,null,null,null,null,null,null,null,null,null,null,null,null,null,null,null,null,null,null,null,null,"","","",{"$f":"IF(J138=\"\",\"\",$AX$3+J138-1)","v":""},null,null,null,null,"","",""]
["",null,null,null,null,null,"","","","","",null,"",null,null,null,"",null,null,null,null,"","","",null,null,null,null,null,null,null,null,null,null,null,null,null,null,null,null,null,null,null,null,null,null,"","","","",null,null,null,null,"","",""]
["",null,null,null,null,null,"","","","","",null,"",null,null,null,"",null,null,null,null,"","","",null,null,null,null,null,null,null,null,null,null,null,null,null,null,null,null,null,null,null,null,null,null,"","","","",null,null,null,null,"","",""]
["",null,null,null,null,null,"","","","","",null,"",null,null,null,"",null,null,null,null,"","","",null,null,null,null,null,null,null,null,null,null,null,null,null,null,null,null,null,null,null,null,null,null,"","","","",null,null,null,null,"","",""]
["",null,null,null,null,null,"","","","","",null,"",null,null,null,"",null,null,null,null,"","","",null,null,null,null,null,null,null,null,null,null,null,null,null,null,null,null,null,null,null,null,null,null,"","","","",null,null,null,null,"","",""]
["",null,null,null,null,null,"","","","","",null,"",null,null,null,"",null,null,null,null,"","","",null,null,null,null,null,null,null,null,null,null,null,null,null,null,null,null,null,null,null,null,null,null,"","","","",null,null,null,null,"","",""]
["",null,null,null,null,null,"","","","","",null,"",null,null,null,"",null,null,null,null,"","","",null,null,null,null,null,null,null,null,null,null,null,null,null,null,null,null,null,null,null,null,null,null,"","","","",null,null,null,null,"","",""]
["",null,null,null,null,null,"","","","","",null,"",null,null,null,"",null,null,null,null,"","","",null,null,null,null,null,null,null,null,null,null,null,null,null,null,null,null,null,null,null,null,null,null,"","","","",null,null,null,null,"","",""]
["",null,null,null,null,null,"","","","","",null,"",null,null,null,"",null,null,null,null,"","","",null,null,null,null,null,null,null,null,null,null,null,null,null,null,null,null,null,null,null,null,null,null,"","","","",null,null,null,null,"","",""]
["",null,null,null,null,null,"","","","","",null,"",null,null,null,"",null,null,null,null,"","","",null,null,null,null,null,null,null,null,null,null,null,null,null,null,null,null,null,null,null,null,null,null,"","","","",null,null,null,null,"","",""]
["",null,null,null,null,null,"","","","","",null,"",null,null,null,"",null,null,null,null,"","","",null,null,null,null,null,null,null,null,null,null,null,null,null,null,null,null,null,null,null,null,null,null,"","","","",null,null,null,null,"","",""]
["",null,null,null,null,null,"","","","","",null,"",null,null,null,"",null,null,null,null,"","","",null,null,null,null,null,null,null,null,null,null,null,null,null,null,null,null,null,null,null,null,null,null,"","","","",null,null,null,null,"","",""]
["",null,null,null,null,null,"","","","","",null,"",null,null,null,"",null,null,null,null,"","","",null,null,null,null,null,null,null,null,null,null,null,null,null,null,null,null,null,null,null,null,null,null,"","","","",null,null,null,null,"","",""]
["",null,null,null,null,null,"","","","","",null,"",null,null,null,"",null,null,null,null,"","","",null,null,null,null,null,null,null,null,null,null,null,null,null,null,null,null,null,null,null,null,null,null,"","","","",null,null,null,null,"","",""]
["",null,null,null,null,null,"","","","","",null,"",null,null,null,"",null,null,null,null,"","","",null,null,null,null,null,null,null,null,null,null,null,null,null,null,null,null,null,null,null,null,null,null,"","","","",null,null,null,null,"","",""]
["",null,null,null,null,null,"","","","","",null,"",null,null,null,"",null,null,null,null,"","","",null,null,null,null,null,null,null,null,null,null,null,null,null,null,null,null,null,null,null,null,null,null,"","","","",null,null,null,null,"","",""]
["",null,null,null,null,null,"","","","","",null,"",null,null,null,"",null,null,null,null,"","","",null,null,null,null,null,null,null,null,null,null,null,null,null,null,null,null,null,null,null,null,null,null,"","","","",null,null,null,null,"","",""]
["",null,null,null,null,null,"","","","","",null,"",null,null,null,"",null,null,null,null,"","","",null,null,null,null,null,null,null,null,null,null,null,null,null,null,null,null,null,null,null,null,null,null,"","","","",null,null,null,null,"","",""]
["",null,null,null,null,null,"","","","","",null,"",null,null,null,"",null,null,null,null,"","","",null,null,null,null,null,null,null,null,null,null,null,null,null,null,null,null,null,null,null,null,null,null,"","","","",null,null,null,null,"","",""]
["",null,null,null,null,null,"","","","","",null,"",null,null,null,"",null,null,null,null,"","","",null,null,null,null,null,null,null,null,null,null,null,null,null,null,null,null,null,null,null,null,null,null,"","","","",null,null,null,null,"","",""]
["",null,null,null,null,null,"","","","","",null,"",null,null,null,"",null,null,null,null,"","","",null,null,null,null,null,null,null,null,null,null,null,null,null,null,null,null,null,null,null,null,null,null,"","","","",null,null,null,null,"","",""]
["",null,null,null,null,null,"","","","","",null,"",null,null,null,"",null,null,null,null,"","","",null,null,null,null,null,null,null,null,null,null,null,null,null,null,null,null,null,null,null,null,null,null,"","","","",null,null,null,null,"","",""]
["",null,null,null,null,null,"","","","","",null,"",null,null,null,"",null,null,null,null,"","","",null,null,null,null,null,null,null,null,null,null,null,null,null,null,null,null,null,null,null,null,null,null,"","","","",null,null,null,null,"","",""]
["",null,null,null,null,null,"","","","","",null,"",null,null,null,"",null,null,null,null,"","","",null,null,null,null,null,null,null,null,null,null,null,null,null,null,null,null,null,null,null,null,null,null,"","","","",null,null,null,null,"","",""]
["",null,null,null,null,null,"","","","","",null,"",null,null,null,"",null,null,null,null,"","","",null,null,null,null,null,null,null,null,null,null,null,null,null,null,null,null,null,null,null,null,null,null,"","","","",null,null,null,null,"","",""]
["",null,null,null,null,null,"","","","","",null,"",null,null,null,"",null,null,null,null,"","","",null,null,null,null,null,null,null,null,null,null,null,null,null,null,null,null,null,null,null,null,null,null,"","","","",null,null,null,null,"","",""]
["",null,null,null,null,null,"","","","","",null,"",null,null,null,"",null,null,null,null,"","","",null,null,null,null,null,null,null,null,null,null,null,null,null,null,null,null,null,null,null,null,null,null,"","","","",null,null,null,null,"","",""]
["",null,null,null,null,null,"","","","","",null,"",null,null,null,"",null,null,null,null,"","","",null,null,null,null,null,null,null,null,null,null,null,null,null,null,null,null,null,null,null,null,null,null,"","","","",null,null,null,null,"","",""]
["",null,null,null,null,null,"","","","","",null,"",null,null,null,"",null,null,null,null,"","","",null,null,null,null,null,null,null,null,null,null,null,null,null,null,null,null,null,null,null,null,null,null,"","","","",null,null,null,null,"","",""]
["",null,null,null,null,null,"","","","","",null,"",null,null,null,"",null,null,null,null,"","","",null,null,null,null,null,null,null,null,null,null,null,null,null,null,null,null,null,null,null,null,null,null,"","","","",null,null,null,null,"","",""]
["",null,null,null,null,null,"","","","","",null,"",null,null,null,"",null,null,null,null,"","","",null,null,null,null,null,null,null,null,null,null,null,null,null,null,null,null,null,null,null,null,null,null,"","","","",null,null,null,null,"","",""]
["",null,null,null,null,null,"","","","","",null,"",null,null,null,"",null,null,null,null,"","","",null,null,null,null,null,null,null,null,null,null,null,null,null,null,null,null,null,null,null,null,null,null,"","","","",null,null,null,null,"","",""]
["",null,null,null,null,null,"","","","","",null,"",null,null,null,"",null,null,null,null,"","","",null,null,null,null,null,null,null,null,null,null,null,null,null,null,null,null,null,null,null,null,null,null,"","","","",null,null,null,null,"","",""]
["",null,null,null,null,null,"","","","","",null,"",null,null,null,"",null,null,null,null,"","","",null,null,null,null,null,null,null,null,null,null,null,null,null,null,null,null,null,null,null,null,null,null,"","","","",null,null,null,null,"","",""]
["",null,null,null,null,null,"","","","","",null,"",null,null,null,"",null,null,null,null,"","","",null,null,null,null,null,null,null,null,null,null,null,null,null,null,null,null,null,null,null,null,null,null,"","","","",null,null,null,null,"","",""]
["",null,null,null,null,null,"","","","","",null,"",null,null,null,"",null,null,null,null,"","","",null,null,null,null,null,null,null,null,null,null,null,null,null,null,null,null,null,null,null,null,null,null,"","","","",null,null,null,null,"","",""]
["",null,null,null,null,null,"","","","","",null,"",null,null,null,"",null,null,null,null,"","","",null,null,null,null,null,null,null,null,null,null,null,null,null,null,null,null,null,null,null,null,null,null,"","","","",null,null,null,null,"","",""]
["",null,null,null,null,null,"","","","","",null,"",null,null,null,"",null,null,null,null,"","","",null,null,null,null,null,null,null,null,null,null,null,null,null,null,null,null,null,null,null,null,null,null,"","","","",null,null,null,null,"","",""]
["",null,null,null,null,null,"","","","","",null,"",null,null,null,"",null,null,null,null,"","","",null,null,null,null,null,null,null,null,null,null,null,null,null,null,null,null,null,null,null,null,null,null,"","","","",null,null,null,null,"","",""]
["",null,null,null,null,null,"","","","","",null,"",null,null,null,"",null,null,null,null,"","","",null,null,null,null,null,null,null,null,null,null,null,null,null,null,null,null,null,null,null,null,null,null,"","","","",null,null,null,null,"","",""]
["",null,null,null,null,null,"","","","","",null,"",null,null,null,"",null,null,null,null,"","","",null,null,null,null,null,null,null,null,null,null,null,null,null,null,null,null,null,null,null,null,null,null,"","","","",null,null,null,null,"","",""]
["",null,null,null,null,null,"","","","","",null,"",null,null,null,"",null,null,null,null,"","","",null,null,null,null,null,null,null,null,null,null,null,null,null,null,null,null,null,null,null,null,null,null,"","","","",null,null,null,null,"","",""]
["",null,null,null,null,null,"","","","","",null,"",null,null,null,"",null,null,null,null,"","","",null,null,null,null,null,null,null,null,null,null,null,null,null,null,null,null,null,null,null,null,null,null,"","","","",null,null,null,null,"","",""]
["",null,null,null,null,null,"","","","","",null,"",null,null,null,"",null,null,null,null,"","","",null,null,null,null,null,null,null,null,null,null,null,null,null,null,null,null,null,null,null,null,null,null,"","","","",null,null,null,null,"","",""]
["",null,null,null,null,null,"","","","","",null,"",null,null,null,"",null,null,null,null,"","","",null,null,null,null,null,null,null,null,null,null,null,null,null,null,null,null,null,null,null,null,null,null,"","","","",null,null,null,null,"","",""]
["",null,null,null,null,null,"","","","","",null,"",null,null,null,"",null,null,null,null,"","","",null,null,null,null,null,null,null,null,null,null,null,null,null,null,null,null,null,null,null,null,null,null,"","","","",null,null,null,null,"","",""]
["",null,null,null,null,null,"","","","","",null,"",null,null,null,"",null,null,null,null,"","","",null,null,null,null,null,null,null,null,null,null,null,null,null,null,null,null,null,null,null,null,null,null,"","","","",null,null,null,null,"","",""]
["",null,null,null,null,null,"","","","","",null,"",null,null,null,"",null,null,null,null,"","","",null,null,null,null,null,null,null,null,null,null,null,null,null,null,null,null,null,null,null,null,null,null,"","","","",null,null,null,null,"","",""]
["",null,null,null,null,null,"","","","","",null,"",null,null,null,"",null,null,null,null,"","","",null,null,null,null,null,null,null,null,null,null,null,null,null,null,null,null,null,null,null,null,null,null,"","","","",null,null,null,null,"","",""]
["",null,null,null,null,null,"","","","","",null,"",null,null,null,"",null,null,null,null,"","","",null,null,null,null,null,null,null,null,null,null,null,null,null,null,null,null,null,null,null,null,null,null,"","","","",null,null,null,null,"","",""]
["",null,null,null,null,null,"","","","","",null,"",null,null,null,"",null,null,null,null,"","","",null,null,null,null,null,null,null,null,null,null,null,null,null,null,null,null,null,null,null,null,null,null,"","","","",null,null,null,null,"","",""]
["",null,null,null,null,null,"","","","","",null,"",null,null,null,"",null,null,null,null,"","","",null,null,null,null,null,null,null,null,null,null,null,null,null,null,null,null,null,null,null,null,null,null,"","","","",null,null,null,null,"","",""]
["",null,null,null,null,null,"","","","","",null,"",null,null,null,"",null,null,null,null,"","","",null,null,null,null,null,null,null,null,null,null,null,null,null,null,null,null,null,null,null,null,null,null,"","","","",null,null,null,null,"","",""]
["",null,null,null,null,null,"","","","","",null,"",null,null,null,"",null,null,null,null,"","","",null,null,null,null,null,null,null,null,null,null,null,null,null,null,null,null,null,null,null,null,null,null,"","","","",null,null,null,null,"","",""]
["",null,null,null,null,null,"","","","","",null,"",null,null,null,"",null,null,null,null,"","","",null,null,null,null,null,null,null,null,null,null,null,null,null,null,null,null,null,null,null,null,null,null,"","","","",null,null,null,null,"","",""]
["",null,null,null,null,null,"","","","","",null,"",null,null,null,"",null,null,null,null,"","","",null,null,null,null,null,null,null,null,null,null,null,null,null,null,null,null,null,null,null,null,null,null,"","","","",null,null,null,null,"","",""]
["",null,null,null,null,null,"","","","","",null,"",null,null,null,"",null,null,null,null,"","","",null,null,null,null,null,null,null,null,null,null,null,null,null,null,null,null,null,null,null,null,null,null,"","","","",null,null,null,null,"","",""]
["",null,null,null,null,null,"","","","","",null,"",null,null,null,"",null,null,null,null,"","","",null,null,null,null,null,null,null,null,null,null,null,null,null,null,null,null,null,null,null,null,null,null,"","","","",null,null,null,null,"","",""]
["",null,null,null,null,null,"","","","","",null,"",null,null,null,"",null,null,null,null,"","","",null,null,null,null,null,null,null,null,null,null,null,null,null,null,null,null,null,null,null,null,null,null,"","","","",null,null,null,null,"","",""]
["",null,null,null,null,null,"","","","","",null,"",null,null,null,"",null,null,null,null,"","","",null,null,null,null,null,null,null,null,null,null,null,null,null,null,null,null,null,null,null,null,null,null,"","","","",null,null,null,null,"","",""]
["",null,null,null,null,null,"","","","","",null,"",null,null,null,"",null,null,null,null,"","","",null,null,null,null,null,null,null,null,null,null,null,null,null,null,null,null,null,null,null,null,null,null,"","","","",null,null,null,null,"","",""]
["",null,null,null,null,null,"","","","","",null,"",null,null,null,"",null,null,null,null,"","","",null,null,null,null,null,null,null,null,null,null,null,null,null,null,null,null,null,null,null,null,null,null,"","","","",null,null,null,null,"","",""]
["",null,null,null,null,null,"","","",{"$f":"IF(E200=\"\",\"\",DATE(I200,H200,G200))","v":""},"",null,{"$f":"IF(E200=\"\",\"\",IF(ISODD(MID(E200,13,1)),\"ذكر\",\"أنثى\"))","v":""},null,null,null,"",null,null,null,null,"","","",null,null,null,null,null,null,null,null,null,null,null,null,null,null,null,null,null,null,null,null,null,null,"","","","",null,null,null,null,"","",""]
[{"$f":"IF(F201=\"\",\"\",A200+1)","v":""},null,null,null,null,null,{"$f":"RIGHT(LEFT(E201,7),2)","v":""},{"$f":"RIGHT(LEFT(E201,5),2)","v":""},{"$f":"IF(E201=\"\",\"\",IF(ISODD(MID(E201,1,1)),MID(E201,2,2)+2000,MID(E201,2,2)+1900))","v":""},"",{"$f":"IF(J201=\"\",\"\",$K$4+J201-1)","v":""},null,"",null,null,null,{"$f":"IF(F201=\"\",\"\",\"الغربية\")","v":""},null,null,null,null,{"$f":"IF(U201=\"\",\"\",DATEDIF(U201,$V$3,\"md\"))","v":""},{"$f":"IF(U201=\"\",\"\",DATEDIF(U201,$V$3,\"ym\"))","v":""},{"$f":"IF(U201=\"\",\"\",DATEDIF(U201,$V$3,\"y\"))","v":""},null,null,null,null,null,null,null,null,null,null,null,null,null,null,null,null,null,null,null,null,null,null,{"$f":"IF(U201=\"\",\"\",DATEDIF(U201,$AU$3,\"md\"))","v":""},{"$f":"IF(U201=\"\",\"\",DATEDIF(U201,$AU$3,\"ym\"))","v":""},{"$f":"IF(U201=\"\",\"\",DATEDIF(U201,$AU$3,\"y\"))","v":""},"",null,null,null,null,{"$f":"IF(A201=\"\",\"\",A201)","v":""},{"$f":"IF(D201=\"\",\"\",D201)","v":""},{"$f":"IF(F201=\"\",\"\",F201)","v":""}]
["",null,null,null,null,null,"","","","","",null,"",null,null,null,"",null,null,null,null,"","","",null,null,null,null,null,null,null,null,null,null,null,null,null,null,null,null,null,null,null,null,null,null,"","","",{"$f":"IF(J202=\"\",\"\",$AX$3+J202-1)","v":""},null,null,null,null,"","",""]
["",null,null,null,null,null,"","","","","",null,"",null,null,null,"",null,null,null,null,"","","",null,null,null,null,null,null,null,null,null,null,null,null,null,null,null,null,null,null,null,null,null,null,"","","","",null,null,null,null,"","",""]
["",null,null,null,null,null,"","","","","",null,"",null,null,null,"",null,null,null,null,"","","",null,null,null,null,null,null,null,null,null,null,null,null,null,null,null,null,null,null,null,null,null,null,"","","","",null,null,null,null,"","",""]
["",null,null,null,null,null,"","","","","",null,"",null,null,null,"",null,null,null,null,"","","",null,null,null,null,null,null,null,null,null,null,null,null,null,null,null,null,null,null,null,null,null,null,"","","","",null,null,null,null,"","",""]
["",null,null,null,null,null,"","","","","",null,"",null,null,null,"",null,null,null,null,"","","",null,null,null,null,null,null,null,null,null,null,null,null,null,null,null,null,null,null,null,null,null,null,"","","","",null,null,null,null,"","",""]
["",null,null,null,null,null,"","","","","",null,"",null,null,null,"",null,null,null,null,"","","",null,null,null,null,null,null,null,null,null,null,null,null,null,null,null,null,null,null,null,null,null,null,"","","","",null,null,null,null,"","",""]
["",null,null,null,null,null,"","","","","",null,"",null,null,null,"",null,null,null,null,"","","",null,null,null,null,null,null,null,null,null,null,null,null,null,null,null,null,null,null,null,null,null,null,"","","","",null,null,null,null,"","",""]
["",null,null,null,null,null,"","","","","",null,"",null,null,null,"",null,null,null,null,"","","",null,null,null,null,null,null,null,null,null,null,null,null,null,null,null,null,null,null,null,null,null,null,"","","","",null,null,null,null,"","",""]
["",null,null,null,null,null,"","","","","",null,"",null,null,null,"",null,null,null,null,"","","",null,null,null,null,null,null,null,null,null,null,null,null,null,null,null,null,null,null,null,null,null,null,"","","","",null,null,null,null,"","",""]
["",null,null,null,null,null,"","","","","",null,"",null,null,null,"",null,null,null,null,"","","",null,null,null,null,null,null,null,null,null,null,null,null,null,null,null,null,null,null,null,null,null,null,"","","","",null,null,null,null,"","",""]
["",null,null,null,null,null,"","","","","",null,"",null,null,null,"",null,null,null,null,"","","",null,null,null,null,null,null,null,null,null,null,null,null,null,null,null,null,null,null,null,null,null,null,"","","","",null,null,null,null,"","",""]
["",null,null,null,null,null,"","","","","",null,"",null,null,null,"",null,null,null,null,"","","",null,null,null,null,null,null,null,null,null,null,null,null,null,null,null,null,null,null,null,null,null,null,"","","","",null,null,null,null,"","",""]
["",null,null,null,null,null,"","","","","",null,"",null,null,null,"",null,null,null,null,"","","",null,null,null,null,null,null,null,null,null,null,null,null,null,null,null,null,null,null,null,null,null,null,"","","","",null,null,null,null,"","",""]
["",null,null,null,null,null,"","","","","",null,"",null,null,null,"",null,null,null,null,"","","",null,null,null,null,null,null,null,null,null,null,null,null,null,null,null,null,null,null,null,null,null,null,"","","","",null,null,null,null,"","",""]
["",null,null,null,null,null,"","","","","",null,"",null,null,null,"",null,null,null,null,"","","",null,null,null,null,null,null,null,null,null,null,null,null,null,null,null,null,null,null,null,null,null,null,"","","","",null,null,null,null,"","",""]
["",null,null,null,null,null,"","","","","",null,"",null,null,null,"",null,null,null,null,"","","",null,null,null,null,null,null,null,null,null,null,null,null,null,null,null,null,null,null,null,null,null,null,"","","","",null,null,null,null,"","",""]
["",null,null,null,null,null,"","","","","",null,"",null,null,null,"",null,null,null,null,"","","",null,null,null,null,null,null,null,null,null,null,null,null,null,null,null,null,null,null,null,null,null,null,"","","","",null,null,null,null,"","",""]
["",null,null,null,null,null,"","","","","",null,"",null,null,null,"",null,null,null,null,"","","",null,null,null,null,null,null,null,null,null,null,null,null,null,null,null,null,null,null,null,null,null,null,"","","","",null,null,null,null,"","",""]
["",null,null,null,null,null,"","","","","",null,"",null,null,null,"",null,null,null,null,"","","",null,null,null,null,null,null,null,null,null,null,null,null,null,null,null,null,null,null,null,null,null,null,"","","","",null,null,null,null,"","",""]
["",null,null,null,null,null,"","","","","",null,"",null,null,null,"",null,null,null,null,"","","",null,null,null,null,null,null,null,null,null,null,null,null,null,null,null,null,null,null,null,null,null,null,"","","","",null,null,null,null,"","",""]
["",null,null,null,null,null,"","","","","",null,"",null,null,null,"",null,null,null,null,"","","",null,null,null,null,null,null,null,null,null,null,null,null,null,null,null,null,null,null,null,null,null,null,"","","","",null,null,null,null,"","",""]
["",null,null,null,null,null,"","","","","",null,"",null,null,null,"",null,null,null,null,"","","",null,null,null,null,null,null,null,null,null,null,null,null,null,null,null,null,null,null,null,null,null,null,"","","","",null,null,null,null,"","",""]
["",null,null,null,null,null,"","","","","",null,"",null,null,null,"",null,null,null,null,"","","",null,null,null,null,null,null,null,null,null,null,null,null,null,null,null,null,null,null,null,null,null,null,"","","","",null,null,null,null,"","",""]
["",null,null,null,null,null,"","","","","",null,"",null,null,null,"",null,null,null,null,"","","",null,null,null,null,null,null,null,null,null,null,null,null,null,null,null,null,null,null,null,null,null,null,"","","","",null,null,null,null,"","",""]
["",null,null,null,null,null,"","","","","",null,"",null,null,null,"",null,null,null,null,"","","",null,null,null,null,null,null,null,null,null,null,null,null,null,null,null,null,null,null,null,null,null,null,"","","","",null,null,null,null,"","",""]
["",null,null,null,null,null,"","","","","",null,"",null,null,null,"",null,null,null,null,"","","",null,null,null,null,null,null,null,null,null,null,null,null,null,null,null,null,null,null,null,null,null,null,"","","","",null,null,null,null,"","",""]
["",null,null,null,null,null,"","","","","",null,"",null,null,null,"",null,null,null,null,"","","",null,null,null,null,null,null,null,null,null,null,null,null,null,null,null,null,null,null,null,null,null,null,"","","","",null,null,null,null,"","",""]
["",null,null,null,null,null,"","","","","",null,"",null,null,null,"",null,null,null,null,"","","",null,null,null,null,null,null,null,null,null,null,null,null,null,null,null,null,null,null,null,null,null,null,"","","","",null,null,null,null,"","",""]
["",null,null,null,null,null,"","","","","",null,"",null,null,null,"",null,null,null,null,"","","",null,null,null,null,null,null,null,null,null,null,null,null,null,null,null,null,null,null,null,null,null,null,"","","","",null,null,null,null,"","",""]
["",null,null,null,null,null,"","","","","",null,"",null,null,null,"",null,null,null,null,"","","",null,null,null,null,null,null,null,null,null,null,null,null,null,null,null,null,null,null,null,null,null,null,"","","","",null,null,null,null,"","",""]
["",null,null,null,null,null,"","","","","",null,"",null,null,null,"",null,null,null,null,"","","",null,null,null,null,null,null,null,null,null,null,null,null,null,null,null,null,null,null,null,null,null,null,"","","","",null,null,null,null,"","",""]
["",null,null,null,null,null,"","","","","",null,"",null,null,null,"",null,null,null,null,"","","",null,null,null,null,null,null,null,null,null,null,null,null,null,null,null,null,null,null,null,null,null,null,"","","","",null,null,null,null,"","",""]
["",null,null,null,null,null,"","","","","",null,"",null,null,null,"",null,null,null,null,"","","",null,null,null,null,null,null,null,null,null,null,null,null,null,null,null,null,null,null,null,null,null,null,"","","","",null,null,null,null,"","",""]
["",null,null,null,null,null,"","","","","",null,"",null,null,null,"",null,null,null,null,"","","",null,null,null,null,null,null,null,null,null,null,null,null,null,null,null,null,null,null,null,null,null,null,"","","","",null,null,null,null,"","",""]
["",null,null,null,null,null,"","","","","",null,"",null,null,null,"",null,null,null,null,"","","",null,null,null,null,null,null,null,null,null,null,null,null,null,null,null,null,null,null,null,null,null,null,"","","","",null,null,null,null,"","",""]
["",null,null,null,null,null,"","","","","",null,"",null,null,null,"",null,null,null,null,"","","",null,null,null,null,null,null,null,null,null,null,null,null,null,null,null,null,null,null,null,null,null,null,"","","","",null,null,null,null,"","",""]
["",null,null,null,null,null,"","","","","",null,"",null,null,null,"",null,null,null,null,"","","",null,null,null,null,null,null,null,null,null,null,null,null,null,null,null,null,null,null,null,null,null,null,"","","","",null,null,null,null,"","",""]
["",null,null,null,null,null,"","","","","",null,"",null,null,null,"",null,null,null,null,"","","",null,null,null,null,null,null,null,null,null,null,null,null,null,null,null,null,null,null,null,null,null,null,"","","","",null,null,null,null,"","",""]
["",null,null,null,null,null,"","","","","",null,"",null,null,null,"",null,null,null,null,"","","",null,null,null,null,null,null,null,null,null,null,null,null,null,null,null,null,null,null,null,null,null,null,"","","","",null,null,null,null,"","",""]
["",null,null,null,null,null,"","","","","",null,"",null,null,null,"",null,null,null,null,"","","",null,null,null,null,null,null,null,null,null,null,null,null,null,null,null,null,null,null,null,null,null,null,"","","","",null,null,null,null,"","",""]
["",null,null,null,null,null,"","","","","",null,"",null,null,null,"",null,null,null,null,"","","",null,null,null,null,null,null,null,null,null,null,null,null,null,null,null,null,null,null,null,null,null,null,"","","","",null,null,null,null,"","",""]
["",null,null,null,null,null,"","","","","",null,"",null,null,null,"",null,null,null,null,"","","",null,null,null,null,null,null,null,null,null,null,null,null,null,null,null,null,null,null,null,null,null,null,"","","","",null,null,null,null,"","",""]
["",null,null,null,null,null,"","","","","",null,"",null,null,null,"",null,null,null,null,"","","",null,null,null,null,null,null,null,null,null,null,null,null,null,null,null,null,null,null,null,null,null,null,"","","","",null,null,null,null,"","",""]
["",null,null,null,null,null,"","","","","",null,"",null,null,null,"",null,null,null,null,"","","",null,null,null,null,null,null,null,null,null,null,null,null,null,null,null,null,null,null,null,null,null,null,"","","","",null,null,null,null,"","",""]
["",null,null,null,null,null,"","","","","",null,"",null,null,null,"",null,null,null,null,"","","",null,null,null,null,null,null,null,null,null,null,null,null,null,null,null,null,null,null,null,null,null,null,"","","","",null,null,null,null,"","",""]
["",null,null,null,null,null,"","","","","",null,"",null,null,null,"",null,null,null,null,"","","",null,null,null,null,null,null,null,null,null,null,null,null,null,null,null,null,null,null,null,null,null,null,"","","","",null,null,null,null,"","",""]
["",null,null,null,null,null,"","","","","",null,"",null,null,null,"",null,null,null,null,"","","",null,null,null,null,null,null,null,null,null,null,null,null,null,null,null,null,null,null,null,null,null,null,"","","","",null,null,null,null,"","",""]
["",null,null,null,null,null,"","","","","",null,"",null,null,null,"",null,null,null,null,"","","",null,null,null,null,null,null,null,null,null,null,null,null,null,null,null,null,null,null,null,null,null,null,"","","","",null,null,null,null,"","",""]
["",null,null,null,null,null,"","","","","",null,"",null,null,null,"",null,null,null,null,"","","",null,null,null,null,null,null,null,null,null,null,null,null,null,null,null,null,null,null,null,null,null,null,"","","","",null,null,null,null,"","",""]
["",null,null,null,null,null,"","","","","",null,"",null,null,null,"",null,null,null,null,"","","",null,null,null,null,null,null,null,null,null,null,null,null,null,null,null,null,null,null,null,null,null,null,"","","","",null,null,null,null,"","",""]
["",null,null,null,null,null,"","","","","",null,"",null,null,null,"",null,null,null,null,"","","",null,null,null,null,null,null,null,null,null,null,null,null,null,null,null,null,null,null,null,null,null,null,"","","","",null,null,null,null,"","",""]
["",null,null,null,null,null,"","","","","",null,"",null,null,null,"",null,null,null,null,"","","",null,null,null,null,null,null,null,null,null,null,null,null,null,null,null,null,null,null,null,null,null,null,"","","","",null,null,null,null,"","",""]
["",null,null,null,null,null,"","","","","",null,"",null,null,null,"",null,null,null,null,"","","",null,null,null,null,null,null,null,null,null,null,null,null,null,null,null,null,null,null,null,null,null,null,"","","","",null,null,null,null,"","",""]
["",null,null,null,null,null,"","","","","",null,"",null,null,null,"",null,null,null,null,"","","",null,null,null,null,null,null,null,null,null,null,null,null,null,null,null,null,null,null,null,null,null,null,"","","","",null,null,null,null,"","",""]
["",null,null,null,null,null,"","","","","",null,"",null,null,null,"",null,null,null,null,"","","",null,null,null,null,null,null,null,null,null,null,null,null,null,null,null,null,null,null,null,null,null,null,"","","","",null,null,null,null,"","",""]
["",null,null,null,null,null,"","","","","",null,"",null,null,null,"",null,null,null,null,"","","",null,null,null,null,null,null,null,null,null,null,null,null,null,null,null,null,null,null,null,null,null,null,"","","","",null,null,null,null,"","",""]
["",null,null,null,null,null,"","","","","",null,"",null,null,null,"",null,null,null,null,"","","",null,null,null,null,null,null,null,null,null,null,null,null,null,null,null,null,null,null,null,null,null,null,"","","","",null,null,null,null,"","",""]
["",null,null,null,null,null,"","","","","",null,"",null,null,null,"",null,null,null,null,"","","",null,null,null,null,null,null,null,null,null,null,null,null,null,null,null,null,null,null,null,null,null,null,"","","","",null,null,null,null,"","",""]
["",null,null,null,null,null,"","","","","",null,"",null,null,null,"",null,null,null,null,"","","",null,null,null,null,null,null,null,null,null,null,null,null,null,null,null,null,null,null,null,null,null,null,"","","","",null,null,null,null,"","",""]
["",null,null,null,null,null,"","","","","",null,"",null,null,null,"",null,null,null,null,"","","",null,null,null,null,null,null,null,null,null,null,null,null,null,null,null,null,null,null,null,null,null,null,"","","","",null,null,null,null,"","",""]
["",null,null,null,null,null,"","","","","",null,"",null,null,null,"",null,null,null,null,"","","",null,null,null,null,null,null,null,null,null,null,null,null,null,null,null,null,null,null,null,null,null,null,"","","","",null,null,null,null,"","",""]
["",null,null,null,null,null,"","","","","",null,"",null,null,null,"",null,null,null,null,"","","",null,null,null,null,null,null,null,null,null,null,null,null,null,null,null,null,null,null,null,null,null,null,"","","","",null,null,null,null,"","",""]
["",null,null,null,null,null,"","","",{"$f":"IF(E264=\"\",\"\",DATE(I264,H264,G264))","v":""},"",null,{"$f":"IF(E264=\"\",\"\",IF(ISODD(MID(E264,13,1)),\"ذكر\",\"أنثى\"))","v":""},null,null,null,"",null,null,null,null,"","","",null,null,null,null,null,null,null,null,null,null,null,null,null,null,null,null,null,null,null,null,null,null,"","","","",null,null,null,null,"","",""]
[{"$f":"IF(F265=\"\",\"\",A264+1)","v":""},null,null,null,null,null,{"$f":"RIGHT(LEFT(E265,7),2)","v":""},{"$f":"RIGHT(LEFT(E265,5),2)","v":""},{"$f":"IF(E265=\"\",\"\",IF(ISODD(MID(E265,1,1)),MID(E265,2,2)+2000,MID(E265,2,2)+1900))","v":""},"",{"$f":"IF(J265=\"\",\"\",$K$4+J265-1)","v":""},null,"",null,null,null,{"$f":"IF(F265=\"\",\"\",\"الغربية\")","v":""},null,null,null,null,{"$f":"IF(U265=\"\",\"\",DATEDIF(U265,$V$3,\"md\"))","v":""},{"$f":"IF(U265=\"\",\"\",DATEDIF(U265,$V$3,\"ym\"))","v":""},{"$f":"IF(U265=\"\",\"\",DATEDIF(U265,$V$3,\"y\"))","v":""},null,null,null,null,null,null,null,null,null,null,null,null,null,null,null,null,null,null,null,null,null,null,{"$f":"IF(U265=\"\",\"\",DATEDIF(U265,$AU$3,\"md\"))","v":""},{"$f":"IF(U265=\"\",\"\",DATEDIF(U265,$AU$3,\"ym\"))","v":""},{"$f":"IF(U265=\"\",\"\",DATEDIF(U265,$AU$3,\"y\"))","v":""},"",null,null,null,null,{"$f":"IF(A265=\"\",\"\",A265)","v":""},{"$f":"IF(D265=\"\",\"\",D265)","v":""},{"$f":"IF(F265=\"\",\"\",F265)","v":""}]
["",null,null,null,null,null,"","","","","",null,"",null,null,null,"",null,null,null,null,"","","",null,null,null,null,null,null,null,null,null,null,null,null,null,null,null,null,null,null,null,null,null,null,"","","",{"$f":"IF(J266=\"\",\"\",$AX$3+J266-1)","v":""},null,null,null,null,"","",""]
["",null,null,null,null,null,"","","","","",null,"",null,null,null,"",null,null,null,null,"","","",null,null,null,null,null,null,null,null,null,null,null,null,null,null,null,null,null,null,null,null,null,null,"","","","",null,null,null,null,"","",""]
["",null,null,null,null,null,"","","","","",null,"",null,null,null,"",null,null,null,null,"","","",null,null,null,null,null,null,null,null,null,null,null,null,null,null,null,null,null,null,null,null,null,null,"","","","",null,null,null,null,"","",""]
["",null,null,null,null,null,"","","","","",null,"",null,null,null,"",null,null,null,null,"","","",null,null,null,null,null,null,null,null,null,null,null,null,null,null,null,null,null,null,null,null,null,null,"","","","",null,null,null,null,"","",""]
["",null,null,null,null,null,"","","","","",null,"",null,null,null,"",null,null,null,null,"","","",null,null,null,null,null,null,null,null,null,null,null,null,null,null,null,null,null,null,null,null,null,null,"","","","",null,null,null,null,"","",""]
["",null,null,null,null,null,"","","","","",null,"",null,null,null,"",null,null,null,null,"","","",null,null,null,null,null,null,null,null,null,null,null,null,null,null,null,null,null,null,null,null,null,null,"","","","",null,null,null,null,"","",""]
["",null,null,null,null,null,"","","","","",null,"",null,null,null,"",null,null,null,null,"","","",null,null,null,null,null,null,null,null,null,null,null,null,null,null,null,null,null,null,null,null,null,null,"","","","",null,null,null,null,"","",""]
["",null,null,null,null,null,"","","","","",null,"",null,null,null,"",null,null,null,null,"","","",null,null,null,null,null,null,null,null,null,null,null,null,null,null,null,null,null,null,null,null,null,null,"","","","",null,null,null,null,"","",""]
["",null,null,null,null,null,"","","","","",null,"",null,null,null,"",null,null,null,null,"","","",null,null,null,null,null,null,null,null,null,null,null,null,null,null,null,null,null,null,null,null,null,null,"","","","",null,null,null,null,"","",""]
["",null,null,null,null,null,"","","","","",null,"",null,null,null,"",null,null,null,null,"","","",null,null,null,null,null,null,null,null,null,null,null,null,null,null,null,null,null,null,null,null,null,null,"","","","",null,null,null,null,"","",""]
["",null,null,null,null,null,"","","","","",null,"",null,null,null,"",null,null,null,null,"","","",null,null,null,null,null,null,null,null,null,null,null,null,null,null,null,null,null,null,null,null,null,null,"","","","",null,null,null,null,"","",""]
["",null,null,null,null,null,"","","","","",null,"",null,null,null,"",null,null,null,null,"","","",null,null,null,null,null,null,null,null,null,null,null,null,null,null,null,null,null,null,null,null,null,null,"","","","",null,null,null,null,"","",""]
["",null,null,null,null,null,"","","","","",null,"",null,null,null,"",null,null,null,null,"","","",null,null,null,null,null,null,null,null,null,null,null,null,null,null,null,null,null,null,null,null,null,null,"","","","",null,null,null,null,"","",""]
["",null,null,null,null,null,"","","","","",null,"",null,null,null,"",null,null,null,null,"","","",null,null,null,null,null,null,null,null,null,null,null,null,null,null,null,null,null,null,null,null,null,null,"","","","",null,null,null,null,"","",""]
["",null,null,null,null,null,"","","","","",null,"",null,null,null,"",null,null,null,null,"","","",null,null,null,null,null,null,null,null,null,null,null,null,null,null,null,null,null,null,null,null,null,null,"","","","",null,null,null,null,"","",""]
["",null,null,null,null,null,"","","","","",null,"",null,null,null,"",null,null,null,null,"","","",null,null,null,null,null,null,null,null,null,null,null,null,null,null,null,null,null,null,null,null,null,null,"","","","",null,null,null,null,"","",""]
["",null,null,null,null,null,"","","","","",null,"",null,null,null,"",null,null,null,null,"","","",null,null,null,null,null,null,null,null,null,null,null,null,null,null,null,null,null,null,null,null,null,null,"","","","",null,null,null,null,"","",""]
["",null,null,null,null,null,"","","","","",null,"",null,null,null,"",null,null,null,null,"","","",null,null,null,null,null,null,null,null,null,null,null,null,null,null,null,null,null,null,null,null,null,null,"","","","",null,null,null,null,"","",""]
["",null,null,null,null,null,"","","","","",null,"",null,null,null,"",null,null,null,null,"","","",null,null,null,null,null,null,null,null,null,null,null,null,null,null,null,null,null,null,null,null,null,null,"","","","",null,null,null,null,"","",""]
["",null,null,null,null,null,"","","","","",null,"",null,null,null,"",null,null,null,null,"","","",null,null,null,null,null,null,null,null,null,null,null,null,null,null,null,null,null,null,null,null,null,null,"","","","",null,null,null,null,"","",""]
["",null,null,null,null,null,"","","","","",null,"",null,null,null,"",null,null,null,null,"","","",null,null,null,null,null,null,null,null,null,null,null,null,null,null,null,null,null,null,null,null,null,null,"","","","",null,null,null,null,"","",""]
["",null,null,null,null,null,"","","","","",null,"",null,null,null,"",null,null,null,null,"","","",null,null,null,null,null,null,null,null,null,null,null,null,null,null,null,null,null,null,null,null,null,null,"","","","",null,null,null,null,"","",""]
["",null,null,null,null,null,"","","","","",null,"",null,null,null,"",null,null,null,null,"","","",null,null,null,null,null,null,null,null,null,null,null,null,null,null,null,null,null,null,null,null,null,null,"","","","",null,null,null,null,"","",""]
["",null,null,null,null,null,"","","","","",null,"",null,null,null,"",null,null,null,null,"","","",null,null,null,null,null,null,null,null,null,null,null,null,null,null,null,null,null,null,null,null,null,null,"","","","",null,null,null,null,"","",""]
["",null,null,null,null,null,"","","","","",null,"",null,null,null,"",null,null,null,null,"","","",null,null,null,null,null,null,null,null,null,null,null,null,null,null,null,null,null,null,null,null,null,null,"","","","",null,null,null,null,"","",""]
["",null,null,null,null,null,"","","","","",null,"",null,null,null,"",null,null,null,null,"","","",null,null,null,null,null,null,null,null,null,null,null,null,null,null,null,null,null,null,null,null,null,null,"","","","",null,null,null,null,"","",""]
["",null,null,null,null,null,"","","","","",null,"",null,null,null,"",null,null,null,null,"","","",null,null,null,null,null,null,null,null,null,null,null,null,null,null,null,null,null,null,null,null,null,null,"","","","",null,null,null,null,"","",""]
["",null,null,null,null,null,"","","","","",null,"",null,null,null,"",null,null,null,null,"","","",null,null,null,null,null,null,null,null,null,null,null,null,null,null,null,null,null,null,null,null,null,null,"","","","",null,null,null,null,"","",""]
["",null,null,null,null,null,"","","","","",null,"",null,null,null,"",null,null,null,null,"","","",null,null,null,null,null,null,null,null,null,null,null,null,null,null,null,null,null,null,null,null,null,null,"","","","",null,null,null,null,"","",""]
["",null,null,null,null,null,"","","","","",null,"",null,null,null,"",null,null,null,null,"","","",null,null,null,null,null,null,null,null,null,null,null,null,null,null,null,null,null,null,null,null,null,null,"","","","",null,null,null,null,"","",""]
["",null,null,null,null,null,"","","","","",null,"",null,null,null,"",null,null,null,null,"","","",null,null,null,null,null,null,null,null,null,null,null,null,null,null,null,null,null,null,null,null,null,null,"","","","",null,null,null,null,"","",""]
["",null,null,null,null,null,"","","","","",null,"",null,null,null,"",null,null,null,null,"","","",null,null,null,null,null,null,null,null,null,null,null,null,null,null,null,null,null,null,null,null,null,null,"","","","",null,null,null,null,"","",""]
["",null,null,null,null,null,"","","","","",null,"",null,null,null,"",null,null,null,null,"","","",null,null,null,null,null,null,null,null,null,null,null,null,null,null,null,null,null,null,null,null,null,null,"","","","",null,null,null,null,"","",""]
["",null,null,null,null,null,"","","","","",null,"",null,null,null,"",null,null,null,null,"","","",null,null,null,null,null,null,null,null,null,null,null,null,null,null,null,null,null,null,null,null,null,null,"","","","",null,null,null,null,"","",""]
["",null,null,null,null,null,"","","","","",null,"",null,null,null,"",null,null,null,null,"","","",null,null,null,null,null,null,null,null,null,null,null,null,null,null,null,null,null,null,null,null,null,null,"","","","",null,null,null,null,"","",""]
["",null,null,null,null,null,"","","","","",null,"",null,null,null,"",null,null,null,null,"","","",null,null,null,null,null,null,null,null,null,null,null,null,null,null,null,null,null,null,null,null,null,null,"","","","",null,null,null,null,"","",""]
["",null,null,null,null,null,"","","","","",null,"",null,null,null,"",null,null,null,null,"","","",null,null,null,null,null,null,null,null,null,null,null,null,null,null,null,null,null,null,null,null,null,null,"","","","",null,null,null,null,"","",""]
["",null,null,null,null,null,"","","","","",null,"",null,null,null,"",null,null,null,null,"","","",null,null,null,null,null,null,null,null,null,null,null,null,null,null,null,null,null,null,null,null,null,null,"","","","",null,null,null,null,"","",""]
["",null,null,null,null,null,"","","","","",null,"",null,null,null,"",null,null,null,null,"","","",null,null,null,null,null,null,null,null,null,null,null,null,null,null,null,null,null,null,null,null,null,null,"","","","",null,null,null,null,"","",""]
["",null,null,null,null,null,"","","","","",null,"",null,null,null,"",null,null,null,null,"","","",null,null,null,null,null,null,null,null,null,null,null,null,null,null,null,null,null,null,null,null,null,null,"","","","",null,null,null,null,"","",""]
["",null,null,null,null,null,"","","","","",null,"",null,null,null,"",null,null,null,null,"","","",null,null,null,null,null,null,null,null,null,null,null,null,null,null,null,null,null,null,null,null,null,null,"","","","",null,null,null,null,"","",""]
["",null,null,null,null,null,"","","","","",null,"",null,null,null,"",null,null,null,null,"","","",null,null,null,null,null,null,null,null,null,null,null,null,null,null,null,null,null,null,null,null,null,null,"","","","",null,null,null,null,"","",""]
["",null,null,null,null,null,"","","","","",null,"",null,null,null,"",null,null,null,null,"","","",null,null,null,null,null,null,null,null,null,null,null,null,null,null,null,null,null,null,null,null,null,null,"","","","",null,null,null,null,"","",""]
["",null,null,null,null,null,"","","","","",null,"",null,null,null,"",null,null,null,null,"","","",null,null,null,null,null,null,null,null,null,null,null,null,null,null,null,null,null,null,null,null,null,null,"","","","",null,null,null,null,"","",""]
["",null,null,null,null,null,"","","","","",null,"",null,null,null,"",null,null,null,null,"","","",null,null,null,null,null,null,null,null,null,null,null,null,null,null,null,null,null,null,null,null,null,null,"","","","",null,null,null,null,"","",""]
["",null,null,null,null,null,"","","","","",null,"",null,null,null,"",null,null,null,null,"","","",null,null,null,null,null,null,null,null,null,null,null,null,null,null,null,null,null,null,null,null,null,null,"","","","",null,null,null,null,"","",""]
["",null,null,null,null,null,"","","","","",null,"",null,null,null,"",null,null,null,null,"","","",null,null,null,null,null,null,null,null,null,null,null,null,null,null,null,null,null,null,null,null,null,null,"","","","",null,null,null,null,"","",""]
["",null,null,null,null,null,"","","","","",null,"",null,null,null,"",null,null,null,null,"","","",null,null,null,null,null,null,null,null,null,null,null,null,null,null,null,null,null,null,null,null,null,null,"","","","",null,null,null,null,"","",""]
["",null,null,null,null,null,"","","","","",null,"",null,null,null,"",null,null,null,null,"","","",null,null,null,null,null,null,null,null,null,null,null,null,null,null,null,null,null,null,null,null,null,null,"","","","",null,null,null,null,"","",""]
["",null,null,null,null,null,"","","","","",null,"",null,null,null,"",null,null,null,null,"","","",null,null,null,null,null,null,null,null,null,null,null,null,null,null,null,null,null,null,null,null,null,null,"","","","",null,null,null,null,"","",""]
["",null,null,null,null,null,"","","","","",null,"",null,null,null,"",null,null,null,null,"","","",null,null,null,null,null,null,null,null,null,null,null,null,null,null,null,null,null,null,null,null,null,null,"","","","",null,null,null,null,"","",""]
["",null,null,null,null,null,"","","","","",null,"",null,null,null,"",null,null,null,null,"","","",null,null,null,null,null,null,null,null,null,null,null,null,null,null,null,null,null,null,null,null,null,null,"","","","",null,null,null,null,"","",""]
["",null,null,null,null,null,"","","","","",null,"",null,null,null,"",null,null,null,null,"","","",null,null,null,null,null,null,null,null,null,null,null,null,null,null,null,null,null,null,null,null,null,null,"","","","",null,null,null,null,"","",""]
["",null,null,null,null,null,"","","","","",null,"",null,null,null,"",null,null,null,null,"","","",null,null,null,null,null,null,null,null,null,null,null,null,null,null,null,null,null,null,null,null,null,null,"","","","",null,null,null,null,"","",""]
["",null,null,null,null,null,"","","","","",null,"",null,null,null,"",null,null,null,null,"","","",null,null,null,null,null,null,null,null,null,null,null,null,null,null,null,null,null,null,null,null,null,null,"","","","",null,null,null,null,"","",""]
["",null,null,null,null,null,"","","","","",null,"",null,null,null,"",null,null,null,null,"","","",null,null,null,null,null,null,null,null,null,null,null,null,null,null,null,null,null,null,null,null,null,null,"","","","",null,null,null,null,"","",""]
["",null,null,null,null,null,"","","","","",null,"",null,null,null,"",null,null,null,null,"","","",null,null,null,null,null,null,null,null,null,null,null,null,null,null,null,null,null,null,null,null,null,null,"","","","",null,null,null,null,"","",""]
["",null,null,null,null,null,"","","","","",null,"",null,null,null,"",null,null,null,null,"","","",null,null,null,null,null,null,null,null,null,null,null,null,null,null,null,null,null,null,null,null,null,null,"","","","",null,null,null,null,"","",""]
["",null,null,null,null,null,"","","","","",null,"",null,null,null,"",null,null,null,null,"","","",null,null,null,null,null,null,null,null,null,null,null,null,null,null,null,null,null,null,null,null,null,null,"","","","",null,null,null,null,"","",""]
["",null,null,null,null,null,"","","","","",null,"",null,null,null,"",null,null,null,null,"","","",null,null,null,null,null,null,null,null,null,null,null,null,null,null,null,null,null,null,null,null,null,null,"","","","",null,null,null,null,"","",""]
["",null,null,null,null,null,"","","","","",null,"",null,null,null,"",null,null,null,null,"","","",null,null,null,null,null,null,null,null,null,null,null,null,null,null,null,null,null,null,null,null,null,null,"","","","",null,null,null,null,"","",""]
["",null,null,null,null,null,"","","","","",null,"",null,null,null,"",null,null,null,null,"","","",null,null,null,null,null,null,null,null,null,null,null,null,null,null,null,null,null,null,null,null,null,null,"","","","",null,null,null,null,"","",""]
["",null,null,null,null,null,"","","",{"$f":"IF(E328=\"\",\"\",DATE(I328,H328,G328))","v":""},"",null,{"$f":"IF(E328=\"\",\"\",IF(ISODD(MID(E328,13,1)),\"ذكر\",\"أنثى\"))","v":""},null,null,null,"",null,null,null,null,"","","",null,null,null,null,null,null,null,null,null,null,null,null,null,null,null,null,null,null,null,null,null,null,"","","","",null,null,null,null,"","",""]
[{"$f":"IF(F329=\"\",\"\",A328+1)","v":""},null,null,null,null,null,{"$f":"RIGHT(LEFT(E329,7),2)","v":""},{"$f":"RIGHT(LEFT(E329,5),2)","v":""},{"$f":"IF(E329=\"\",\"\",IF(ISODD(MID(E329,1,1)),MID(E329,2,2)+2000,MID(E329,2,2)+1900))","v":""},"",{"$f":"IF(J329=\"\",\"\",$K$4+J329-1)","v":""},null,"",null,null,null,{"$f":"IF(F329=\"\",\"\",\"الغربية\")","v":""},null,null,null,null,{"$f":"IF(U329=\"\",\"\",DATEDIF(U329,$V$3,\"md\"))","v":""},{"$f":"IF(U329=\"\",\"\",DATEDIF(U329,$V$3,\"ym\"))","v":""},{"$f":"IF(U329=\"\",\"\",DATEDIF(U329,$V$3,\"y\"))","v":""},null,null,null,null,null,null,null,null,null,null,null,null,null,null,null,null,null,null,null,null,null,null,{"$f":"IF(U329=\"\",\"\",DATEDIF(U329,$AU$3,\"md\"))","v":""},{"$f":"IF(U329=\"\",\"\",DATEDIF(U329,$AU$3,\"ym\"))","v":""},{"$f":"IF(U329=\"\",\"\",DATEDIF(U329,$AU$3,\"y\"))","v":""},"",null,null,null,null,{"$f":"IF(A329=\"\",\"\",A329)","v":""},{"$f":"IF(D329=\"\",\"\",D329)","v":""},{"$f":"IF(F329=\"\",\"\",F329)","v":""}]
["",null,null,null,null,null,"","","","","",null,"",null,null,null,"",null,null,null,null,"","","",null,null,null,null,null,null,null,null,null,null,null,null,null,null,null,null,null,null,null,null,null,null,"","","",{"$f":"IF(J330=\"\",\"\",$AX$3+J330-1)","v":""},null,null,null,null,"","",""]
["",null,null,null,null,null,"","","","","",null,"",null,null,null,"",null,null,null,null,"","","",null,null,null,null,null,null,null,null,null,null,null,null,null,null,null,null,null,null,null,null,null,null,"","","","",null,null,null,null,"","",""]
["",null,null,null,null,null,"","","","","",null,"",null,null,null,"",null,null,null,null,"","","",null,null,null,null,null,null,null,null,null,null,null,null,null,null,null,null,null,null,null,null,null,null,"","","","",null,null,null,null,"","",""]
["",null,null,null,null,null,"","","","","",null,"",null,null,null,"",null,null,null,null,"","","",null,null,null,null,null,null,null,null,null,null,null,null,null,null,null,null,null,null,null,null,null,null,"","","","",null,null,null,null,"","",""]
["",null,null,null,null,null,"","","","","",null,"",null,null,null,"",null,null,null,null,"","","",null,null,null,null,null,null,null,null,null,null,null,null,null,null,null,null,null,null,null,null,null,null,"","","","",null,null,null,null,"","",""]
["",null,null,null,null,null,"","","","","",null,"",null,null,null,"",null,null,null,null,"","","",null,null,null,null,null,null,null,null,null,null,null,null,null,null,null,null,null,null,null,null,null,null,"","","","",null,null,null,null,"","",""]
["",null,null,null,null,null,"","","","","",null,"",null,null,null,"",null,null,null,null,"","","",null,null,null,null,null,null,null,null,null,null,null,null,null,null,null,null,null,null,null,null,null,null,"","","","",null,null,null,null,"","",""]
["",null,null,null,null,null,"","","","","",null,"",null,null,null,"",null,null,null,null,"","","",null,null,null,null,null,null,null,null,null,null,null,null,null,null,null,null,null,null,null,null,null,null,"","","","",null,null,null,null,"","",""]
["",null,null,null,null,null,"","","","","",null,"",null,null,null,"",null,null,null,null,"","","",null,null,null,null,null,null,null,null,null,null,null,null,null,null,null,null,null,null,null,null,null,null,"","","","",null,null,null,null,"","",""]
["",null,null,null,null,null,"","","","","",null,"",null,null,null,"",null,null,null,null,"","","",null,null,null,null,null,null,null,null,null,null,null,null,null,null,null,null,null,null,null,null,null,null,"","","","",null,null,null,null,"","",""]
["",null,null,null,null,null,"","","","","",null,"",null,null,null,"",null,null,null,null,"","","",null,null,null,null,null,null,null,null,null,null,null,null,null,null,null,null,null,null,null,null,null,null,"","","","",null,null,null,null,"","",""]
["",null,null,null,null,null,"","","","","",null,"",null,null,null,"",null,null,null,null,"","","",null,null,null,null,null,null,null,null,null,null,null,null,null,null,null,null,null,null,null,null,null,null,"","","","",null,null,null,null,"","",""]
["",null,null,null,null,null,"","","","","",null,"",null,null,null,"",null,null,null,null,"","","",null,null,null,null,null,null,null,null,null,null,null,null,null,null,null,null,null,null,null,null,null,null,"","","","",null,null,null,null,"","",""]
["",null,null,null,null,null,"","","","","",null,"",null,null,null,"",null,null,null,null,"","","",null,null,null,null,null,null,null,null,null,null,null,null,null,null,null,null,null,null,null,null,null,null,"","","","",null,null,null,null,"","",""]
["",null,null,null,null,null,"","","","","",null,"",null,null,null,"",null,null,null,null,"","","",null,null,null,null,null,null,null,null,null,null,null,null,null,null,null,null,null,null,null,null,null,null,"","","","",null,null,null,null,"","",""]
["",null,null,null,null,null,"","","","","",null,"",null,null,null,"",null,null,null,null,"","","",null,null,null,null,null,null,null,null,null,null,null,null,null,null,null,null,null,null,null,null,null,null,"","","","",null,null,null,null,"","",""]
["",null,null,null,null,null,"","","","","",null,"",null,null,null,"",null,null,null,null,"","","",null,null,null,null,null,null,null,null,null,null,null,null,null,null,null,null,null,null,null,null,null,null,"","","","",null,null,null,null,"","",""]
["",null,null,null,null,null,"","","","","",null,"",null,null,null,"",null,null,null,null,"","","",null,null,null,null,null,null,null,null,null,null,null,null,null,null,null,null,null,null,null,null,null,null,"","","","",null,null,null,null,"","",""]
["",null,null,null,null,null,"","","","","",null,"",null,null,null,"",null,null,null,null,"","","",null,null,null,null,null,null,null,null,null,null,null,null,null,null,null,null,null,null,null,null,null,null,"","","","",null,null,null,null,"","",""]
["",null,null,null,null,null,"","","","","",null,"",null,null,null,"",null,null,null,null,"","","",null,null,null,null,null,null,null,null,null,null,null,null,null,null,null,null,null,null,null,null,null,null,"","","","",null,null,null,null,"","",""]
["",null,null,null,null,null,"","","","","",null,"",null,null,null,"",null,null,null,null,"","","",null,null,null,null,null,null,null,null,null,null,null,null,null,null,null,null,null,null,null,null,null,null,"","","","",null,null,null,null,"","",""]
["",null,null,null,null,null,"","","","","",null,"",null,null,null,"",null,null,null,null,"","","",null,null,null,null,null,null,null,null,null,null,null,null,null,null,null,null,null,null,null,null,null,null,"","","","",null,null,null,null,"","",""]
["",null,null,null,null,null,"","","","","",null,"",null,null,null,"",null,null,null,null,"","","",null,null,null,null,null,null,null,null,null,null,null,null,null,null,null,null,null,null,null,null,null,null,"","","","",null,null,null,null,"","",""]
["",null,null,null,null,null,"","","","","",null,"",null,null,null,"",null,null,null,null,"","","",null,null,null,null,null,null,null,null,null,null,null,null,null,null,null,null,null,null,null,null,null,null,"","","","",null,null,null,null,"","",""]
["",null,null,null,null,null,"","","","","",null,"",null,null,null,"",null,null,null,null,"","","",null,null,null,null,null,null,null,null,null,null,null,null,null,null,null,null,null,null,null,null,null,null,"","","","",null,null,null,null,"","",""]
["",null,null,null,null,null,"","","","","",null,"",null,null,null,"",null,null,null,null,"","","",null,null,null,null,null,null,null,null,null,null,null,null,null,null,null,null,null,null,null,null,null,null,"","","","",null,null,null,null,"","",""]
["",null,null,null,null,null,"","","","","",null,"",null,null,null,"",null,null,null,null,"","","",null,null,null,null,null,null,null,null,null,null,null,null,null,null,null,null,null,null,null,null,null,null,"","","","",null,null,null,null,"","",""]
["",null,null,null,null,null,"","","","","",null,"",null,null,null,"",null,null,null,null,"","","",null,null,null,null,null,null,null,null,null,null,null,null,null,null,null,null,null,null,null,null,null,null,"","","","",null,null,null,null,"","",""]
["",null,null,null,null,null,"","","","","",null,"",null,null,null,"",null,null,null,null,"","","",null,null,null,null,null,null,null,null,null,null,null,null,null,null,null,null,null,null,null,null,null,null,"","","","",null,null,null,null,"","",""]
["",null,null,null,null,null,"","","","","",null,"",null,null,null,"",null,null,null,null,"","","",null,null,null,null,null,null,null,null,null,null,null,null,null,null,null,null,null,null,null,null,null,null,"","","","",null,null,null,null,"","",""]
["",null,null,null,null,null,"","","","","",null,"",null,null,null,"",null,null,null,null,"","","",null,null,null,null,null,null,null,null,null,null,null,null,null,null,null,null,null,null,null,null,null,null,"","","","",null,null,null,null,"","",""]
["",null,null,null,null,null,"","","","","",null,"",null,null,null,"",null,null,null,null,"","","",null,null,null,null,null,null,null,null,null,null,null,null,null,null,null,null,null,null,null,null,null,null,"","","","",null,null,null,null,"","",""]
["",null,null,null,null,null,"","","","","",null,"",null,null,null,"",null,null,null,null,"","","",null,null,null,null,null,null,null,null,null,null,null,null,null,null,null,null,null,null,null,null,null,null,"","","","",null,null,null,null,"","",""]
["",null,null,null,null,null,"","","","","",null,"",null,null,null,"",null,null,null,null,"","","",null,null,null,null,null,null,null,null,null,null,null,null,null,null,null,null,null,null,null,null,null,null,"","","","",null,null,null,null,"","",""]
["",null,null,null,null,null,"","","","","",null,"",null,null,null,"",null,null,null,null,"","","",null,null,null,null,null,null,null,null,null,null,null,null,null,null,null,null,null,null,null,null,null,null,"","","","",null,null,null,null,"","",""]
["",null,null,null,null,null,"","","","","",null,"",null,null,null,"",null,null,null,null,"","","",null,null,null,null,null,null,null,null,null,null,null,null,null,null,null,null,null,null,null,null,null,null,"","","","",null,null,null,null,"","",""]
["",null,null,null,null,null,"","","","","",null,"",null,null,null,"",null,null,null,null,"","","",null,null,null,null,null,null,null,null,null,null,null,null,null,null,null,null,null,null,null,null,null,null,"","","","",null,null,null,null,"","",""]
["",null,null,null,null,null,"","","","","",null,"",null,null,null,"",null,null,null,null,"","","",null,null,null,null,null,null,null,null,null,null,null,null,null,null,null,null,null,null,null,null,null,null,"","","","",null,null,null,null,"","",""]
["",null,null,null,null,null,"","","","","",null,"",null,null,null,"",null,null,null,null,"","","",null,null,null,null,null,null,null,null,null,null,null,null,null,null,null,null,null,null,null,null,null,null,"","","","",null,null,null,null,"","",""]
["",null,null,null,null,null,"","","","","",null,"",null,null,null,"",null,null,null,null,"","","",null,null,null,null,null,null,null,null,null,null,null,null,null,null,null,null,null,null,null,null,null,null,"","","","",null,null,null,null,"","",""]
["",null,null,null,null,null,"","","","","",null,"",null,null,null,"",null,null,null,null,"","","",null,null,null,null,null,null,null,null,null,null,null,null,null,null,null,null,null,null,null,null,null,null,"","","","",null,null,null,null,"","",""]
["",null,null,null,null,null,"","","","","",null,"",null,null,null,"",null,null,null,null,"","","",null,null,null,null,null,null,null,null,null,null,null,null,null,null,null,null,null,null,null,null,null,null,"","","","",null,null,null,null,"","",""]
["",null,null,null,null,null,"","","","","",null,"",null,null,null,"",null,null,null,null,"","","",null,null,null,null,null,null,null,null,null,null,null,null,null,null,null,null,null,null,null,null,null,null,"","","","",null,null,null,null,"","",""]
["",null,null,null,null,null,"","","","","",null,"",null,null,null,"",null,null,null,null,"","","",null,null,null,null,null,null,null,null,null,null,null,null,null,null,null,null,null,null,null,null,null,null,"","","","",null,null,null,null,"","",""]
["",null,null,null,null,null,"","","","","",null,"",null,null,null,"",null,null,null,null,"","","",null,null,null,null,null,null,null,null,null,null,null,null,null,null,null,null,null,null,null,null,null,null,"","","","",null,null,null,null,"","",""]
["",null,null,null,null,null,"","","","","",null,"",null,null,null,"",null,null,null,null,"","","",null,null,null,null,null,null,null,null,null,null,null,null,null,null,null,null,null,null,null,null,null,null,"","","","",null,null,null,null,"","",""]
["",null,null,null,null,null,"","","","","",null,"",null,null,null,"",null,null,null,null,"","","",null,null,null,null,null,null,null,null,null,null,null,null,null,null,null,null,null,null,null,null,null,null,"","","","",null,null,null,null,"","",""]
["",null,null,null,null,null,"","","","","",null,"",null,null,null,"",null,null,null,null,"","","",null,null,null,null,null,null,null,null,null,null,null,null,null,null,null,null,null,null,null,null,null,null,"","","","",null,null,null,null,"","",""]
["",null,null,null,null,null,"","","","","",null,"",null,null,null,"",null,null,null,null,"","","",null,null,null,null,null,null,null,null,null,null,null,null,null,null,null,null,null,null,null,null,null,null,"","","","",null,null,null,null,"","",""]
["",null,null,null,null,null,"","","","","",null,"",null,null,null,"",null,null,null,null,"","","",null,null,null,null,null,null,null,null,null,null,null,null,null,null,null,null,null,null,null,null,null,null,"","","","",null,null,null,null,"","",""]
["",null,null,null,null,null,"","","","","",null,"",null,null,null,"",null,null,null,null,"","","",null,null,null,null,null,null,null,null,null,null,null,null,null,null,null,null,null,null,null,null,null,null,"","","","",null,null,null,null,"","",""]
["",null,null,null,null,null,"","","","","",null,"",null,null,null,"",null,null,null,null,"","","",null,null,null,null,null,null,null,null,null,null,null,null,null,null,null,null,null,null,null,null,null,null,"","","","",null,null,null,null,"","",""]
["",null,null,null,null,null,"","","","","",null,"",null,null,null,"",null,null,null,null,"","","",null,null,null,null,null,null,null,null,null,null,null,null,null,null,null,null,null,null,null,null,null,null,"","","","",null,null,null,null,"","",""]
["",null,null,null,null,null,"","","","","",null,"",null,null,null,"",null,null,null,null,"","","",null,null,null,null,null,null,null,null,null,null,null,null,null,null,null,null,null,null,null,null,null,null,"","","","",null,null,null,null,"","",""]
["",null,null,null,null,null,"","","","","",null,"",null,null,null,"",null,null,null,null,"","","",null,null,null,null,null,null,null,null,null,null,null,null,null,null,null,null,null,null,null,null,null,null,"","","","",null,null,null,null,"","",""]
["",null,null,null,null,null,"","","","","",null,"",null,null,null,"",null,null,null,null,"","","",null,null,null,null,null,null,null,null,null,null,null,null,null,null,null,null,null,null,null,null,null,null,"","","","",null,null,null,null,"","",""]
["",null,null,null,null,null,"","","","","",null,"",null,null,null,"",null,null,null,null,"","","",null,null,null,null,null,null,null,null,null,null,null,null,null,null,null,null,null,null,null,null,null,null,"","","","",null,null,null,null,"","",""]
["",null,null,null,null,null,"","","","","",null,"",null,null,null,"",null,null,null,null,"","","",null,null,null,null,null,null,null,null,null,null,null,null,null,null,null,null,null,null,null,null,null,null,"","","","",null,null,null,null,"","",""]
["",null,null,null,null,null,"","","","","",null,"",null,null,null,"",null,null,null,null,"","","",null,null,null,null,null,null,null,null,null,null,null,null,null,null,null,null,null,null,null,null,null,null,"","","","",null,null,null,null,"","",""]
["",null,null,null,null,null,"","","","","",null,"",null,null,null,"",null,null,null,null,"","","",null,null,null,null,null,null,null,null,null,null,null,null,null,null,null,null,null,null,null,null,null,null,"","","","",null,null,null,null,"","",""]
["",null,null,null,null,null,"","","","","",null,"",null,null,null,"",null,null,null,null,"","","",null,null,null,null,null,null,null,null,null,null,null,null,null,null,null,null,null,null,null,null,null,null,"","","","",null,null,null,null,"","",""]
["",null,null,null,null,null,"","","","","",null,"",null,null,null,"",null,null,null,null,"","","",null,null,null,null,null,null,null,null,null,null,null,null,null,null,null,null,null,null,null,null,null,null,"","","","",null,null,null,null,"","",""]
["",null,null,null,null,null,"","","",{"$f":"IF(E392=\"\",\"\",DATE(I392,H392,G392))","v":""},"",null,{"$f":"IF(E392=\"\",\"\",IF(ISODD(MID(E392,13,1)),\"ذكر\",\"أنثى\"))","v":""},null,null,null,"",null,null,null,null,"","","",null,null,null,null,null,null,null,null,null,null,null,null,null,null,null,null,null,null,null,null,null,null,"","","","",null,null,null,null,"","",""]
[{"$f":"IF(F393=\"\",\"\",A392+1)","v":""},null,null,null,null,null,{"$f":"RIGHT(LEFT(E393,7),2)","v":""},{"$f":"RIGHT(LEFT(E393,5),2)","v":""},{"$f":"IF(E393=\"\",\"\",IF(ISODD(MID(E393,1,1)),MID(E393,2,2)+2000,MID(E393,2,2)+1900))","v":""},"",{"$f":"IF(J393=\"\",\"\",$K$4+J393-1)","v":""},null,"",null,null,null,{"$f":"IF(F393=\"\",\"\",\"الغربية\")","v":""},null,null,null,null,{"$f":"IF(U393=\"\",\"\",DATEDIF(U393,$V$3,\"md\"))","v":""},{"$f":"IF(U393=\"\",\"\",DATEDIF(U393,$V$3,\"ym\"))","v":""},{"$f":"IF(U393=\"\",\"\",DATEDIF(U393,$V$3,\"y\"))","v":""},null,null,null,null,null,null,null,null,null,null,null,null,null,null,null,null,null,null,null,null,null,null,{"$f":"IF(U393=\"\",\"\",DATEDIF(U393,$AU$3,\"md\"))","v":""},{"$f":"IF(U393=\"\",\"\",DATEDIF(U393,$AU$3,\"ym\"))","v":""},{"$f":"IF(U393=\"\",\"\",DATEDIF(U393,$AU$3,\"y\"))","v":""},"",null,null,null,null,{"$f":"IF(A393=\"\",\"\",A393)","v":""},{"$f":"IF(D393=\"\",\"\",D393)","v":""},{"$f":"IF(F393=\"\",\"\",F393)","v":""}]
["",null,null,null,null,null,"","","","","",null,"",null,null,null,"",null,null,null,null,"","","",null,null,null,null,null,null,null,null,null,null,null,null,null,null,null,null,null,null,null,null,null,null,"","","",{"$f":"IF(J394=\"\",\"\",$AX$3+J394-1)","v":""},null,null,null,null,"","",""]
["",null,null,null,null,null,"","","","","",null,"",null,null,null,"",null,null,null,null,"","","",null,null,null,null,null,null,null,null,null,null,null,null,null,null,null,null,null,null,null,null,null,null,"","","","",null,null,null,null,"","",""]
["",null,null,null,null,null,"","","","","",null,"",null,null,null,"",null,null,null,null,"","","",null,null,null,null,null,null,null,null,null,null,null,null,null,null,null,null,null,null,null,null,null,null,"","","","",null,null,null,null,"","",""]
["",null,null,null,null,null,"","","","","",null,"",null,null,null,"",null,null,null,null,"","","",null,null,null,null,null,null,null,null,null,null,null,null,null,null,null,null,null,null,null,null,null,null,"","","","",null,null,null,null,"","",""]
["",null,null,null,null,null,"","","","","",null,"",null,null,null,"",null,null,null,null,"","","",null,null,null,null,null,null,null,null,null,null,null,null,null,null,null,null,null,null,null,null,null,null,"","","","",null,null,null,null,"","",""]
["",null,null,null,null,null,"","","","","",null,"",null,null,null,"",null,null,null,null,"","","",null,null,null,null,null,null,null,null,null,null,null,null,null,null,null,null,null,null,null,null,null,null,"","","","",null,null,null,null,"","",""]
["",null,null,null,null,null,"","","","","",null,"",null,null,null,"",null,null,null,null,"","","",null,null,null,null,null,null,null,null,null,null,null,null,null,null,null,null,null,null,null,null,null,null,"","","","",null,null,null,null,"","",""]
["",null,null,null,null,null,"","","","","",null,"",null,null,null,"",null,null,null,null,"","","",null,null,null,null,null,null,null,null,null,null,null,null,null,null,null,null,null,null,null,null,null,null,"","","","",null,null,null,null,"","",""]
["",null,null,null,null,null,"","","","","",null,"",null,null,null,"",null,null,null,null,"","","",null,null,null,null,null,null,null,null,null,null,null,null,null,null,null,null,null,null,null,null,null,null,"","","","",null,null,null,null,"","",""]
["",null,null,null,null,null,"","","","","",null,"",null,null,null,"",null,null,null,null,"","","",null,null,null,null,null,null,null,null,null,null,null,null,null,null,null,null,null,null,null,null,null,null,"","","","",null,null,null,null,"","",""]
["",null,null,null,null,null,"","","","","",null,"",null,null,null,"",null,null,null,null,"","","",null,null,null,null,null,null,null,null,null,null,null,null,null,null,null,null,null,null,null,null,null,null,"","","","",null,null,null,null,"","",""]
["",null,null,null,null,null,"","","","","",null,"",null,null,null,"",null,null,null,null,"","","",null,null,null,null,null,null,null,null,null,null,null,null,null,null,null,null,null,null,null,null,null,null,"","","","",null,null,null,null,"","",""]
["",null,null,null,null,null,"","","","","",null,"",null,null,null,"",null,null,null,null,"","","",null,null,null,null,null,null,null,null,null,null,null,null,null,null,null,null,null,null,null,null,null,null,"","","","",null,null,null,null,"","",""]
["",null,null,null,null,null,"","","","","",null,"",null,null,null,"",null,null,null,null,"","","",null,null,null,null,null,null,null,null,null,null,null,null,null,null,null,null,null,null,null,null,null,null,"","","","",null,null,null,null,"","",""]
["",null,null,null,null,null,"","","","","",null,"",null,null,null,"",null,null,null,null,"","","",null,null,null,null,null,null,null,null,null,null,null,null,null,null,null,null,null,null,null,null,null,null,"","","","",null,null,null,null,"","",""]
["",null,null,null,null,null,"","","","","",null,"",null,null,null,"",null,null,null,null,"","","",null,null,null,null,null,null,null,null,null,null,null,null,null,null,null,null,null,null,null,null,null,null,"","","","",null,null,null,null,"","",""]
["",null,null,null,null,null,"","","","","",null,"",null,null,null,"",null,null,null,null,"","","",null,null,null,null,null,null,null,null,null,null,null,null,null,null,null,null,null,null,null,null,null,null,"","","","",null,null,null,null,"","",""]
["",null,null,null,null,null,"","","","","",null,"",null,null,null,"",null,null,null,null,"","","",null,null,null,null,null,null,null,null,null,null,null,null,null,null,null,null,null,null,null,null,null,null,"","","","",null,null,null,null,"","",""]
["",null,null,null,null,null,"","","","","",null,"",null,null,null,"",null,null,null,null,"","","",null,null,null,null,null,null,null,null,null,null,null,null,null,null,null,null,null,null,null,null,null,null,"","","","",null,null,null,null,"","",""]
["",null,null,null,null,null,"","","","","",null,"",null,null,null,"",null,null,null,null,"","","",null,null,null,null,null,null,null,null,null,null,null,null,null,null,null,null,null,null,null,null,null,null,"","","","",null,null,null,null,"","",""]
["",null,null,null,null,null,"","","","","",null,"",null,null,null,"",null,null,null,null,"","","",null,null,null,null,null,null,null,null,null,null,null,null,null,null,null,null,null,null,null,null,null,null,"","","","",null,null,null,null,"","",""]
["",null,null,null,null,null,"","","","","",null,"",null,null,null,"",null,null,null,null,"","","",null,null,null,null,null,null,null,null,null,null,null,null,null,null,null,null,null,null,null,null,null,null,"","","","",null,null,null,null,"","",""]
["",null,null,null,null,null,"","","","","",null,"",null,null,null,"",null,null,null,null,"","","",null,null,null,null,null,null,null,null,null,null,null,null,null,null,null,null,null,null,null,null,null,null,"","","","",null,null,null,null,"","",""]
["",null,null,null,null,null,"","","","","",null,"",null,null,null,"",null,null,null,null,"","","",null,null,null,null,null,null,null,null,null,null,null,null,null,null,null,null,null,null,null,null,null,null,"","","","",null,null,null,null,"","",""]
["",null,null,null,null,null,"","","","","",null,"",null,null,null,"",null,null,null,null,"","","",null,null,null,null,null,null,null,null,null,null,null,null,null,null,null,null,null,null,null,null,null,null,"","","","",null,null,null,null,"","",""]
["",null,null,null,null,null,"","","","","",null,"",null,null,null,"",null,null,null,null,"","","",null,null,null,null,null,null,null,null,null,null,null,null,null,null,null,null,null,null,null,null,null,null,"","","","",null,null,null,null,"","",""]
["",null,null,null,null,null,"","","","","",null,"",null,null,null,"",null,null,null,null,"","","",null,null,null,null,null,null,null,null,null,null,null,null,null,null,null,null,null,null,null,null,null,null,"","","","",null,null,null,null,"","",""]
["",null,null,null,null,null,"","","","","",null,"",null,null,null,"",null,null,null,null,"","","",null,null,null,null,null,null,null,null,null,null,null,null,null,null,null,null,null,null,null,null,null,null,"","","","",null,null,null,null,"","",""]
["",null,null,null,null,null,"","","","","",null,"",null,null,null,"",null,null,null,null,"","","",null,null,null,null,null,null,null,null,null,null,null,null,null,null,null,null,null,null,null,null,null,null,"","","","",null,null,null,null,"","",""]
["",null,null,null,null,null,"","","","","",null,"",null,null,null,"",null,null,null,null,"","","",null,null,null,null,null,null,null,null,null,null,null,null,null,null,null,null,null,null,null,null,null,null,"","","","",null,null,null,null,"","",""]
["",null,null,null,null,null,"","","","","",null,"",null,null,null,"",null,null,null,null,"","","",null,null,null,null,null,null,null,null,null,null,null,null,null,null,null,null,null,null,null,null,null,null,"","","","",null,null,null,null,"","",""]
["",null,null,null,null,null,"","","","","",null,"",null,null,null,"",null,null,null,null,"","","",null,null,null,null,null,null,null,null,null,null,null,null,null,null,null,null,null,null,null,null,null,null,"","","","",null,null,null,null,"","",""]
["",null,null,null,null,null,"","","","","",null,"",null,null,null,"",null,null,null,null,"","","",null,null,null,null,null,null,null,null,null,null,null,null,null,null,null,null,null,null,null,null,null,null,"","","","",null,null,null,null,"","",""]
["",null,null,null,null,null,"","","","","",null,"",null,null,null,"",null,null,null,null,"","","",null,null,null,null,null,null,null,null,null,null,null,null,null,null,null,null,null,null,null,null,null,null,"","","","",null,null,null,null,"","",""]
["",null,null,null,null,null,"","","","","",null,"",null,null,null,"",null,null,null,null,"","","",null,null,null,null,null,null,null,null,null,null,null,null,null,null,null,null,null,null,null,null,null,null,"","","","",null,null,null,null,"","",""]
["",null,null,null,null,null,"","","","","",null,"",null,null,null,"",null,null,null,null,"","","",null,null,null,null,null,null,null,null,null,null,null,null,null,null,null,null,null,null,null,null,null,null,"","","","",null,null,null,null,"","",""]
["",null,null,null,null,null,"","","","","",null,"",null,null,null,"",null,null,null,null,"","","",null,null,null,null,null,null,null,null,null,null,null,null,null,null,null,null,null,null,null,null,null,null,"","","","",null,null,null,null,"","",""]
["",null,null,null,null,null,"","","","","",null,"",null,null,null,"",null,null,null,null,"","","",null,null,null,null,null,null,null,null,null,null,null,null,null,null,null,null,null,null,null,null,null,null,"","","","",null,null,null,null,"","",""]
["",null,null,null,null,null,"","","","","",null,"",null,null,null,"",null,null,null,null,"","","",null,null,null,null,null,null,null,null,null,null,null,null,null,null,null,null,null,null,null,null,null,null,"","","","",null,null,null,null,"","",""]
["",null,null,null,null,null,"","","","","",null,"",null,null,null,"",null,null,null,null,"","","",null,null,null,null,null,null,null,null,null,null,null,null,null,null,null,null,null,null,null,null,null,null,"","","","",null,null,null,null,"","",""]
["",null,null,null,null,null,"","","","","",null,"",null,null,null,"",null,null,null,null,"","","",null,null,null,null,null,null,null,null,null,null,null,null,null,null,null,null,null,null,null,null,null,null,"","","","",null,null,null,null,"","",""]
["",null,null,null,null,null,"","","","","",null,"",null,null,null,"",null,null,null,null,"","","",null,null,null,null,null,null,null,null,null,null,null,null,null,null,null,null,null,null,null,null,null,null,"","","","",null,null,null,null,"","",""]
["",null,null,null,null,null,"","","","","",null,"",null,null,null,"",null,null,null,null,"","","",null,null,null,null,null,null,null,null,null,null,null,null,null,null,null,null,null,null,null,null,null,null,"","","","",null,null,null,null,"","",""]
["",null,null,null,null,null,"","","","","",null,"",null,null,null,"",null,null,null,null,"","","",null,null,null,null,null,null,null,null,null,null,null,null,null,null,null,null,null,null,null,null,null,null,"","","","",null,null,null,null,"","",""]
["",null,null,null,null,null,"","","","","",null,"",null,null,null,"",null,null,null,null,"","","",null,null,null,null,null,null,null,null,null,null,null,null,null,null,null,null,null,null,null,null,null,null,"","","","",null,null,null,null,"","",""]
["",null,null,null,null,null,"","","","","",null,"",null,null,null,"",null,null,null,null,"","","",null,null,null,null,null,null,null,null,null,null,null,null,null,null,null,null,null,null,null,null,null,null,"","","","",null,null,null,null,"","",""]
["",null,null,null,null,null,"","","","","",null,"",null,null,null,"",null,null,null,null,"","","",null,null,null,null,null,null,null,null,null,null,null,null,null,null,null,null,null,null,null,null,null,null,"","","","",null,null,null,null,"","",""]
["",null,null,null,null,null,"","","","","",null,"",null,null,null,"",null,null,null,null,"","","",null,null,null,null,null,null,null,null,null,null,null,null,null,null,null,null,null,null,null,null,null,null,"","","","",null,null,null,null,"","",""]
["",null,null,null,null,null,"","","","","",null,"",null,null,null,"",null,null,null,null,"","","",null,null,null,null,null,null,null,null,null,null,null,null,null,null,null,null,null,null,null,null,null,null,"","","","",null,null,null,null,"","",""]
["",null,null,null,null,null,"","","","","",null,"",null,null,null,"",null,null,null,null,"","","",null,null,null,null,null,null,null,null,null,null,null,null,null,null,null,null,null,null,null,null,null,null,"","","","",null,null,null,null,"","",""]
["",null,null,null,null,null,"","","","","",null,"",null,null,null,"",null,null,null,null,"","","",null,null,null,null,null,null,null,null,null,null,null,null,null,null,null,null,null,null,null,null,null,null,"","","","",null,null,null,null,"","",""]
["",null,null,null,null,null,"","","","","",null,"",null,null,null,"",null,null,null,null,"","","",null,null,null,null,null,null,null,null,null,null,null,null,null,null,null,null,null,null,null,null,null,null,"","","","",null,null,null,null,"","",""]
["",null,null,null,null,null,"","","","","",null,"",null,null,null,"",null,null,null,null,"","","",null,null,null,null,null,null,null,null,null,null,null,null,null,null,null,null,null,null,null,null,null,null,"","","","",null,null,null,null,"","",""]
["",null,null,null,null,null,"","","","","",null,"",null,null,null,"",null,null,null,null,"","","",null,null,null,null,null,null,null,null,null,null,null,null,null,null,null,null,null,null,null,null,null,null,"","","","",null,null,null,null,"","",""]
["",null,null,null,null,null,"","","","","",null,"",null,null,null,"",null,null,null,null,"","","",null,null,null,null,null,null,null,null,null,null,null,null,null,null,null,null,null,null,null,null,null,null,"","","","",null,null,null,null,"","",""]
["",null,null,null,null,null,"","","","","",null,"",null,null,null,"",null,null,null,null,"","","",null,null,null,null,null,null,null,null,null,null,null,null,null,null,null,null,null,null,null,null,null,null,"","","","",null,null,null,null,"","",""]
["",null,null,null,null,null,"","","","","",null,"",null,null,null,"",null,null,null,null,"","","",null,null,null,null,null,null,null,null,null,null,null,null,null,null,null,null,null,null,null,null,null,null,"","","","",null,null,null,null,"","",""]
["",null,null,null,null,null,"","","","","",null,"",null,null,null,"",null,null,null,null,"","","",null,null,null,null,null,null,null,null,null,null,null,null,null,null,null,null,null,null,null,null,null,null,"","","","",null,null,null,null,"","",""]
["",null,null,null,null,null,"","","","","",null,"",null,null,null,"",null,null,null,null,"","","",null,null,null,null,null,null,null,null,null,null,null,null,null,null,null,null,null,null,null,null,null,null,"","","","",null,null,null,null,"","",""]
["",null,null,null,null,null,"","","","","",null,"",null,null,null,"",null,null,null,null,"","","",null,null,null,null,null,null,null,null,null,null,null,null,null,null,null,null,null,null,null,null,null,null,"","","","",null,null,null,null,"","",""]
["",null,null,null,null,null,"","","","","",null,"",null,null,null,"",null,null,null,null,"","","",null,null,null,null,null,null,null,null,null,null,null,null,null,null,null,null,null,null,null,null,null,null,"","","","",null,null,null,null,"","",""]
["",null,null,null,null,null,"","","","","",null,"",null,null,null,"",null,null,null,null,"","","",null,null,null,null,null,null,null,null,null,null,null,null,null,null,null,null,null,null,null,null,null,null,"","","","",null,null,null,null,"","",""]
["",null,null,null,null,null,"","","",{"$f":"IF(E456=\"\",\"\",DATE(I456,H456,G456))","v":""},"",null,{"$f":"IF(E456=\"\",\"\",IF(ISODD(MID(E456,13,1)),\"ذكر\",\"أنثى\"))","v":""},null,null,null,"",null,null,null,null,"","","",null,null,null,null,null,null,null,null,null,null,null,null,null,null,null,null,null,null,null,null,null,null,"","","","",null,null,null,null,"","",""]
[{"$f":"IF(F457=\"\",\"\",A456+1)","v":""},null,null,null,null,null,{"$f":"RIGHT(LEFT(E457,7),2)","v":""},{"$f":"RIGHT(LEFT(E457,5),2)","v":""},{"$f":"IF(E457=\"\",\"\",IF(ISODD(MID(E457,1,1)),MID(E457,2,2)+2000,MID(E457,2,2)+1900))","v":""},"",{"$f":"IF(J457=\"\",\"\",$K$4+J457-1)","v":""},null,"",null,null,null,{"$f":"IF(F457=\"\",\"\",\"الغربية\")","v":""},null,null,null,null,{"$f":"IF(U457=\"\",\"\",DATEDIF(U457,$V$3,\"md\"))","v":""},{"$f":"IF(U457=\"\",\"\",DATEDIF(U457,$V$3,\"ym\"))","v":""},{"$f":"IF(U457=\"\",\"\",DATEDIF(U457,$V$3,\"y\"))","v":""},null,null,null,null,null,null,null,null,null,null,null,null,null,null,null,null,null,null,null,null,null,null,{"$f":"IF(U457=\"\",\"\",DATEDIF(U457,$AU$3,\"md\"))","v":""},{"$f":"IF(U457=\"\",\"\",DATEDIF(U457,$AU$3,\"ym\"))","v":""},{"$f":"IF(U457=\"\",\"\",DATEDIF(U457,$AU$3,\"y\"))","v":""},"",null,null,null,null,{"$f":"IF(A457=\"\",\"\",A457)","v":""},{"$f":"IF(D457=\"\",\"\",D457)","v":""},{"$f":"IF(F457=\"\",\"\",F457)","v":""}]
["",null,null,null,null,null,"","","","","",null,"",null,null,null,"",null,null,null,null,"","","",null,null,null,null,null,null,null,null,null,null,null,null,null,null,null,null,null,null,null,null,null,null,"","","",{"$f":"IF(J458=\"\",\"\",$AX$3+J458-1)","v":""},null,null,null,null,"","",""]
["",null,null,null,null,null,"","","","","",null,"",null,null,null,"",null,null,null,null,"","","",null,null,null,null,null,null,null,null,null,null,null,null,null,null,null,null,null,null,null,null,null,null,"","","","",null,null,null,null,"","",""]
["",null,null,null,null,null,"","","","","",null,"",null,null,null,"",null,null,null,null,"","","",null,null,null,null,null,null,null,null,null,null,null,null,null,null,null,null,null,null,null,null,null,null,"","","","",null,null,null,null,"","",""]
["",null,null,null,null,null,"","","","","",null,"",null,null,null,"",null,null,null,null,"","","",null,null,null,null,null,null,null,null,null,null,null,null,null,null,null,null,null,null,null,null,null,null,"","","","",null,null,null,null,"","",""]
["",null,null,null,null,null,"","","","","",null,"",null,null,null,"",null,null,null,null,"","","",null,null,null,null,null,null,null,null,null,null,null,null,null,null,null,null,null,null,null,null,null,null,"","","","",null,null,null,null,"","",""]
["",null,null,null,null,null,"","","","","",null,"",null,null,null,"",null,null,null,null,"","","",null,null,null,null,null,null,null,null,null,null,null,null,null,null,null,null,null,null,null,null,null,null,"","","","",null,null,null,null,"","",""]
["",null,null,null,null,null,"","","","","",null,"",null,null,null,"",null,null,null,null,"","","",null,null,null,null,null,null,null,null,null,null,null,null,null,null,null,null,null,null,null,null,null,null,"","","","",null,null,null,null,"","",""]
["",null,null,null,null,null,"","","","","",null,"",null,null,null,"",null,null,null,null,"","","",null,null,null,null,null,null,null,null,null,null,null,null,null,null,null,null,null,null,null,null,null,null,"","","","",null,null,null,null,"","",""]
["",null,null,null,null,null,"","","","","",null,"",null,null,null,"",null,null,null,null,"","","",null,null,null,null,null,null,null,null,null,null,null,null,null,null,null,null,null,null,null,null,null,null,"","","","",null,null,null,null,"","",""]
["",null,null,null,null,null,"","","","","",null,"",null,null,null,"",null,null,null,null,"","","",null,null,null,null,null,null,null,null,null,null,null,null,null,null,null,null,null,null,null,null,null,null,"","","","",null,null,null,null,"","",""]
["",null,null,null,null,null,"","","","","",null,"",null,null,null,"",null,null,null,null,"","","",null,null,null,null,null,null,null,null,null,null,null,null,null,null,null,null,null,null,null,null,null,null,"","","","",null,null,null,null,"","",""]
["",null,null,null,null,null,"","","","","",null,"",null,null,null,"",null,null,null,null,"","","",null,null,null,null,null,null,null,null,null,null,null,null,null,null,null,null,null,null,null,null,null,null,"","","","",null,null,null,null,"","",""]
["",null,null,null,null,null,"","","","","",null,"",null,null,null,"",null,null,null,null,"","","",null,null,null,null,null,null,null,null,null,null,null,null,null,null,null,null,null,null,null,null,null,null,"","","","",null,null,null,null,"","",""]
["",null,null,null,null,null,"","","","","",null,"",null,null,null,"",null,null,null,null,"","","",null,null,null,null,null,null,null,null,null,null,null,null,null,null,null,null,null,null,null,null,null,null,"","","","",null,null,null,null,"","",""]
["",null,null,null,null,null,"","","","","",null,"",null,null,null,"",null,null,null,null,"","","",null,null,null,null,null,null,null,null,null,null,null,null,null,null,null,null,null,null,null,null,null,null,"","","","",null,null,null,null,"","",""]
["",null,null,null,null,null,"","","","","",null,"",null,null,null,"",null,null,null,null,"","","",null,null,null,null,null,null,null,null,null,null,null,null,null,null,null,null,null,null,null,null,null,null,"","","","",null,null,null,null,"","",""]
["",null,null,null,null,null,"","","","","",null,"",null,null,null,"",null,null,null,null,"","","",null,null,null,null,null,null,null,null,null,null,null,null,null,null,null,null,null,null,null,null,null,null,"","","","",null,null,null,null,"","",""]
["",null,null,null,null,null,"","","","","",null,"",null,null,null,"",null,null,null,null,"","","",null,null,null,null,null,null,null,null,null,null,null,null,null,null,null,null,null,null,null,null,null,null,"","","","",null,null,null,null,"","",""]
["",null,null,null,null,null,"","","","","",null,"",null,null,null,"",null,null,null,null,"","","",null,null,null,null,null,null,null,null,null,null,null,null,null,null,null,null,null,null,null,null,null,null,"","","","",null,null,null,null,"","",""]
["",null,null,null,null,null,"","","","","",null,"",null,null,null,"",null,null,null,null,"","","",null,null,null,null,null,null,null,null,null,null,null,null,null,null,null,null,null,null,null,null,null,null,"","","","",null,null,null,null,"","",""]
["",null,null,null,null,null,"","","","","",null,"",null,null,null,"",null,null,null,null,"","","",null,null,null,null,null,null,null,null,null,null,null,null,null,null,null,null,null,null,null,null,null,null,"","","","",null,null,null,null,"","",""]
["",null,null,null,null,null,"","","","","",null,"",null,null,null,"",null,null,null,null,"","","",null,null,null,null,null,null,null,null,null,null,null,null,null,null,null,null,null,null,null,null,null,null,"","","","",null,null,null,null,"","",""]
["",null,null,null,null,null,"","","","","",null,"",null,null,null,"",null,null,null,null,"","","",null,null,null,null,null,null,null,null,null,null,null,null,null,null,null,null,null,null,null,null,null,null,"","","","",null,null,null,null,"","",""]
["",null,null,null,null,null,"","","","","",null,"",null,null,null,"",null,null,null,null,"","","",null,null,null,null,null,null,null,null,null,null,null,null,null,null,null,null,null,null,null,null,null,null,"","","","",null,null,null,null,"","",""]
["",null,null,null,null,null,"","","","","",null,"",null,null,null,"",null,null,null,null,"","","",null,null,null,null,null,null,null,null,null,null,null,null,null,null,null,null,null,null,null,null,null,null,"","","","",null,null,null,null,"","",""]
["",null,null,null,null,null,"","","","","",null,"",null,null,null,"",null,null,null,null,"","","",null,null,null,null,null,null,null,null,null,null,null,null,null,null,null,null,null,null,null,null,null,null,"","","","",null,null,null,null,"","",""]
["",null,null,null,null,null,"","","","","",null,"",null,null,null,"",null,null,null,null,"","","",null,null,null,null,null,null,null,null,null,null,null,null,null,null,null,null,null,null,null,null,null,null,"","","","",null,null,null,null,"","",""]
["",null,null,null,null,null,"","","","","",null,"",null,null,null,"",null,null,null,null,"","","",null,null,null,null,null,null,null,null,null,null,null,null,null,null,null,null,null,null,null,null,null,null,"","","","",null,null,null,null,"","",""]
["",null,null,null,null,null,"","","","","",null,"",null,null,null,"",null,null,null,null,"","","",null,null,null,null,null,null,null,null,null,null,null,null,null,null,null,null,null,null,null,null,null,null,"","","","",null,null,null,null,"","",""]
["",null,null,null,null,null,"","","","","",null,"",null,null,null,"",null,null,null,null,"","","",null,null,null,null,null,null,null,null,null,null,null,null,null,null,null,null,null,null,null,null,null,null,"","","","",null,null,null,null,"","",""]
["",null,null,null,null,null,"","","","","",null,"",null,null,null,"",null,null,null,null,"","","",null,null,null,null,null,null,null,null,null,null,null,null,null,null,null,null,null,null,null,null,null,null,"","","","",null,null,null,null,"","",""]
["",null,null,null,null,null,"","","","","",null,"",null,null,null,"",null,null,null,null,"","","",null,null,null,null,null,null,null,null,null,null,null,null,null,null,null,null,null,null,null,null,null,null,"","","","",null,null,null,null,"","",""]
["",null,null,null,null,null,"","","","","",null,"",null,null,null,"",null,null,null,null,"","","",null,null,null,null,null,null,null,null,null,null,null,null,null,null,null,null,null,null,null,null,null,null,"","","","",null,null,null,null,"","",""]
["",null,null,null,null,null,"","","","","",null,"",null,null,null,"",null,null,null,null,"","","",null,null,null,null,null,null,null,null,null,null,null,null,null,null,null,null,null,null,null,null,null,null,"","","","",null,null,null,null,"","",""]
["",null,null,null,null,null,"","","","","",null,"",null,null,null,"",null,null,null,null,"","","",null,null,null,null,null,null,null,null,null,null,null,null,null,null,null,null,null,null,null,null,null,null,"","","","",null,null,null,null,"","",""]
["",null,null,null,null,null,"","","","","",null,"",null,null,null,"",null,null,null,null,"","","",null,null,null,null,null,null,null,null,null,null,null,null,null,null,null,null,null,null,null,null,null,null,"","","","",null,null,null,null,"","",""]
["",null,null,null,null,null,"","","","","",null,"",null,null,null,"",null,null,null,null,"","","",null,null,null,null,null,null,null,null,null,null,null,null,null,null,null,null,null,null,null,null,null,null,"","","","",null,null,null,null,"","",""]
["",null,null,null,null,null,"","","","","",null,"",null,null,null,"",null,null,null,null,"","","",null,null,null,null,null,null,null,null,null,null,null,null,null,null,null,null,null,null,null,null,null,null,"","","","",null,null,null,null,"","",""]
["",null,null,null,null,null,"","","","","",null,"",null,null,null,"",null,null,null,null,"","","",null,null,null,null,null,null,null,null,null,null,null,null,null,null,null,null,null,null,null,null,null,null,"","","","",null,null,null,null,"","",""]
["",null,null,null,null,null,"","","","","",null,"",null,null,null,"",null,null,null,null,"","","",null,null,null,null,null,null,null,null,null,null,null,null,null,null,null,null,null,null,null,null,null,null,"","","","",null,null,null,null,"","",""]
["",null,null,null,null,null,"","","","","",null,"",null,null,null,"",null,null,null,null,"","","",null,null,null,null,null,null,null,null,null,null,null,null,null,null,null,null,null,null,null,null,null,null,"","","","",null,null,null,null,"","",""]
["",null,null,null,null,null,"","","","","",null,"",null,null,null,"",null,null,null,null,"","","",null,null,null,null,null,null,null,null,null,null,null,null,null,null,null,null,null,null,null,null,null,null,"","","","",null,null,null,null,"","",""]
["",null,null,null,null,null,"","","","","",null,"",null,null,null,"",null,null,null,null,"","","",null,null,null,null,null,null,null,null,null,null,null,null,null,null,null,null,null,null,null,null,null,null,"","","","",null,null,null,null,"","",""]
["",null,null,null,null,null,"","","","","",null,"",null,null,null,"",null,null,null,null,"","","",null,null,null,null,null,null,null,null,null,null,null,null,null,null,null,null,null,null,null,null,null,null,"","","","",null,null,null,null,"","",""]
["",null,null,null,null,null,"","","","","",null,"",null,null,null,"",null,null,null,null,"","","",null,null,null,null,null,null,null,null,null,null,null,null,null,null,null,null,null,null,null,null,null,null,"","","","",null,null,null,null,"","",""]
["",null,null,null,null,null,"","","","","",null,"",null,null,null,"",null,null,null,null,"","","",null,null,null,null,null,null,null,null,null,null,null,null,null,null,null,null,null,null,null,null,null,null,"","","","",null,null,null,null,"","",""]
["",null,null,null,null,null,"","","","","",null,"",null,null,null,"",null,null,null,null,"","","",null,null,null,null,null,null,null,null,null,null,null,null,null,null,null,null,null,null,null,null,null,null,"","","","",null,null,null,null,"","",""]
["",null,null,null,null,null,"","","","","",null,"",null,null,null,"",null,null,null,null,"","","",null,null,null,null,null,null,null,null,null,null,null,null,null,null,null,null,null,null,null,null,null,null,"","","","",null,null,null,null,"","",""]
["",null,null,null,null,null,"","","","","",null,"",null,null,null,"",null,null,null,null,"","","",null,null,null,null,null,null,null,null,null,null,null,null,null,null,null,null,null,null,null,null,null,null,"","","","",null,null,null,null,"","",""]
["",null,null,null,null,null,"","","","","",null,"",null,null,null,"",null,null,null,null,"","","",null,null,null,null,null,null,null,null,null,null,null,null,null,null,null,null,null,null,null,null,null,null,"","","","",null,null,null,null,"","",""]
["",null,null,null,null,null,"","","","","",null,"",null,null,null,"",null,null,null,null,"","","",null,null,null,null,null,null,null,null,null,null,null,null,null,null,null,null,null,null,null,null,null,null,"","","","",null,null,null,null,"","",""]
["",null,null,null,null,null,"","","","","",null,"",null,null,null,"",null,null,null,null,"","","",null,null,null,null,null,null,null,null,null,null,null,null,null,null,null,null,null,null,null,null,null,null,"","","","",null,null,null,null,"","",""]
["",null,null,null,null,null,"","","","","",null,"",null,null,null,"",null,null,null,null,"","","",null,null,null,null,null,null,null,null,null,null,null,null,null,null,null,null,null,null,null,null,null,null,"","","","",null,null,null,null,"","",""]
["",null,null,null,null,null,"","","","","",null,"",null,null,null,"",null,null,null,null,"","","",null,null,null,null,null,null,null,null,null,null,null,null,null,null,null,null,null,null,null,null,null,null,"","","","",null,null,null,null,"","",""]
["",null,null,null,null,null,"","","","","",null,"",null,null,null,"",null,null,null,null,"","","",null,null,null,null,null,null,null,null,null,null,null,null,null,null,null,null,null,null,null,null,null,null,"","","","",null,null,null,null,"","",""]
["",null,null,null,null,null,"","","","","",null,"",null,null,null,"",null,null,null,null,"","","",null,null,null,null,null,null,null,null,null,null,null,null,null,null,null,null,null,null,null,null,null,null,"","","","",null,null,null,null,"","",""]
["",null,null,null,null,null,"","","","","",null,"",null,null,null,"",null,null,null,null,"","","",null,null,null,null,null,null,null,null,null,null,null,null,null,null,null,null,null,null,null,null,null,null,"","","","",null,null,null,null,"","",""]
["",null,null,null,null,null,"","","","","",null,"",null,null,null,"",null,null,null,null,"","","",null,null,null,null,null,null,null,null,null,null,null,null,null,null,null,null,null,null,null,null,null,null,"","","","",null,null,null,null,"","",""]
["",null,null,null,null,null,"","","","","",null,"",null,null,null,"",null,null,null,null,"","","",null,null,null,null,null,null,null,null,null,null,null,null,null,null,null,null,null,null,null,null,null,null,"","","","",null,null,null,null,"","",""]
["",null,null,null,null,null,"","","","","",null,"",null,null,null,"",null,null,null,null,"","","",null,null,null,null,null,null,null,null,null,null,null,null,null,null,null,null,null,null,null,null,null,null,"","","","",null,null,null,null,"","",""]
["",null,null,null,null,null,"","","","","",null,"",null,null,null,"",null,null,null,null,"","","",null,null,null,null,null,null,null,null,null,null,null,null,null,null,null,null,null,null,null,null,null,null,"","","","",null,null,null,null,"","",""]
["",null,null,null,null,null,"","","","","",null,"",null,null,null,"",null,null,null,null,"","","",null,null,null,null,null,null,null,null,null,null,null,null,null,null,null,null,null,null,null,null,null,null,"","","","",null,null,null,null,"","",""]
["",null,null,null,null,null,"","","",{"$f":"IF(E520=\"\",\"\",DATE(I520,H520,G520))","v":""},"",null,{"$f":"IF(E520=\"\",\"\",IF(ISODD(MID(E520,13,1)),\"ذكر\",\"أنثى\"))","v":""},null,null,null,"",null,null,null,null,"","","",null,null,null,null,null,null,null,null,null,null,null,null,null,null,null,null,null,null,null,null,null,null,"","","","",null,null,null,null,"","",""]
[{"$f":"IF(F521=\"\",\"\",A520+1)","v":""},null,null,null,null,null,{"$f":"RIGHT(LEFT(E521,7),2)","v":""},{"$f":"RIGHT(LEFT(E521,5),2)","v":""},{"$f":"IF(E521=\"\",\"\",IF(ISODD(MID(E521,1,1)),MID(E521,2,2)+2000,MID(E521,2,2)+1900))","v":""},"",{"$f":"IF(J521=\"\",\"\",$K$4+J521-1)","v":""},null,"",null,null,null,{"$f":"IF(F521=\"\",\"\",\"الغربية\")","v":""},null,null,null,null,{"$f":"IF(U521=\"\",\"\",DATEDIF(U521,$V$3,\"md\"))","v":""},{"$f":"IF(U521=\"\",\"\",DATEDIF(U521,$V$3,\"ym\"))","v":""},{"$f":"IF(U521=\"\",\"\",DATEDIF(U521,$V$3,\"y\"))","v":""},null,null,null,null,null,null,null,null,null,null,null,null,null,null,null,null,null,null,null,null,null,null,{"$f":"IF(U521=\"\",\"\",DATEDIF(U521,$AU$3,\"md\"))","v":""},{"$f":"IF(U521=\"\",\"\",DATEDIF(U521,$AU$3,\"ym\"))","v":""},{"$f":"IF(U521=\"\",\"\",DATEDIF(U521,$AU$3,\"y\"))","v":""},"",null,null,null,null,{"$f":"IF(A521=\"\",\"\",A521)","v":""},{"$f":"IF(D521=\"\",\"\",D521)","v":""},{"$f":"IF(F521=\"\",\"\",F521)","v":""}]
["",null,null,null,null,null,"","","","","",null,"",null,null,null,"",null,null,null,null,"","","",null,null,null,null,null,null,null,null,null,null,null,null,null,null,null,null,null,null,null,null,null,null,"","","",{"$f":"IF(J522=\"\",\"\",$AX$3+J522-1)","v":""},null,null,null,null,"","",""]
["",null,null,null,null,null,"","","","","",null,"",null,null,null,"",null,null,null,null,"","","",null,null,null,null,null,null,null,null,null,null,null,null,null,null,null,null,null,null,null,null,null,null,"","","","",null,null,null,null,"","",""]
["",null,null,null,null,null,"","","","","",null,"",null,null,null,"",null,null,null,null,"","","",null,null,null,null,null,null,null,null,null,null,null,null,null,null,null,null,null,null,null,null,null,null,"","","","",null,null,null,null,"","",""]
["",null,null,null,null,null,"","","","","",null,"",null,null,null,"",null,null,null,null,"","","",null,null,null,null,null,null,null,null,null,null,null,null,null,null,null,null,null,null,null,null,null,null,"","","","",null,null,null,null,"","",""]
["",null,null,null,null,null,"","","","","",null,"",null,null,null,"",null,null,null,null,"","","",null,null,null,null,null,null,null,null,null,null,null,null,null,null,null,null,null,null,null,null,null,null,"","","","",null,null,null,null,"","",""]
["",null,null,null,null,null,"","","","","",null,"",null,null,null,"",null,null,null,null,"","","",null,null,null,null,null,null,null,null,null,null,null,null,null,null,null,null,null,null,null,null,null,null,"","","","",null,null,null,null,"","",""]
["",null,null,null,null,null,"","","","","",null,"",null,null,null,"",null,null,null,null,"","","",null,null,null,null,null,null,null,null,null,null,null,null,null,null,null,null,null,null,null,null,null,null,"","","","",null,null,null,null,"","",""]
["",null,null,null,null,null,"","","","","",null,"",null,null,null,"",null,null,null,null,"","","",null,null,null,null,null,null,null,null,null,null,null,null,null,null,null,null,null,null,null,null,null,null,"","","","",null,null,null,null,"","",""]
["",null,null,null,null,null,"","","","","",null,"",null,null,null,"",null,null,null,null,"","","",null,null,null,null,null,null,null,null,null,null,null,null,null,null,null,null,null,null,null,null,null,null,"","","","",null,null,null,null,"","",""]
["",null,null,null,null,null,"","","","","",null,"",null,null,null,"",null,null,null,null,"","","",null,null,null,null,null,null,null,null,null,null,null,null,null,null,null,null,null,null,null,null,null,null,"","","","",null,null,null,null,"","",""]
["",null,null,null,null,null,"","","","","",null,"",null,null,null,"",null,null,null,null,"","","",null,null,null,null,null,null,null,null,null,null,null,null,null,null,null,null,null,null,null,null,null,null,"","","","",null,null,null,null,"","",""]
["",null,null,null,null,null,"","","","","",null,"",null,null,null,"",null,null,null,null,"","","",null,null,null,null,null,null,null,null,null,null,null,null,null,null,null,null,null,null,null,null,null,null,"","","","",null,null,null,null,"","",""]
["",null,null,null,null,null,"","","","","",null,"",null,null,null,"",null,null,null,null,"","","",null,null,null,null,null,null,null,null,null,null,null,null,null,null,null,null,null,null,null,null,null,null,"","","","",null,null,null,null,"","",""]
["",null,null,null,null,null,"","","","","",null,"",null,null,null,"",null,null,null,null,"","","",null,null,null,null,null,null,null,null,null,null,null,null,null,null,null,null,null,null,null,null,null,null,"","","","",null,null,null,null,"","",""]
["",null,null,null,null,null,"","","","","",null,"",null,null,null,"",null,null,null,null,"","","",null,null,null,null,null,null,null,null,null,null,null,null,null,null,null,null,null,null,null,null,null,null,"","","","",null,null,null,null,"","",""]
["",null,null,null,null,null,"","","","","",null,"",null,null,null,"",null,null,null,null,"","","",null,null,null,null,null,null,null,null,null,null,null,null,null,null,null,null,null,null,null,null,null,null,"","","","",null,null,null,null,"","",""]
["",null,null,null,null,null,"","","","","",null,"",null,null,null,"",null,null,null,null,"","","",null,null,null,null,null,null,null,null,null,null,null,null,null,null,null,null,null,null,null,null,null,null,"","","","",null,null,null,null,"","",""]
["",null,null,null,null,null,"","","","","",null,"",null,null,null,"",null,null,null,null,"","","",null,null,null,null,null,null,null,null,null,null,null,null,null,null,null,null,null,null,null,null,null,null,"","","","",null,null,null,null,"","",""]
["",null,null,null,null,null,"","","","","",null,"",null,null,null,"",null,null,null,null,"","","",null,null,null,null,null,null,null,null,null,null,null,null,null,null,null,null,null,null,null,null,null,null,"","","","",null,null,null,null,"","",""]
["",null,null,null,null,null,"","","","","",null,"",null,null,null,"",null,null,null,null,"","","",null,null,null,null,null,null,null,null,null,null,null,null,null,null,null,null,null,null,null,null,null,null,"","","","",null,null,null,null,"","",""]
["",null,null,null,null,null,"","","","","",null,"",null,null,null,"",null,null,null,null,"","","",null,null,null,null,null,null,null,null,null,null,null,null,null,null,null,null,null,null,null,null,null,null,"","","","",null,null,null,null,"","",""]
["",null,null,null,null,null,"","","","","",null,"",null,null,null,"",null,null,null,null,"","","",null,null,null,null,null,null,null,null,null,null,null,null,null,null,null,null,null,null,null,null,null,null,"","","","",null,null,null,null,"","",""]
["",null,null,null,null,null,"","","","","",null,"",null,null,null,"",null,null,null,null,"","","",null,null,null,null,null,null,null,null,null,null,null,null,null,null,null,null,null,null,null,null,null,null,"","","","",null,null,null,null,"","",""]
["",null,null,null,null,null,"","","","","",null,"",null,null,null,"",null,null,null,null,"","","",null,null,null,null,null,null,null,null,null,null,null,null,null,null,null,null,null,null,null,null,null,null,"","","","",null,null,null,null,"","",""]
["",null,null,null,null,null,"","","","","",null,"",null,null,null,"",null,null,null,null,"","","",null,null,null,null,null,null,null,null,null,null,null,null,null,null,null,null,null,null,null,null,null,null,"","","","",null,null,null,null,"","",""]
["",null,null,null,null,null,"","","","","",null,"",null,null,null,"",null,null,null,null,"","","",null,null,null,null,null,null,null,null,null,null,null,null,null,null,null,null,null,null,null,null,null,null,"","","","",null,null,null,null,"","",""]
["",null,null,null,null,null,"","","","","",null,"",null,null,null,"",null,null,null,null,"","","",null,null,null,null,null,null,null,null,null,null,null,null,null,null,null,null,null,null,null,null,null,null,"","","","",null,null,null,null,"","",""]
["",null,null,null,null,null,"","","","","",null,"",null,null,null,"",null,null,null,null,"","","",null,null,null,null,null,null,null,null,null,null,null,null,null,null,null,null,null,null,null,null,null,null,"","","","",null,null,null,null,"","",""]
["",null,null,null,null,null,"","","","","",null,"",null,null,null,"",null,null,null,null,"","","",null,null,null,null,null,null,null,null,null,null,null,null,null,null,null,null,null,null,null,null,null,null,"","","","",null,null,null,null,"","",""]
["",null,null,null,null,null,"","","","","",null,"",null,null,null,"",null,null,null,null,"","","",null,null,null,null,null,null,null,null,null,null,null,null,null,null,null,null,null,null,null,null,null,null,"","","","",null,null,null,null,"","",""]
["",null,null,null,null,null,"","","","","",null,"",null,null,null,"",null,null,null,null,"","","",null,null,null,null,null,null,null,null,null,null,null,null,null,null,null,null,null,null,null,null,null,null,"","","","",null,null,null,null,"","",""]
["",null,null,null,null,null,"","","","","",null,"",null,null,null,"",null,null,null,null,"","","",null,null,null,null,null,null,null,null,null,null,null,null,null,null,null,null,null,null,null,null,null,null,"","","","",null,null,null,null,"","",""]
["",null,null,null,null,null,"","","","","",null,"",null,null,null,"",null,null,null,null,"","","",null,null,null,null,null,null,null,null,null,null,null,null,null,null,null,null,null,null,null,null,null,null,"","","","",null,null,null,null,"","",""]
["",null,null,null,null,null,"","","","","",null,"",null,null,null,"",null,null,null,null,"","","",null,null,null,null,null,null,null,null,null,null,null,null,null,null,null,null,null,null,null,null,null,null,"","","","",null,null,null,null,"","",""]
["",null,null,null,null,null,"","","","","",null,"",null,null,null,"",null,null,null,null,"","","",null,null,null,null,null,null,null,null,null,null,null,null,null,null,null,null,null,null,null,null,null,null,"","","","",null,null,null,null,"","",""]
["",null,null,null,null,null,"","","","","",null,"",null,null,null,"",null,null,null,null,"","","",null,null,null,null,null,null,null,null,null,null,null,null,null,null,null,null,null,null,null,null,null,null,"","","","",null,null,null,null,"","",""]
["",null,null,null,null,null,"","","","","",null,"",null,null,null,"",null,null,null,null,"","","",null,null,null,null,null,null,null,null,null,null,null,null,null,null,null,null,null,null,null,null,null,null,"","","","",null,null,null,null,"","",""]
["",null,null,null,null,null,"","","","","",null,"",null,null,null,"",null,null,null,null,"","","",null,null,null,null,null,null,null,null,null,null,null,null,null,null,null,null,null,null,null,null,null,null,"","","","",null,null,null,null,"","",""]
["",null,null,null,null,null,"","","","","",null,"",null,null,null,"",null,null,null,null,"","","",null,null,null,null,null,null,null,null,null,null,null,null,null,null,null,null,null,null,null,null,null,null,"","","","",null,null,null,null,"","",""]
["",null,null,null,null,null,"","","","","",null,"",null,null,null,"",null,null,null,null,"","","",null,null,null,null,null,null,null,null,null,null,null,null,null,null,null,null,null,null,null,null,null,null,"","","","",null,null,null,null,"","",""]
["",null,null,null,null,null,"","","","","",null,"",null,null,null,"",null,null,null,null,"","","",null,null,null,null,null,null,null,null,null,null,null,null,null,null,null,null,null,null,null,null,null,null,"","","","",null,null,null,null,"","",""]
["",null,null,null,null,null,"","","","","",null,"",null,null,null,"",null,null,null,null,"","","",null,null,null,null,null,null,null,null,null,null,null,null,null,null,null,null,null,null,null,null,null,null,"","","","",null,null,null,null,"","",""]
["",null,null,null,null,null,"","","","","",null,"",null,null,null,"",null,null,null,null,"","","",null,null,null,null,null,null,null,null,null,null,null,null,null,null,null,null,null,null,null,null,null,null,"","","","",null,null,null,null,"","",""]
["",null,null,null,null,null,"","","","","",null,"",null,null,null,"",null,null,null,null,"","","",null,null,null,null,null,null,null,null,null,null,null,null,null,null,null,null,null,null,null,null,null,null,"","","","",null,null,null,null,"","",""]
["",null,null,null,null,null,"","","","","",null,"",null,null,null,"",null,null,null,null,"","","",null,null,null,null,null,null,null,null,null,null,null,null,null,null,null,null,null,null,null,null,null,null,"","","","",null,null,null,null,"","",""]
["",null,null,null,null,null,"","","","","",null,"",null,null,null,"",null,null,null,null,"","","",null,null,null,null,null,null,null,null,null,null,null,null,null,null,null,null,null,null,null,null,null,null,"","","","",null,null,null,null,"","",""]
["",null,null,null,null,null,"","","","","",null,"",null,null,null,"",null,null,null,null,"","","",null,null,null,null,null,null,null,null,null,null,null,null,null,null,null,null,null,null,null,null,null,null,"","","","",null,null,null,null,"","",""]
["",null,null,null,null,null,"","","","","",null,"",null,null,null,"",null,null,null,null,"","","",null,null,null,null,null,null,null,null,null,null,null,null,null,null,null,null,null,null,null,null,null,null,"","","","",null,null,null,null,"","",""]
["",null,null,null,null,null,"","","","","",null,"",null,null,null,"",null,null,null,null,"","","",null,null,null,null,null,null,null,null,null,null,null,null,null,null,null,null,null,null,null,null,null,null,"","","","",null,null,null,null,"","",""]
["",null,null,null,null,null,"","","","","",null,"",null,null,null,"",null,null,null,null,"","","",null,null,null,null,null,null,null,null,null,null,null,null,null,null,null,null,null,null,null,null,null,null,"","","","",null,null,null,null,"","",""]
["",null,null,null,null,null,"","","","","",null,"",null,null,null,"",null,null,null,null,"","","",null,null,null,null,null,null,null,null,null,null,null,null,null,null,null,null,null,null,null,null,null,null,"","","","",null,null,null,null,"","",""]
["",null,null,null,null,null,"","","","","",null,"",null,null,null,"",null,null,null,null,"","","",null,null,null,null,null,null,null,null,null,null,null,null,null,null,null,null,null,null,null,null,null,null,"","","","",null,null,null,null,"","",""]
["",null,null,null,null,null,"","","","","",null,"",null,null,null,"",null,null,null,null,"","","",null,null,null,null,null,null,null,null,null,null,null,null,null,null,null,null,null,null,null,null,null,null,"","","","",null,null,null,null,"","",""]
["",null,null,null,null,null,"","","","","",null,"",null,null,null,"",null,null,null,null,"","","",null,null,null,null,null,null,null,null,null,null,null,null,null,null,null,null,null,null,null,null,null,null,"","","","",null,null,null,null,"","",""]
["",null,null,null,null,null,"","","","","",null,"",null,null,null,"",null,null,null,null,"","","",null,null,null,null,null,null,null,null,null,null,null,null,null,null,null,null,null,null,null,null,null,null,"","","","",null,null,null,null,"","",""]
["",null,null,null,null,null,"","","","","",null,"",null,null,null,"",null,null,null,null,"","","",null,null,null,null,null,null,null,null,null,null,null,null,null,null,null,null,null,null,null,null,null,null,"","","","",null,null,null,null,"","",""]
["",null,null,null,null,null,"","","","","",null,"",null,null,null,"",null,null,null,null,"","","",null,null,null,null,null,null,null,null,null,null,null,null,null,null,null,null,null,null,null,null,null,null,"","","","",null,null,null,null,"","",""]
["",null,null,null,null,null,"","","","","",null,"",null,null,null,"",null,null,null,null,"","","",null,null,null,null,null,null,null,null,null,null,null,null,null,null,null,null,null,null,null,null,null,null,"","","","",null,null,null,null,"","",""]
["",null,null,null,null,null,"","","","","",null,"",null,null,null,"",null,null,null,null,"","","",null,null,null,null,null,null,null,null,null,null,null,null,null,null,null,null,null,null,null,null,null,null,"","","","",null,null,null,null,"","",""]
["",null,null,null,null,null,"","","","","",null,"",null,null,null,"",null,null,null,null,"","","",null,null,null,null,null,null,null,null,null,null,null,null,null,null,null,null,null,null,null,null,null,null,"","","","",null,null,null,null,"","",""]
["",null,null,null,null,null,"","","","","",null,"",null,null,null,"",null,null,null,null,"","","",null,null,null,null,null,null,null,null,null,null,null,null,null,null,null,null,null,null,null,null,null,null,"","","","",null,null,null,null,"","",""]
["",null,null,null,null,null,"","","","","",null,"",null,null,null,"",null,null,null,null,"","","",null,null,null,null,null,null,null,null,null,null,null,null,null,null,null,null,null,null,null,null,null,null,"","","","",null,null,null,null,"","",""]
["",null,null,null,null,null,"","","",{"$f":"IF(E584=\"\",\"\",DATE(I584,H584,G584))","v":""},"",null,{"$f":"IF(E584=\"\",\"\",IF(ISODD(MID(E584,13,1)),\"ذكر\",\"أنثى\"))","v":""},null,null,null,"",null,null,null,null,"","","",null,null,null,null,null,null,null,null,null,null,null,null,null,null,null,null,null,null,null,null,null,null,"","","","",null,null,null,null,"","",""]
[{"$f":"IF(F585=\"\",\"\",A584+1)","v":""},null,null,null,null,null,{"$f":"RIGHT(LEFT(E585,7),2)","v":""},{"$f":"RIGHT(LEFT(E585,5),2)","v":""},{"$f":"IF(E585=\"\",\"\",IF(ISODD(MID(E585,1,1)),MID(E585,2,2)+2000,MID(E585,2,2)+1900))","v":""},"",{"$f":"IF(J585=\"\",\"\",$K$4+J585-1)","v":""},null,"",null,null,null,{"$f":"IF(F585=\"\",\"\",\"الغربية\")","v":""},null,null,null,null,{"$f":"IF(U585=\"\",\"\",DATEDIF(U585,$V$3,\"md\"))","v":""},{"$f":"IF(U585=\"\",\"\",DATEDIF(U585,$V$3,\"ym\"))","v":""},{"$f":"IF(U585=\"\",\"\",DATEDIF(U585,$V$3,\"y\"))","v":""},null,null,null,null,null,null,null,null,null,null,null,null,null,null,null,null,null,null,null,null,null,null,{"$f":"IF(U585=\"\",\"\",DATEDIF(U585,$AU$3,\"md\"))","v":""},{"$f":"IF(U585=\"\",\"\",DATEDIF(U585,$AU$3,\"ym\"))","v":""},{"$f":"IF(U585=\"\",\"\",DATEDIF(U585,$AU$3,\"y\"))","v":""},"",null,null,null,null,{"$f":"IF(A585=\"\",\"\",A585)","v":""},{"$f":"IF(D585=\"\",\"\",D585)","v":""},{"$f":"IF(F585=\"\",\"\",F585)","v":""}]
["",null,null,null,null,null,"","","","","",null,"",null,null,null,"",null,null,null,null,"","","",null,null,null,null,null,null,null,null,null,null,null,null,null,null,null,null,null,null,null,null,null,null,"","","",{"$f":"IF(J586=\"\",\"\",$AX$3+J586-1)","v":""},null,null,null,null,"","",""]
["",null,null,null,null,null,"","","","","",null,"",null,null,null,"",null,null,null,null,"","","",null,null,null,null,null,null,null,null,null,null,null,null,null,null,null,null,null,null,null,null,null,null,"","","","",null,null,null,null,"","",""]
["",null,null,null,null,null,"","","","","",null,"",null,null,null,"",null,null,null,null,"","","",null,null,null,null,null,null,null,null,null,null,null,null,null,null,null,null,null,null,null,null,null,null,"","","","",null,null,null,null,"","",""]
["",null,null,null,null,null,"","","","","",null,"",null,null,null,"",null,null,null,null,"","","",null,null,null,null,null,null,null,null,null,null,null,null,null,null,null,null,null,null,null,null,null,null,"","","","",null,null,null,null,"","",""]
["",null,null,null,null,null,"","","","","",null,"",null,null,null,"",null,null,null,null,"","","",null,null,null,null,null,null,null,null,null,null,null,null,null,null,null,null,null,null,null,null,null,null,"","","","",null,null,null,null,"","",""]
["",null,null,null,null,null,"","","","","",null,"",null,null,null,"",null,null,null,null,"","","",null,null,null,null,null,null,null,null,null,null,null,null,null,null,null,null,null,null,null,null,null,null,"","","","",null,null,null,null,"","",""]
["",null,null,null,null,null,"","","","","",null,"",null,null,null,"",null,null,null,null,"","","",null,null,null,null,null,null,null,null,null,null,null,null,null,null,null,null,null,null,null,null,null,null,"","","","",null,null,null,null,"","",""]
["",null,null,null,null,null,"","","","","",null,"",null,null,null,"",null,null,null,null,"","","",null,null,null,null,null,null,null,null,null,null,null,null,null,null,null,null,null,null,null,null,null,null,"","","","",null,null,null,null,"","",""]
["",null,null,null,null,null,"","","","","",null,"",null,null,null,"",null,null,null,null,"","","",null,null,null,null,null,null,null,null,null,null,null,null,null,null,null,null,null,null,null,null,null,null,"","","","",null,null,null,null,"","",""]
["",null,null,null,null,null,"","","","","",null,"",null,null,null,"",null,null,null,null,"","","",null,null,null,null,null,null,null,null,null,null,null,null,null,null,null,null,null,null,null,null,null,null,"","","","",null,null,null,null,"","",""]
["",null,null,null,null,null,"","","","","",null,"",null,null,null,"",null,null,null,null,"","","",null,null,null,null,null,null,null,null,null,null,null,null,null,null,null,null,null,null,null,null,null,null,"","","","",null,null,null,null,"","",""]
["",null,null,null,null,null,"","","","","",null,"",null,null,null,"",null,null,null,null,"","","",null,null,null,null,null,null,null,null,null,null,null,null,null,null,null,null,null,null,null,null,null,null,"","","","",null,null,null,null,"","",""]
["",null,null,null,null,null,"","","","","",null,"",null,null,null,"",null,null,null,null,"","","",null,null,null,null,null,null,null,null,null,null,null,null,null,null,null,null,null,null,null,null,null,null,"","","","",null,null,null,null,"","",""]
["",null,null,null,null,null,"","","","","",null,"",null,null,null,"",null,null,null,null,"","","",null,null,null,null,null,null,null,null,null,null,null,null,null,null,null,null,null,null,null,null,null,null,"","","","",null,null,null,null,"","",""]
["",null,null,null,null,null,"","","","","",null,"",null,null,null,"",null,null,null,null,"","","",null,null,null,null,null,null,null,null,null,null,null,null,null,null,null,null,null,null,null,null,null,null,"","","","",null,null,null,null,"","",""]
["",null,null,null,null,null,"","","","","",null,"",null,null,null,"",null,null,null,null,"","","",null,null,null,null,null,null,null,null,null,null,null,null,null,null,null,null,null,null,null,null,null,null,"","","","",null,null,null,null,"","",""]
["",null,null,null,null,null,"","","","","",null,"",null,null,null,"",null,null,null,null,"","","",null,null,null,null,null,null,null,null,null,null,null,null,null,null,null,null,null,null,null,null,null,null,"","","","",null,null,null,null,"","",""]
["",null,null,null,null,null,"","","","","",null,"",null,null,null,"",null,null,null,null,"","","",null,null,null,null,null,null,null,null,null,null,null,null,null,null,null,null,null,null,null,null,null,null,"","","","",null,null,null,null,"","",""]
["",null,null,null,null,null,"","","","","",null,"",null,null,null,"",null,null,null,null,"","","",null,null,null,null,null,null,null,null,null,null,null,null,null,null,null,null,null,null,null,null,null,null,"","","","",null,null,null,null,"","",""]
["",null,null,null,null,null,"","","","","",null,"",null,null,null,"",null,null,null,null,"","","",null,null,null,null,null,null,null,null,null,null,null,null,null,null,null,null,null,null,null,null,null,null,"","","","",null,null,null,null,"","",""]
["",null,null,null,null,null,"","","","","",null,"",null,null,null,"",null,null,null,null,"","","",null,null,null,null,null,null,null,null,null,null,null,null,null,null,null,null,null,null,null,null,null,null,"","","","",null,null,null,null,"","",""]
["",null,null,null,null,null,"","","","","",null,"",null,null,null,"",null,null,null,null,"","","",null,null,null,null,null,null,null,null,null,null,null,null,null,null,null,null,null,null,null,null,null,null,"","","","",null,null,null,null,"","",""]
["",null,null,null,null,null,"","","","","",null,"",null,null,null,"",null,null,null,null,"","","",null,null,null,null,null,null,null,null,null,null,null,null,null,null,null,null,null,null,null,null,null,null,"","","","",null,null,null,null,"","",""]
["",null,null,null,null,null,"","","","","",null,"",null,null,null,"",null,null,null,null,"","","",null,null,null,null,null,null,null,null,null,null,null,null,null,null,null,null,null,null,null,null,null,null,"","","","",null,null,null,null,"","",""]
["",null,null,null,null,null,"","","","","",null,"",null,null,null,"",null,null,null,null,"","","",null,null,null,null,null,null,null,null,null,null,null,null,null,null,null,null,null,null,null,null,null,null,"","","","",null,null,null,null,"","",""]
["",null,null,null,null,null,"","","","","",null,"",null,null,null,"",null,null,null,null,"","","",null,null,null,null,null,null,null,null,null,null,null,null,null,null,null,null,null,null,null,null,null,null,"","","","",null,null,null,null,"","",""]
["",null,null,null,null,null,"","","","","",null,"",null,null,null,"",null,null,null,null,"","","",null,null,null,null,null,null,null,null,null,null,null,null,null,null,null,null,null,null,null,null,null,null,"","","","",null,null,null,null,"","",""]
["",null,null,null,null,null,"","","","","",null,"",null,null,null,"",null,null,null,null,"","","",null,null,null,null,null,null,null,null,null,null,null,null,null,null,null,null,null,null,null,null,null,null,"","","","",null,null,null,null,"","",""]
["",null,null,null,null,null,"","","","","",null,"",null,null,null,"",null,null,null,null,"","","",null,null,null,null,null,null,null,null,null,null,null,null,null,null,null,null,null,null,null,null,null,null,"","","","",null,null,null,null,"","",""]
["",null,null,null,null,null,"","","","","",null,"",null,null,null,"",null,null,null,null,"","","",null,null,null,null,null,null,null,null,null,null,null,null,null,null,null,null,null,null,null,null,null,null,"","","","",null,null,null,null,"","",""]
["",null,null,null,null,null,"","","","","",null,"",null,null,null,"",null,null,null,null,"","","",null,null,null,null,null,null,null,null,null,null,null,null,null,null,null,null,null,null,null,null,null,null,"","","","",null,null,null,null,"","",""]
["",null,null,null,null,null,"","","","","",null,"",null,null,null,"",null,null,null,null,"","","",null,null,null,null,null,null,null,null,null,null,null,null,null,null,null,null,null,null,null,null,null,null,"","","","",null,null,null,null,"","",""]
["",null,null,null,null,null,"","","","","",null,"",null,null,null,"",null,null,null,null,"","","",null,null,null,null,null,null,null,null,null,null,null,null,null,null,null,null,null,null,null,null,null,null,"","","","",null,null,null,null,"","",""]
["",null,null,null,null,null,"","","","","",null,"",null,null,null,"",null,null,null,null,"","","",null,null,null,null,null,null,null,null,null,null,null,null,null,null,null,null,null,null,null,null,null,null,"","","","",null,null,null,null,"","",""]
["",null,null,null,null,null,"","","","","",null,"",null,null,null,"",null,null,null,null,"","","",null,null,null,null,null,null,null,null,null,null,null,null,null,null,null,null,null,null,null,null,null,null,"","","","",null,null,null,null,"","",""]
["",null,null,null,null,null,"","","","","",null,"",null,null,null,"",null,null,null,null,"","","",null,null,null,null,null,null,null,null,null,null,null,null,null,null,null,null,null,null,null,null,null,null,"","","","",null,null,null,null,"","",""]
["",null,null,null,null,null,"","","","","",null,"",null,null,null,"",null,null,null,null,"","","",null,null,null,null,null,null,null,null,null,null,null,null,null,null,null,null,null,null,null,null,null,null,"","","","",null,null,null,null,"","",""]
["",null,null,null,null,null,"","","","","",null,"",null,null,null,"",null,null,null,null,"","","",null,null,null,null,null,null,null,null,null,null,null,null,null,null,null,null,null,null,null,null,null,null,"","","","",null,null,null,null,"","",""]
["",null,null,null,null,null,"","","","","",null,"",null,null,null,"",null,null,null,null,"","","",null,null,null,null,null,null,null,null,null,null,null,null,null,null,null,null,null,null,null,null,null,null,"","","","",null,null,null,null,"","",""]
["",null,null,null,null,null,"","","","","",null,"",null,null,null,"",null,null,null,null,"","","",null,null,null,null,null,null,null,null,null,null,null,null,null,null,null,null,null,null,null,null,null,null,"","","","",null,null,null,null,"","",""]
["",null,null,null,null,null,"","","","","",null,"",null,null,null,"",null,null,null,null,"","","",null,null,null,null,null,null,null,null,null,null,null,null,null,null,null,null,null,null,null,null,null,null,"","","","",null,null,null,null,"","",""]
["",null,null,null,null,null,"","","","","",null,"",null,null,null,"",null,null,null,null,"","","",null,null,null,null,null,null,null,null,null,null,null,null,null,null,null,null,null,null,null,null,null,null,"","","","",null,null,null,null,"","",""]
["",null,null,null,null,null,"","","","","",null,"",null,null,null,"",null,null,null,null,"","","",null,null,null,null,null,null,null,null,null,null,null,null,null,null,null,null,null,null,null,null,null,null,"","","","",null,null,null,null,"","",""]
["",null,null,null,null,null,"","","","","",null,"",null,null,null,"",null,null,null,null,"","","",null,null,null,null,null,null,null,null,null,null,null,null,null,null,null,null,null,null,null,null,null,null,"","","","",null,null,null,null,"","",""]
["",null,null,null,null,null,"","","","","",null,"",null,null,null,"",null,null,null,null,"","","",null,null,null,null,null,null,null,null,null,null,null,null,null,null,null,null,null,null,null,null,null,null,"","","","",null,null,null,null,"","",""]
["",null,null,null,null,null,"","","","","",null,"",null,null,null,"",null,null,null,null,"","","",null,null,null,null,null,null,null,null,null,null,null,null,null,null,null,null,null,null,null,null,null,null,"","","","",null,null,null,null,"","",""]
["",null,null,null,null,null,"","","","","",null,"",null,null,null,"",null,null,null,null,"","","",null,null,null,null,null,null,null,null,null,null,null,null,null,null,null,null,null,null,null,null,null,null,"","","","",null,null,null,null,"","",""]
["",null,null,null,null,null,"","","","","",null,"",null,null,null,"",null,null,null,null,"","","",null,null,null,null,null,null,null,null,null,null,null,null,null,null,null,null,null,null,null,null,null,null,"","","","",null,null,null,null,"","",""]
["",null,null,null,null,null,"","","","","",null,"",null,null,null,"",null,null,null,null,"","","",null,null,null,null,null,null,null,null,null,null,null,null,null,null,null,null,null,null,null,null,null,null,"","","","",null,null,null,null,"","",""]
["",null,null,null,null,null,"","","","","",null,"",null,null,null,"",null,null,null,null,"","","",null,null,null,null,null,null,null,null,null,null,null,null,null,null,null,null,null,null,null,null,null,null,"","","","",null,null,null,null,"","",""]
["",null,null,null,null,null,"","","","","",null,"",null,null,null,"",null,null,null,null,"","","",null,null,null,null,null,null,null,null,null,null,null,null,null,null,null,null,null,null,null,null,null,null,"","","","",null,null,null,null,"","",""]
["",null,null,null,null,null,"","","","","",null,"",null,null,null,"",null,null,null,null,"","","",null,null,null,null,null,null,null,null,null,null,null,null,null,null,null,null,null,null,null,null,null,null,"","","","",null,null,null,null,"","",""]
["",null,null,null,null,null,"","","","","",null,"",null,null,null,"",null,null,null,null,"","","",null,null,null,null,null,null,null,null,null,null,null,null,null,null,null,null,null,null,null,null,null,null,"","","","",null,null,null,null,"","",""]
["",null,null,null,null,null,"","","","","",null,"",null,null,null,"",null,null,null,null,"","","",null,null,null,null,null,null,null,null,null,null,null,null,null,null,null,null,null,null,null,null,null,null,"","","","",null,null,null,null,"","",""]
["",null,null,null,null,null,"","","","","",null,"",null,null,null,"",null,null,null,null,"","","",null,null,null,null,null,null,null,null,null,null,null,null,null,null,null,null,null,null,null,null,null,null,"","","","",null,null,null,null,"","",""]
["",null,null,null,null,null,"","","","","",null,"",null,null,null,"",null,null,null,null,"","","",null,null,null,null,null,null,null,null,null,null,null,null,null,null,null,null,null,null,null,null,null,null,"","","","",null,null,null,null,"","",""]
["",null,null,null,null,null,"","","","","",null,"",null,null,null,"",null,null,null,null,"","","",null,null,null,null,null,null,null,null,null,null,null,null,null,null,null,null,null,null,null,null,null,null,"","","","",null,null,null,null,"","",""]
["",null,null,null,null,null,"","","","","",null,"",null,null,null,"",null,null,null,null,"","","",null,null,null,null,null,null,null,null,null,null,null,null,null,null,null,null,null,null,null,null,null,null,"","","","",null,null,null,null,"","",""]
["",null,null,null,null,null,"","","","","",null,"",null,null,null,"",null,null,null,null,"","","",null,null,null,null,null,null,null,null,null,null,null,null,null,null,null,null,null,null,null,null,null,null,"","","","",null,null,null,null,"","",""]
["",null,null,null,null,null,"","","","","",null,"",null,null,null,"",null,null,null,null,"","","",null,null,null,null,null,null,null,null,null,null,null,null,null,null,null,null,null,null,null,null,null,null,"","","","",null,null,null,null,"","",""]
["",null,null,null,null,null,"","","","","",null,"",null,null,null,"",null,null,null,null,"","","",null,null,null,null,null,null,null,null,null,null,null,null,null,null,null,null,null,null,null,null,null,null,"","","","",null,null,null,null,"","",""]
["",null,null,null,null,null,"","","","","",null,"",null,null,null,"",null,null,null,null,"","","",null,null,null,null,null,null,null,null,null,null,null,null,null,null,null,null,null,null,null,null,null,null,"","","","",null,null,null,null,"","",""]
["",null,null,null,null,null,"","","",{"$f":"IF(E648=\"\",\"\",DATE(I648,H648,G648))","v":""},"",null,{"$f":"IF(E648=\"\",\"\",IF(ISODD(MID(E648,13,1)),\"ذكر\",\"أنثى\"))","v":""},null,null,null,"",null,null,null,null,"","","",null,null,null,null,null,null,null,null,null,null,null,null,null,null,null,null,null,null,null,null,null,null,"","","","",null,null,null,null,"","",""]
[{"$f":"IF(F649=\"\",\"\",A648+1)","v":""},null,null,null,null,null,{"$f":"RIGHT(LEFT(E649,7),2)","v":""},{"$f":"RIGHT(LEFT(E649,5),2)","v":""},{"$f":"IF(E649=\"\",\"\",IF(ISODD(MID(E649,1,1)),MID(E649,2,2)+2000,MID(E649,2,2)+1900))","v":""},"",{"$f":"IF(J649=\"\",\"\",$K$4+J649-1)","v":""},null,"",null,null,null,{"$f":"IF(F649=\"\",\"\",\"الغربية\")","v":""},null,null,null,null,{"$f":"IF(U649=\"\",\"\",DATEDIF(U649,$V$3,\"md\"))","v":""},{"$f":"IF(U649=\"\",\"\",DATEDIF(U649,$V$3,\"ym\"))","v":""},{"$f":"IF(U649=\"\",\"\",DATEDIF(U649,$V$3,\"y\"))","v":""},null,null,null,null,null,null,null,null,null,null,null,null,null,null,null,null,null,null,null,null,null,null,{"$f":"IF(U649=\"\",\"\",DATEDIF(U649,$AU$3,\"md\"))","v":""},{"$f":"IF(U649=\"\",\"\",DATEDIF(U649,$AU$3,\"ym\"))","v":""},{"$f":"IF(U649=\"\",\"\",DATEDIF(U649,$AU$3,\"y\"))","v":""},"",null,null,null,null,{"$f":"IF(A649=\"\",\"\",A649)","v":""},{"$f":"IF(D649=\"\",\"\",D649)","v":""},{"$f":"IF(F649=\"\",\"\",F649)","v":""}]
["",null,null,null,null,null,"","","","","",null,"",null,null,null,"",null,null,null,null,"","","",null,null,null,null,null,null,null,null,null,null,null,null,null,null,null,null,null,null,null,null,null,null,"","","",{"$f":"IF(J650=\"\",\"\",$AX$3+J650-1)","v":""},null,null,null,null,"","",""]
["",null,null,null,null,null,"","","","","",null,"",null,null,null,"",null,null,null,null,"","","",null,null,null,null,null,null,null,null,null,null,null,null,null,null,null,null,null,null,null,null,null,null,"","","","",null,null,null,null,"","",""]
["",null,null,null,null,null,"","","","","",null,"",null,null,null,"",null,null,null,null,"","","",null,null,null,null,null,null,null,null,null,null,null,null,null,null,null,null,null,null,null,null,null,null,"","","","",null,null,null,null,"","",""]
["",null,null,null,null,null,"","","","","",null,"",null,null,null,"",null,null,null,null,"","","",null,null,null,null,null,null,null,null,null,null,null,null,null,null,null,null,null,null,null,null,null,null,"","","","",null,null,null,null,"","",""]
["",null,null,null,null,null,"","","","","",null,"",null,null,null,"",null,null,null,null,"","","",null,null,null,null,null,null,null,null,null,null,null,null,null,null,null,null,null,null,null,null,null,null,"","","","",null,null,null,null,"","",""]
["",null,null,null,null,null,"","","","","",null,"",null,null,null,"",null,null,null,null,"","","",null,null,null,null,null,null,null,null,null,null,null,null,null,null,null,null,null,null,null,null,null,null,"","","","",null,null,null,null,"","",""]
["",null,null,null,null,null,"","","","","",null,"",null,null,null,"",null,null,null,null,"","","",null,null,null,null,null,null,null,null,null,null,null,null,null,null,null,null,null,null,null,null,null,null,"","","","",null,null,null,null,"","",""]
["",null,null,null,null,null,"","","","","",null,"",null,null,null,"",null,null,null,null,"","","",null,null,null,null,null,null,null,null,null,null,null,null,null,null,null,null,null,null,null,null,null,null,"","","","",null,null,null,null,"","",""]
["",null,null,null,null,null,"","","","","",null,"",null,null,null,"",null,null,null,null,"","","",null,null,null,null,null,null,null,null,null,null,null,null,null,null,null,null,null,null,null,null,null,null,"","","","",null,null,null,null,"","",""]
["",null,null,null,null,null,"","","","","",null,"",null,null,null,"",null,null,null,null,"","","",null,null,null,null,null,null,null,null,null,null,null,null,null,null,null,null,null,null,null,null,null,null,"","","","",null,null,null,null,"","",""]
["",null,null,null,null,null,"","","","","",null,"",null,null,null,"",null,null,null,null,"","","",null,null,null,null,null,null,null,null,null,null,null,null,null,null,null,null,null,null,null,null,null,null,"","","","",null,null,null,null,"","",""]
["",null,null,null,null,null,"","","","","",null,"",null,null,null,"",null,null,null,null,"","","",null,null,null,null,null,null,null,null,null,null,null,null,null,null,null,null,null,null,null,null,null,null,"","","","",null,null,null,null,"","",""]
["",null,null,null,null,null,"","","","","",null,"",null,null,null,"",null,null,null,null,"","","",null,null,null,null,null,null,null,null,null,null,null,null,null,null,null,null,null,null,null,null,null,null,"","","","",null,null,null,null,"","",""]
["",null,null,null,null,null,"","","","","",null,"",null,null,null,"",null,null,null,null,"","","",null,null,null,null,null,null,null,null,null,null,null,null,null,null,null,null,null,null,null,null,null,null,"","","","",null,null,null,null,"","",""]
["",null,null,null,null,null,"","","","","",null,"",null,null,null,"",null,null,null,null,"","","",null,null,null,null,null,null,null,null,null,null,null,null,null,null,null,null,null,null,null,null,null,null,"","","","",null,null,null,null,"","",""]
["",null,null,null,null,null,"","","","","",null,"",null,null,null,"",null,null,null,null,"","","",null,null,null,null,null,null,null,null,null,null,null,null,null,null,null,null,null,null,null,null,null,null,"","","","",null,null,null,null,"","",""]
["",null,null,null,null,null,"","","","","",null,"",null,null,null,"",null,null,null,null,"","","",null,null,null,null,null,null,null,null,null,null,null,null,null,null,null,null,null,null,null,null,null,null,"","","","",null,null,null,null,"","",""]
["",null,null,null,null,null,"","","","","",null,"",null,null,null,"",null,null,null,null,"","","",null,null,null,null,null,null,null,null,null,null,null,null,null,null,null,null,null,null,null,null,null,null,"","","","",null,null,null,null,"","",""]
["",null,null,null,null,null,"","","","","",null,"",null,null,null,"",null,null,null,null,"","","",null,null,null,null,null,null,null,null,null,null,null,null,null,null,null,null,null,null,null,null,null,null,"","","","",null,null,null,null,"","",""]
["",null,null,null,null,null,"","","","","",null,"",null,null,null,"",null,null,null,null,"","","",null,null,null,null,null,null,null,null,null,null,null,null,null,null,null,null,null,null,null,null,null,null,"","","","",null,null,null,null,"","",""]
["",null,null,null,null,null,"","","","","",null,"",null,null,null,"",null,null,null,null,"","","",null,null,null,null,null,null,null,null,null,null,null,null,null,null,null,null,null,null,null,null,null,null,"","","","",null,null,null,null,"","",""]
["",null,null,null,null,null,"","","","","",null,"",null,null,null,"",null,null,null,null,"","","",null,null,null,null,null,null,null,null,null,null,null,null,null,null,null,null,null,null,null,null,null,null,"","","","",null,null,null,null,"","",""]
["",null,null,null,null,null,"","","","","",null,"",null,null,null,"",null,null,null,null,"","","",null,null,null,null,null,null,null,null,null,null,null,null,null,null,null,null,null,null,null,null,null,null,"","","","",null,null,null,null,"","",""]
["",null,null,null,null,null,"","","","","",null,"",null,null,null,"",null,null,null,null,"","","",null,null,null,null,null,null,null,null,null,null,null,null,null,null,null,null,null,null,null,null,null,null,"","","","",null,null,null,null,"","",""]
["",null,null,null,null,null,"","","","","",null,"",null,null,null,"",null,null,null,null,"","","",null,null,null,null,null,null,null,null,null,null,null,null,null,null,null,null,null,null,null,null,null,null,"","","","",null,null,null,null,"","",""]
["",null,null,null,null,null,"","","","","",null,"",null,null,null,"",null,null,null,null,"","","",null,null,null,null,null,null,null,null,null,null,null,null,null,null,null,null,null,null,null,null,null,null,"","","","",null,null,null,null,"","",""]
["",null,null,null,null,null,"","","","","",null,"",null,null,null,"",null,null,null,null,"","","",null,null,null,null,null,null,null,null,null,null,null,null,null,null,null,null,null,null,null,null,null,null,"","","","",null,null,null,null,"","",""]
["",null,null,null,null,null,"","","","","",null,"",null,null,null,"",null,null,null,null,"","","",null,null,null,null,null,null,null,null,null,null,null,null,null,null,null,null,null,null,null,null,null,null,"","","","",null,null,null,null,"","",""]
["",null,null,null,null,null,"","","","","",null,"",null,null,null,"",null,null,null,null,"","","",null,null,null,null,null,null,null,null,null,null,null,null,null,null,null,null,null,null,null,null,null,null,"","","","",null,null,null,null,"","",""]
["",null,null,null,null,null,"","","","","",null,"",null,null,null,"",null,null,null,null,"","","",null,null,null,null,null,null,null,null,null,null,null,null,null,null,null,null,null,null,null,null,null,null,"","","","",null,null,null,null,"","",""]
["",null,null,null,null,null,"","","","","",null,"",null,null,null,"",null,null,null,null,"","","",null,null,null,null,null,null,null,null,null,null,null,null,null,null,null,null,null,null,null,null,null,null,"","","","",null,null,null,null,"","",""]
["",null,null,null,null,null,"","","","","",null,"",null,null,null,"",null,null,null,null,"","","",null,null,null,null,null,null,null,null,null,null,null,null,null,null,null,null,null,null,null,null,null,null,"","","","",null,null,null,null,"","",""]
["",null,null,null,null,null,"","","","","",null,"",null,null,null,"",null,null,null,null,"","","",null,null,null,null,null,null,null,null,null,null,null,null,null,null,null,null,null,null,null,null,null,null,"","","","",null,null,null,null,"","",""]
["",null,null,null,null,null,"","","","","",null,"",null,null,null,"",null,null,null,null,"","","",null,null,null,null,null,null,null,null,null,null,null,null,null,null,null,null,null,null,null,null,null,null,"","","","",null,null,null,null,"","",""]
["",null,null,null,null,null,"","","","","",null,"",null,null,null,"",null,null,null,null,"","","",null,null,null,null,null,null,null,null,null,null,null,null,null,null,null,null,null,null,null,null,null,null,"","","","",null,null,null,null,"","",""]
["",null,null,null,null,null,"","","","","",null,"",null,null,null,"",null,null,null,null,"","","",null,null,null,null,null,null,null,null,null,null,null,null,null,null,null,null,null,null,null,null,null,null,"","","","",null,null,null,null,"","",""]
["",null,null,null,null,null,"","","","","",null,"",null,null,null,"",null,null,null,null,"","","",null,null,null,null,null,null,null,null,null,null,null,null,null,null,null,null,null,null,null,null,null,null,"","","","",null,null,null,null,"","",""]
["",null,null,null,null,null,"","","","","",null,"",null,null,null,"",null,null,null,null,"","","",null,null,null,null,null,null,null,null,null,null,null,null,null,null,null,null,null,null,null,null,null,null,"","","","",null,null,null,null,"","",""]
["",null,null,null,null,null,"","","","","",null,"",null,null,null,"",null,null,null,null,"","","",null,null,null,null,null,null,null,null,null,null,null,null,null,null,null,null,null,null,null,null,null,null,"","","","",null,null,null,null,"","",""]
["",null,null,null,null,null,"","","","","",null,"",null,null,null,"",null,null,null,null,"","","",null,null,null,null,null,null,null,null,null,null,null,null,null,null,null,null,null,null,null,null,null,null,"","","","",null,null,null,null,"","",""]
["",null,null,null,null,null,"","","","","",null,"",null,null,null,"",null,null,null,null,"","","",null,null,null,null,null,null,null,null,null,null,null,null,null,null,null,null,null,null,null,null,null,null,"","","","",null,null,null,null,"","",""]
["",null,null,null,null,null,"","","","","",null,"",null,null,null,"",null,null,null,null,"","","",null,null,null,null,null,null,null,null,null,null,null,null,null,null,null,null,null,null,null,null,null,null,"","","","",null,null,null,null,"","",""]
["",null,null,null,null,null,"","","","","",null,"",null,null,null,"",null,null,null,null,"","","",null,null,null,null,null,null,null,null,null,null,null,null,null,null,null,null,null,null,null,null,null,null,"","","","",null,null,null,null,"","",""]
["",null,null,null,null,null,"","","","","",null,"",null,null,null,"",null,null,null,null,"","","",null,null,null,null,null,null,null,null,null,null,null,null,null,null,null,null,null,null,null,null,null,null,"","","","",null,null,null,null,"","",""]
["",null,null,null,null,null,"","","","","",null,"",null,null,null,"",null,null,null,null,"","","",null,null,null,null,null,null,null,null,null,null,null,null,null,null,null,null,null,null,null,null,null,null,"","","","",null,null,null,null,"","",""]
["",null,null,null,null,null,"","","","","",null,"",null,null,null,"",null,null,null,null,"","","",null,null,null,null,null,null,null,null,null,null,null,null,null,null,null,null,null,null,null,null,null,null,"","","","",null,null,null,null,"","",""]
["",null,null,null,null,null,"","","","","",null,"",null,null,null,"",null,null,null,null,"","","",null,null,null,null,null,null,null,null,null,null,null,null,null,null,null,null,null,null,null,null,null,null,"","","","",null,null,null,null,"","",""]
["",null,null,null,null,null,"","","","","",null,"",null,null,null,"",null,null,null,null,"","","",null,null,null,null,null,null,null,null,null,null,null,null,null,null,null,null,null,null,null,null,null,null,"","","","",null,null,null,null,"","",""]
["",null,null,null,null,null,"","","","","",null,"",null,null,null,"",null,null,null,null,"","","",null,null,null,null,null,null,null,null,null,null,null,null,null,null,null,null,null,null,null,null,null,null,"","","","",null,null,null,null,"","",""]
["",null,null,null,null,null,"","","","","",null,"",null,null,null,"",null,null,null,null,"","","",null,null,null,null,null,null,null,null,null,null,null,null,null,null,null,null,null,null,null,null,null,null,"","","","",null,null,null,null,"","",""]
["",null,null,null,null,null,"","","","","",null,"",null,null,null,"",null,null,null,null,"","","",null,null,null,null,null,null,null,null,null,null,null,null,null,null,null,null,null,null,null,null,null,null,"","","","",null,null,null,null,"","",""]
["",null,null,null,null,null,"","","","","",null,"",null,null,null,"",null,null,null,null,"","","",null,null,null,null,null,null,null,null,null,null,null,null,null,null,null,null,null,null,null,null,null,null,"","","","",null,null,null,null,"","",""]
["",null,null,null,null,null,"","","","","",null,"",null,null,null,"",null,null,null,null,"","","",null,null,null,null,null,null,null,null,null,null,null,null,null,null,null,null,null,null,null,null,null,null,"","","","",null,null,null,null,"","",""]
["",null,null,null,null,null,"","","","","",null,"",null,null,null,"",null,null,null,null,"","","",null,null,null,null,null,null,null,null,null,null,null,null,null,null,null,null,null,null,null,null,null,null,"","","","",null,null,null,null,"","",""]
["",null,null,null,null,null,"","","","","",null,"",null,null,null,"",null,null,null,null,"","","",null,null,null,null,null,null,null,null,null,null,null,null,null,null,null,null,null,null,null,null,null,null,"","","","",null,null,null,null,"","",""]
["",null,null,null,null,null,"","","","","",null,"",null,null,null,"",null,null,null,null,"","","",null,null,null,null,null,null,null,null,null,null,null,null,null,null,null,null,null,null,null,null,null,null,"","","","",null,null,null,null,"","",""]
["",null,null,null,null,null,"","","","","",null,"",null,null,null,"",null,null,null,null,"","","",null,null,null,null,null,null,null,null,null,null,null,null,null,null,null,null,null,null,null,null,null,null,"","","","",null,null,null,null,"","",""]
["",null,null,null,null,null,"","","","","",null,"",null,null,null,"",null,null,null,null,"","","",null,null,null,null,null,null,null,null,null,null,null,null,null,null,null,null,null,null,null,null,null,null,"","","","",null,null,null,null,"","",""]
["",null,null,null,null,null,"","","","","",null,"",null,null,null,"",null,null,null,null,"","","",null,null,null,null,null,null,null,null,null,null,null,null,null,null,null,null,null,null,null,null,null,null,"","","","",null,null,null,null,"","",""]
["",null,null,null,null,null,"","","","","",null,"",null,null,null,"",null,null,null,null,"","","",null,null,null,null,null,null,null,null,null,null,null,null,null,null,null,null,null,null,null,null,null,null,"","","","",null,null,null,null,"","",""]
["",null,null,null,null,null,"","","","","",null,"",null,null,null,"",null,null,null,null,"","","",null,null,null,null,null,null,null,null,null,null,null,null,null,null,null,null,null,null,null,null,null,null,"","","","",null,null,null,null,"","",""]
["",null,null,null,null,null,"","","","","",null,"",null,null,null,"",null,null,null,null,"","","",null,null,null,null,null,null,null,null,null,null,null,null,null,null,null,null,null,null,null,null,null,null,"","","","",null,null,null,null,"","",""]
["",null,null,null,null,null,"","","",{"$f":"IF(E712=\"\",\"\",DATE(I712,H712,G712))","v":""},"",null,{"$f":"IF(E712=\"\",\"\",IF(ISODD(MID(E712,13,1)),\"ذكر\",\"أنثى\"))","v":""},null,null,null,"",null,null,null,null,"","","",null,null,null,null,null,null,null,null,null,null,null,null,null,null,null,null,null,null,null,null,null,null,"","","","",null,null,null,null,"","",""]
[{"$f":"IF(F713=\"\",\"\",A712+1)","v":""},null,null,null,null,null,{"$f":"RIGHT(LEFT(E713,7),2)","v":""},{"$f":"RIGHT(LEFT(E713,5),2)","v":""},{"$f":"IF(E713=\"\",\"\",IF(ISODD(MID(E713,1,1)),MID(E713,2,2)+2000,MID(E713,2,2)+1900))","v":""},"",{"$f":"IF(J713=\"\",\"\",$K$4+J713-1)","v":""},null,"",null,null,null,{"$f":"IF(F713=\"\",\"\",\"الغربية\")","v":""},null,null,null,null,{"$f":"IF(U713=\"\",\"\",DATEDIF(U713,$V$3,\"md\"))","v":""},{"$f":"IF(U713=\"\",\"\",DATEDIF(U713,$V$3,\"ym\"))","v":""},{"$f":"IF(U713=\"\",\"\",DATEDIF(U713,$V$3,\"y\"))","v":""},null,null,null,null,null,null,null,null,null,null,null,null,null,null,null,null,null,null,null,null,null,null,{"$f":"IF(U713=\"\",\"\",DATEDIF(U713,$AU$3,\"md\"))","v":""},{"$f":"IF(U713=\"\",\"\",DATEDIF(U713,$AU$3,\"ym\"))","v":""},{"$f":"IF(U713=\"\",\"\",DATEDIF(U713,$AU$3,\"y\"))","v":""},"",null,null,null,null,{"$f":"IF(A713=\"\",\"\",A713)","v":""},{"$f":"IF(D713=\"\",\"\",D713)","v":""},{"$f":"IF(F713=\"\",\"\",F713)","v":""}]
["",null,null,null,null,null,"","","","","",null,"",null,null,null,"",null,null,null,null,"","","",null,null,null,null,null,null,null,null,null,null,null,null,null,null,null,null,null,null,null,null,null,null,"","","",{"$f":"IF(J714=\"\",\"\",$AX$3+J714-1)","v":""},null,null,null,null,"","",""]
["",null,null,null,null,null,"","","","","",null,"",null,null,null,"",null,null,null,null,"","","",null,null,null,null,null,null,null,null,null,null,null,null,null,null,null,null,null,null,null,null,null,null,"","","","",null,null,null,null,"","",""]
["",null,null,null,null,null,"","","","","",null,"",null,null,null,"",null,null,null,null,"","","",null,null,null,null,null,null,null,null,null,null,null,null,null,null,null,null,null,null,null,null,null,null,"","","","",null,null,null,null,"","",""]
["",null,null,null,null,null,"","","","","",null,"",null,null,null,"",null,null,null,null,"","","",null,null,null,null,null,null,null,null,null,null,null,null,null,null,null,null,null,null,null,null,null,null,"","","","",null,null,null,null,"","",""]
["",null,null,null,null,null,"","","","","",null,"",null,null,null,"",null,null,null,null,"","","",null,null,null,null,null,null,null,null,null,null,null,null,null,null,null,null,null,null,null,null,null,null,"","","","",null,null,null,null,"","",""]
["",null,null,null,null,null,"","","","","",null,"",null,null,null,"",null,null,null,null,"","","",null,null,null,null,null,null,null,null,null,null,null,null,null,null,null,null,null,null,null,null,null,null,"","","","",null,null,null,null,"","",""]
["",null,null,null,null,null,"","","","","",null,"",null,null,null,"",null,null,null,null,"","","",null,null,null,null,null,null,null,null,null,null,null,null,null,null,null,null,null,null,null,null,null,null,"","","","",null,null,null,null,"","",""]
["",null,null,null,null,null,"","","","","",null,"",null,null,null,"",null,null,null,null,"","","",null,null,null,null,null,null,null,null,null,null,null,null,null,null,null,null,null,null,null,null,null,null,"","","","",null,null,null,null,"","",""]
["",null,null,null,null,null,"","","","","",null,"",null,null,null,"",null,null,null,null,"","","",null,null,null,null,null,null,null,null,null,null,null,null,null,null,null,null,null,null,null,null,null,null,"","","","",null,null,null,null,"","",""]
["",null,null,null,null,null,"","","","","",null,"",null,null,null,"",null,null,null,null,"","","",null,null,null,null,null,null,null,null,null,null,null,null,null,null,null,null,null,null,null,null,null,null,"","","","",null,null,null,null,"","",""]
["",null,null,null,null,null,"","","","","",null,"",null,null,null,"",null,null,null,null,"","","",null,null,null,null,null,null,null,null,null,null,null,null,null,null,null,null,null,null,null,null,null,null,"","","","",null,null,null,null,"","",""]
["",null,null,null,null,null,"","","","","",null,"",null,null,null,"",null,null,null,null,"","","",null,null,null,null,null,null,null,null,null,null,null,null,null,null,null,null,null,null,null,null,null,null,"","","","",null,null,null,null,"","",""]
["",null,null,null,null,null,"","","","","",null,"",null,null,null,"",null,null,null,null,"","","",null,null,null,null,null,null,null,null,null,null,null,null,null,null,null,null,null,null,null,null,null,null,"","","","",null,null,null,null,"","",""]
["",null,null,null,null,null,"","","","","",null,"",null,null,null,"",null,null,null,null,"","","",null,null,null,null,null,null,null,null,null,null,null,null,null,null,null,null,null,null,null,null,null,null,"","","","",null,null,null,null,"","",""]
["",null,null,null,null,null,"","","","","",null,"",null,null,null,"",null,null,null,null,"","","",null,null,null,null,null,null,null,null,null,null,null,null,null,null,null,null,null,null,null,null,null,null,"","","","",null,null,null,null,"","",""]
["",null,null,null,null,null,"","","","","",null,"",null,null,null,"",null,null,null,null,"","","",null,null,null,null,null,null,null,null,null,null,null,null,null,null,null,null,null,null,null,null,null,null,"","","","",null,null,null,null,"","",""]
["",null,null,null,null,null,"","","","","",null,"",null,null,null,"",null,null,null,null,"","","",null,null,null,null,null,null,null,null,null,null,null,null,null,null,null,null,null,null,null,null,null,null,"","","","",null,null,null,null,"","",""]
["",null,null,null,null,null,"","","","","",null,"",null,null,null,"",null,null,null,null,"","","",null,null,null,null,null,null,null,null,null,null,null,null,null,null,null,null,null,null,null,null,null,null,"","","","",null,null,null,null,"","",""]
["",null,null,null,null,null,"","","","","",null,"",null,null,null,"",null,null,null,null,"","","",null,null,null,null,null,null,null,null,null,null,null,null,null,null,null,null,null,null,null,null,null,null,"","","","",null,null,null,null,"","",""]
["",null,null,null,null,null,"","","","","",null,"",null,null,null,"",null,null,null,null,"","","",null,null,null,null,null,null,null,null,null,null,null,null,null,null,null,null,null,null,null,null,null,null,"","","","",null,null,null,null,"","",""]
["",null,null,null,null,null,"","","","","",null,"",null,null,null,"",null,null,null,null,"","","",null,null,null,null,null,null,null,null,null,null,null,null,null,null,null,null,null,null,null,null,null,null,"","","","",null,null,null,null,"","",""]
["",null,null,null,null,null,"","","","","",null,"",null,null,null,"",null,null,null,null,"","","",null,null,null,null,null,null,null,null,null,null,null,null,null,null,null,null,null,null,null,null,null,null,"","","","",null,null,null,null,"","",""]
["",null,null,null,null,null,"","","","","",null,"",null,null,null,"",null,null,null,null,"","","",null,null,null,null,null,null,null,null,null,null,null,null,null,null,null,null,null,null,null,null,null,null,"","","","",null,null,null,null,"","",""]
["",null,null,null,null,null,"","","","","",null,"",null,null,null,"",null,null,null,null,"","","",null,null,null,null,null,null,null,null,null,null,null,null,null,null,null,null,null,null,null,null,null,null,"","","","",null,null,null,null,"","",""]
["",null,null,null,null,null,"","","","","",null,"",null,null,null,"",null,null,null,null,"","","",null,null,null,null,null,null,null,null,null,null,null,null,null,null,null,null,null,null,null,null,null,null,"","","","",null,null,null,null,"","",""]
["",null,null,null,null,null,"","","","","",null,"",null,null,null,"",null,null,null,null,"","","",null,null,null,null,null,null,null,null,null,null,null,null,null,null,null,null,null,null,null,null,null,null,"","","","",null,null,null,null,"","",""]
["",null,null,null,null,null,"","","","","",null,"",null,null,null,"",null,null,null,null,"","","",null,null,null,null,null,null,null,null,null,null,null,null,null,null,null,null,null,null,null,null,null,null,"","","","",null,null,null,null,"","",""]
["",null,null,null,null,null,"","","","","",null,"",null,null,null,"",null,null,null,null,"","","",null,null,null,null,null,null,null,null,null,null,null,null,null,null,null,null,null,null,null,null,null,null,"","","","",null,null,null,null,"","",""]
["",null,null,null,null,null,"","","","","",null,"",null,null,null,"",null,null,null,null,"","","",null,null,null,null,null,null,null,null,null,null,null,null,null,null,null,null,null,null,null,null,null,null,"","","","",null,null,null,null,"","",""]
["",null,null,null,null,null,"","","","","",null,"",null,null,null,"",null,null,null,null,"","","",null,null,null,null,null,null,null,null,null,null,null,null,null,null,null,null,null,null,null,null,null,null,"","","","",null,null,null,null,"","",""]
["",null,null,null,null,null,"","","","","",null,"",null,null,null,"",null,null,null,null,"","","",null,null,null,null,null,null,null,null,null,null,null,null,null,null,null,null,null,null,null,null,null,null,"","","","",null,null,null,null,"","",""]
["",null,null,null,null,null,"","","","","",null,"",null,null,null,"",null,null,null,null,"","","",null,null,null,null,null,null,null,null,null,null,null,null,null,null,null,null,null,null,null,null,null,null,"","","","",null,null,null,null,"","",""]
["",null,null,null,null,null,"","","","","",null,"",null,null,null,"",null,null,null,null,"","","",null,null,null,null,null,null,null,null,null,null,null,null,null,null,null,null,null,null,null,null,null,null,"","","","",null,null,null,null,"","",""]
["",null,null,null,null,null,"","","","","",null,"",null,null,null,"",null,null,null,null,"","","",null,null,null,null,null,null,null,null,null,null,null,null,null,null,null,null,null,null,null,null,null,null,"","","","",null,null,null,null,"","",""]
["",null,null,null,null,null,"","","","","",null,"",null,null,null,"",null,null,null,null,"","","",null,null,null,null,null,null,null,null,null,null,null,null,null,null,null,null,null,null,null,null,null,null,"","","","",null,null,null,null,"","",""]
["",null,null,null,null,null,"","","","","",null,"",null,null,null,"",null,null,null,null,"","","",null,null,null,null,null,null,null,null,null,null,null,null,null,null,null,null,null,null,null,null,null,null,"","","","",null,null,null,null,"","",""]
["",null,null,null,null,null,"","","","","",null,"",null,null,null,"",null,null,null,null,"","","",null,null,null,null,null,null,null,null,null,null,null,null,null,null,null,null,null,null,null,null,null,null,"","","","",null,null,null,null,"","",""]
["",null,null,null,null,null,"","","","","",null,"",null,null,null,"",null,null,null,null,"","","",null,null,null,null,null,null,null,null,null,null,null,null,null,null,null,null,null,null,null,null,null,null,"","","","",null,null,null,null,"","",""]
["",null,null,null,null,null,"","","","","",null,"",null,null,null,"",null,null,null,null,"","","",null,null,null,null,null,null,null,null,null,null,null,null,null,null,null,null,null,null,null,null,null,null,"","","","",null,null,null,null,"","",""]
["",null,null,null,null,null,"","","","","",null,"",null,null,null,"",null,null,null,null,"","","",null,null,null,null,null,null,null,null,null,null,null,null,null,null,null,null,null,null,null,null,null,null,"","","","",null,null,null,null,"","",""]
["",null,null,null,null,null,"","","","","",null,"",null,null,null,"",null,null,null,null,"","","",null,null,null,null,null,null,null,null,null,null,null,null,null,null,null,null,null,null,null,null,null,null,"","","","",null,null,null,null,"","",""]
["",null,null,null,null,null,"","","","","",null,"",null,null,null,"",null,null,null,null,"","","",null,null,null,null,null,null,null,null,null,null,null,null,null,null,null,null,null,null,null,null,null,null,"","","","",null,null,null,null,"","",""]
["",null,null,null,null,null,"","","","","",null,"",null,null,null,"",null,null,null,null,"","","",null,null,null,null,null,null,null,null,null,null,null,null,null,null,null,null,null,null,null,null,null,null,"","","","",null,null,null,null,"","",""]
["",null,null,null,null,null,"","","","","",null,"",null,null,null,"",null,null,null,null,"","","",null,null,null,null,null,null,null,null,null,null,null,null,null,null,null,null,null,null,null,null,null,null,"","","","",null,null,null,null,"","",""]
["",null,null,null,null,null,"","","","","",null,"",null,null,null,"",null,null,null,null,"","","",null,null,null,null,null,null,null,null,null,null,null,null,null,null,null,null,null,null,null,null,null,null,"","","","",null,null,null,null,"","",""]
["",null,null,null,null,null,"","","","","",null,"",null,null,null,"",null,null,null,null,"","","",null,null,null,null,null,null,null,null,null,null,null,null,null,null,null,null,null,null,null,null,null,null,"","","","",null,null,null,null,"","",""]
["",null,null,null,null,null,"","","","","",null,"",null,null,null,"",null,null,null,null,"","","",null,null,null,null,null,null,null,null,null,null,null,null,null,null,null,null,null,null,null,null,null,null,"","","","",null,null,null,null,"","",""]
["",null,null,null,null,null,"","","","","",null,"",null,null,null,"",null,null,null,null,"","","",null,null,null,null,null,null,null,null,null,null,null,null,null,null,null,null,null,null,null,null,null,null,"","","","",null,null,null,null,"","",""]
["",null,null,null,null,null,"","","","","",null,"",null,null,null,"",null,null,null,null,"","","",null,null,null,null,null,null,null,null,null,null,null,null,null,null,null,null,null,null,null,null,null,null,"","","","",null,null,null,null,"","",""]
["",null,null,null,null,null,"","","","","",null,"",null,null,null,"",null,null,null,null,"","","",null,null,null,null,null,null,null,null,null,null,null,null,null,null,null,null,null,null,null,null,null,null,"","","","",null,null,null,null,"","",""]
["",null,null,null,null,null,"","","","","",null,"",null,null,null,"",null,null,null,null,"","","",null,null,null,null,null,null,null,null,null,null,null,null,null,null,null,null,null,null,null,null,null,null,"","","","",null,null,null,null,"","",""]
["",null,null,null,null,null,"","","","","",null,"",null,null,null,"",null,null,null,null,"","","",null,null,null,null,null,null,null,null,null,null,null,null,null,null,null,null,null,null,null,null,null,null,"","","","",null,null,null,null,"","",""]
["",null,null,null,null,null,"","","","","",null,"",null,null,null,"",null,null,null,null,"","","",null,null,null,null,null,null,null,null,null,null,null,null,null,null,null,null,null,null,null,null,null,null,"","","","",null,null,null,null,"","",""]
["",null,null,null,null,null,"","","","","",null,"",null,null,null,"",null,null,null,null,"","","",null,null,null,null,null,null,null,null,null,null,null,null,null,null,null,null,null,null,null,null,null,null,"","","","",null,null,null,null,"","",""]
["",null,null,null,null,null,"","","","","",null,"",null,null,null,"",null,null,null,null,"","","",null,null,null,null,null,null,null,null,null,null,null,null,null,null,null,null,null,null,null,null,null,null,"","","","",null,null,null,null,"","",""]
["",null,null,null,null,null,"","","","","",null,"",null,null,null,"",null,null,null,null,"","","",null,null,null,null,null,null,null,null,null,null,null,null,null,null,null,null,null,null,null,null,null,null,"","","","",null,null,null,null,"","",""]
["",null,null,null,null,null,"","","","","",null,"",null,null,null,"",null,null,null,null,"","","",null,null,null,null,null,null,null,null,null,null,null,null,null,null,null,null,null,null,null,null,null,null,"","","","",null,null,null,null,"","",""]
["",null,null,null,null,null,"","","","","",null,"",null,null,null,"",null,null,null,null,"","","",null,null,null,null,null,null,null,null,null,null,null,null,null,null,null,null,null,null,null,null,null,null,"","","","",null,null,null,null,"","",""]
["",null,null,null,null,null,"","","","","",null,"",null,null,null,"",null,null,null,null,"","","",null,null,null,null,null,null,null,null,null,null,null,null,null,null,null,null,null,null,null,null,null,null,"","","","",null,null,null,null,"","",""]
["",null,null,null,null,null,"","","","","",null,"",null,null,null,"",null,null,null,null,"","","",null,null,null,null,null,null,null,null,null,null,null,null,null,null,null,null,null,null,null,null,null,null,"","","","",null,null,null,null,"","",""]
["",null,null,null,null,null,"","","","","",null,"",null,null,null,"",null,null,null,null,"","","",null,null,null,null,null,null,null,null,null,null,null,null,null,null,null,null,null,null,null,null,null,null,"","","","",null,null,null,null,"","",""]
["",null,null,null,null,null,"","","","","",null,"",null,null,null,"",null,null,null,null,"","","",null,null,null,null,null,null,null,null,null,null,null,null,null,null,null,null,null,null,null,null,null,null,"","","","",null,null,null,null,"","",""]
["",null,null,null,null,null,"","","",{"$f":"IF(E776=\"\",\"\",DATE(I776,H776,G776))","v":""},"",null,{"$f":"IF(E776=\"\",\"\",IF(ISODD(MID(E776,13,1)),\"ذكر\",\"أنثى\"))","v":""},null,null,null,"",null,null,null,null,"","","",null,null,null,null,null,null,null,null,null,null,null,null,null,null,null,null,null,null,null,null,null,null,"","","","",null,null,null,null,"","",""]
[{"$f":"IF(F777=\"\",\"\",A776+1)","v":""},null,null,null,null,null,{"$f":"RIGHT(LEFT(E777,7),2)","v":""},{"$f":"RIGHT(LEFT(E777,5),2)","v":""},{"$f":"IF(E777=\"\",\"\",IF(ISODD(MID(E777,1,1)),MID(E777,2,2)+2000,MID(E777,2,2)+1900))","v":""},"",{"$f":"IF(J777=\"\",\"\",$K$4+J777-1)","v":""},null,"",null,null,null,{"$f":"IF(F777=\"\",\"\",\"الغربية\")","v":""},null,null,null,null,{"$f":"IF(U777=\"\",\"\",DATEDIF(U777,$V$3,\"md\"))","v":""},{"$f":"IF(U777=\"\",\"\",DATEDIF(U777,$V$3,\"ym\"))","v":""},{"$f":"IF(U777=\"\",\"\",DATEDIF(U777,$V$3,\"y\"))","v":""},null,null,null,null,null,null,null,null,null,null,null,null,null,null,null,null,null,null,null,null,null,null,{"$f":"IF(U777=\"\",\"\",DATEDIF(U777,$AU$3,\"md\"))","v":""},{"$f":"IF(U777=\"\",\"\",DATEDIF(U777,$AU$3,\"ym\"))","v":""},{"$f":"IF(U777=\"\",\"\",DATEDIF(U777,$AU$3,\"y\"))","v":""},"",null,null,null,null,{"$f":"IF(A777=\"\",\"\",A777)","v":""},{"$f":"IF(D777=\"\",\"\",D777)","v":""},{"$f":"IF(F777=\"\",\"\",F777)","v":""}]
["",null,null,null,null,null,"","","","","",null,"",null,null,null,"",null,null,null,null,"","","",null,null,null,null,null,null,null,null,null,null,null,null,null,null,null,null,null,null,null,null,null,null,"","","",{"$f":"IF(J778=\"\",\"\",$AX$3+J778-1)","v":""},null,null,null,null,"","",""]
["",null,null,null,null,null,"","","","","",null,"",null,null,null,"",null,null,null,null,"","","",null,null,null,null,null,null,null,null,null,null,null,null,null,null,null,null,null,null,null,null,null,null,"","","","",null,null,null,null,"","",""]
["",null,null,null,null,null,"","","","","",null,"",null,null,null,"",null,null,null,null,"","","",null,null,null,null,null,null,null,null,null,null,null,null,null,null,null,null,null,null,null,null,null,null,"","","","",null,null,null,null,"","",""]
["",null,null,null,null,null,"","","","","",null,"",null,null,null,"",null,null,null,null,"","","",null,null,null,null,null,null,null,null,null,null,null,null,null,null,null,null,null,null,null,null,null,null,"","","","",null,null,null,null,"","",""]
["",null,null,null,null,null,"","","","","",null,"",null,null,null,"",null,null,null,null,"","","",null,null,null,null,null,null,null,null,null,null,null,null,null,null,null,null,null,null,null,null,null,null,"","","","",null,null,null,null,"","",""]
["",null,null,null,null,null,"","","","","",null,"",null,null,null,"",null,null,null,null,"","","",null,null,null,null,null,null,null,null,null,null,null,null,null,null,null,null,null,null,null,null,null,null,"","","","",null,null,null,null,"","",""]
["",null,null,null,null,null,"","","","","",null,"",null,null,null,"",null,null,null,null,"","","",null,null,null,null,null,null,null,null,null,null,null,null,null,null,null,null,null,null,null,null,null,null,"","","","",null,null,null,null,"","",""]
["",null,null,null,null,null,"","","","","",null,"",null,null,null,"",null,null,null,null,"","","",null,null,null,null,null,null,null,null,null,null,null,null,null,null,null,null,null,null,null,null,null,null,"","","","",null,null,null,null,"","",""]
["",null,null,null,null,null,"","","","","",null,"",null,null,null,"",null,null,null,null,"","","",null,null,null,null,null,null,null,null,null,null,null,null,null,null,null,null,null,null,null,null,null,null,"","","","",null,null,null,null,"","",""]
["",null,null,null,null,null,"","","","","",null,"",null,null,null,"",null,null,null,null,"","","",null,null,null,null,null,null,null,null,null,null,null,null,null,null,null,null,null,null,null,null,null,null,"","","","",null,null,null,null,"","",""]
["",null,null,null,null,null,"","","","","",null,"",null,null,null,"",null,null,null,null,"","","",null,null,null,null,null,null,null,null,null,null,null,null,null,null,null,null,null,null,null,null,null,null,"","","","",null,null,null,null,"","",""]
["",null,null,null,null,null,"","","","","",null,"",null,null,null,"",null,null,null,null,"","","",null,null,null,null,null,null,null,null,null,null,null,null,null,null,null,null,null,null,null,null,null,null,"","","","",null,null,null,null,"","",""]
["",null,null,null,null,null,"","","","","",null,"",null,null,null,"",null,null,null,null,"","","",null,null,null,null,null,null,null,null,null,null,null,null,null,null,null,null,null,null,null,null,null,null,"","","","",null,null,null,null,"","",""]
["",null,null,null,null,null,"","","","","",null,"",null,null,null,"",null,null,null,null,"","","",null,null,null,null,null,null,null,null,null,null,null,null,null,null,null,null,null,null,null,null,null,null,"","","","",null,null,null,null,"","",""]
["",null,null,null,null,null,"","","","","",null,"",null,null,null,"",null,null,null,null,"","","",null,null,null,null,null,null,null,null,null,null,null,null,null,null,null,null,null,null,null,null,null,null,"","","","",null,null,null,null,"","",""]
["",null,null,null,null,null,"","","","","",null,"",null,null,null,"",null,null,null,null,"","","",null,null,null,null,null,null,null,null,null,null,null,null,null,null,null,null,null,null,null,null,null,null,"","","","",null,null,null,null,"","",""]
["",null,null,null,null,null,"","","","","",null,"",null,null,null,"",null,null,null,null,"","","",null,null,null,null,null,null,null,null,null,null,null,null,null,null,null,null,null,null,null,null,null,null,"","","","",null,null,null,null,"","",""]
["",null,null,null,null,null,"","","","","",null,"",null,null,null,"",null,null,null,null,"","","",null,null,null,null,null,null,null,null,null,null,null,null,null,null,null,null,null,null,null,null,null,null,"","","","",null,null,null,null,"","",""]
["",null,null,null,null,null,"","","","","",null,"",null,null,null,"",null,null,null,null,"","","",null,null,null,null,null,null,null,null,null,null,null,null,null,null,null,null,null,null,null,null,null,null,"","","","",null,null,null,null,"","",""]
["",null,null,null,null,null,"","","","","",null,"",null,null,null,"",null,null,null,null,"","","",null,null,null,null,null,null,null,null,null,null,null,null,null,null,null,null,null,null,null,null,null,null,"","","","",null,null,null,null,"","",""]
["",null,null,null,null,null,"","","","","",null,"",null,null,null,"",null,null,null,null,"","","",null,null,null,null,null,null,null,null,null,null,null,null,null,null,null,null,null,null,null,null,null,null,"","","","",null,null,null,null,"","",""]
["",null,null,null,null,null,"","","","","",null,"",null,null,null,"",null,null,null,null,"","","",null,null,null,null,null,null,null,null,null,null,null,null,null,null,null,null,null,null,null,null,null,null,"","","","",null,null,null,null,"","",""]
["",null,null,null,null,null,"","","","","",null,"",null,null,null,"",null,null,null,null,"","","",null,null,null,null,null,null,null,null,null,null,null,null,null,null,null,null,null,null,null,null,null,null,"","","","",null,null,null,null,"","",""]
["",null,null,null,null,null,"","","","","",null,"",null,null,null,"",null,null,null,null,"","","",null,null,null,null,null,null,null,null,null,null,null,null,null,null,null,null,null,null,null,null,null,null,"","","","",null,null,null,null,"","",""]
["",null,null,null,null,null,"","","","","",null,"",null,null,null,"",null,null,null,null,"","","",null,null,null,null,null,null,null,null,null,null,null,null,null,null,null,null,null,null,null,null,null,null,"","","","",null,null,null,null,"","",""]
["",null,null,null,null,null,"","","","","",null,"",null,null,null,"",null,null,null,null,"","","",null,null,null,null,null,null,null,null,null,null,null,null,null,null,null,null,null,null,null,null,null,null,"","","","",null,null,null,null,"","",""]
["",null,null,null,null,null,"","","","","",null,"",null,null,null,"",null,null,null,null,"","","",null,null,null,null,null,null,null,null,null,null,null,null,null,null,null,null,null,null,null,null,null,null,"","","","",null,null,null,null,"","",""]
["",null,null,null,null,null,"","","","","",null,"",null,null,null,"",null,null,null,null,"","","",null,null,null,null,null,null,null,null,null,null,null,null,null,null,null,null,null,null,null,null,null,null,"","","","",null,null,null,null,"","",""]
["",null,null,null,null,null,"","","","","",null,"",null,null,null,"",null,null,null,null,"","","",null,null,null,null,null,null,null,null,null,null,null,null,null,null,null,null,null,null,null,null,null,null,"","","","",null,null,null,null,"","",""]
["",null,null,null,null,null,"","","","","",null,"",null,null,null,"",null,null,null,null,"","","",null,null,null,null,null,null,null,null,null,null,null,null,null,null,null,null,null,null,null,null,null,null,"","","","",null,null,null,null,"","",""]
["",null,null,null,null,null,"","","","","",null,"",null,null,null,"",null,null,null,null,"","","",null,null,null,null,null,null,null,null,null,null,null,null,null,null,null,null,null,null,null,null,null,null,"","","","",null,null,null,null,"","",""]
["",null,null,null,null,null,"","","","","",null,"",null,null,null,"",null,null,null,null,"","","",null,null,null,null,null,null,null,null,null,null,null,null,null,null,null,null,null,null,null,null,null,null,"","","","",null,null,null,null,"","",""]
["",null,null,null,null,null,"","","","","",null,"",null,null,null,"",null,null,null,null,"","","",null,null,null,null,null,null,null,null,null,null,null,null,null,null,null,null,null,null,null,null,null,null,"","","","",null,null,null,null,"","",""]
["",null,null,null,null,null,"","","","","",null,"",null,null,null,"",null,null,null,null,"","","",null,null,null,null,null,null,null,null,null,null,null,null,null,null,null,null,null,null,null,null,null,null,"","","","",null,null,null,null,"","",""]
["",null,null,null,null,null,"","","","","",null,"",null,null,null,"",null,null,null,null,"","","",null,null,null,null,null,null,null,null,null,null,null,null,null,null,null,null,null,null,null,null,null,null,"","","","",null,null,null,null,"","",""]
["",null,null,null,null,null,"","","","","",null,"",null,null,null,"",null,null,null,null,"","","",null,null,null,null,null,null,null,null,null,null,null,null,null,null,null,null,null,null,null,null,null,null,"","","","",null,null,null,null,"","",""]
["",null,null,null,null,null,"","","","","",null,"",null,null,null,"",null,null,null,null,"","","",null,null,null,null,null,null,null,null,null,null,null,null,null,null,null,null,null,null,null,null,null,null,"","","","",null,null,null,null,"","",""]
["",null,null,null,null,null,"","","","","",null,"",null,null,null,"",null,null,null,null,"","","",null,null,null,null,null,null,null,null,null,null,null,null,null,null,null,null,null,null,null,null,null,null,"","","","",null,null,null,null,"","",""]
["",null,null,null,null,null,"","","","","",null,"",null,null,null,"",null,null,null,null,"","","",null,null,null,null,null,null,null,null,null,null,null,null,null,null,null,null,null,null,null,null,null,null,"","","","",null,null,null,null,"","",""]
["",null,null,null,null,null,"","","","","",null,"",null,null,null,"",null,null,null,null,"","","",null,null,null,null,null,null,null,null,null,null,null,null,null,null,null,null,null,null,null,null,null,null,"","","","",null,null,null,null,"","",""]
["",null,null,null,null,null,"","","","","",null,"",null,null,null,"",null,null,null,null,"","","",null,null,null,null,null,null,null,null,null,null,null,null,null,null,null,null,null,null,null,null,null,null,"","","","",null,null,null,null,"","",""]
["",null,null,null,null,null,"","","","","",null,"",null,null,null,"",null,null,null,null,"","","",null,null,null,null,null,null,null,null,null,null,null,null,null,null,null,null,null,null,null,null,null,null,"","","","",null,null,null,null,"","",""]
["",null,null,null,null,null,"","","","","",null,"",null,null,null,"",null,null,null,null,"","","",null,null,null,null,null,null,null,null,null,null,null,null,null,null,null,null,null,null,null,null,null,null,"","","","",null,null,null,null,"","",""]
["",null,null,null,null,null,"","","","","",null,"",null,null,null,"",null,null,null,null,"","","",null,null,null,null,null,null,null,null,null,null,null,null,null,null,null,null,null,null,null,null,null,null,"","","","",null,null,null,null,"","",""]
["",null,null,null,null,null,"","","","","",null,"",null,null,null,"",null,null,null,null,"","","",null,null,null,null,null,null,null,null,null,null,null,null,null,null,null,null,null,null,null,null,null,null,"","","","",null,null,null,null,"","",""]
["",null,null,null,null,null,"","","","","",null,"",null,null,null,"",null,null,null,null,"","","",null,null,null,null,null,null,null,null,null,null,null,null,null,null,null,null,null,null,null,null,null,null,"","","","",null,null,null,null,"","",""]
["",null,null,null,null,null,"","","","","",null,"",null,null,null,"",null,null,null,null,"","","",null,null,null,null,null,null,null,null,null,null,null,null,null,null,null,null,null,null,null,null,null,null,"","","","",null,null,null,null,"","",""]
["",null,null,null,null,null,"","","","","",null,"",null,null,null,"",null,null,null,null,"","","",null,null,null,null,null,null,null,null,null,null,null,null,null,null,null,null,null,null,null,null,null,null,"","","","",null,null,null,null,"","",""]
["",null,null,null,null,null,"","","","","",null,"",null,null,null,"",null,null,null,null,"","","",null,null,null,null,null,null,null,null,null,null,null,null,null,null,null,null,null,null,null,null,null,null,"","","","",null,null,null,null,"","",""]
["",null,null,null,null,null,"","","","","",null,"",null,null,null,"",null,null,null,null,"","","",null,null,null,null,null,null,null,null,null,null,null,null,null,null,null,null,null,null,null,null,null,null,"","","","",null,null,null,null,"","",""]
["",null,null,null,null,null,"","","","","",null,"",null,null,null,"",null,null,null,null,"","","",null,null,null,null,null,null,null,null,null,null,null,null,null,null,null,null,null,null,null,null,null,null,"","","","",null,null,null,null,"","",""]
["",null,null,null,null,null,"","","","","",null,"",null,null,null,"",null,null,null,null,"","","",null,null,null,null,null,null,null,null,null,null,null,null,null,null,null,null,null,null,null,null,null,null,"","","","",null,null,null,null,"","",""]
["",null,null,null,null,null,"","","","","",null,"",null,null,null,"",null,null,null,null,"","","",null,null,null,null,null,null,null,null,null,null,null,null,null,null,null,null,null,null,null,null,null,null,"","","","",null,null,null,null,"","",""]
["",null,null,null,null,null,"","","","","",null,"",null,null,null,"",null,null,null,null,"","","",null,null,null,null,null,null,null,null,null,null,null,null,null,null,null,null,null,null,null,null,null,null,"","","","",null,null,null,null,"","",""]
["",null,null,null,null,null,"","","","","",null,"",null,null,null,"",null,null,null,null,"","","",null,null,null,null,null,null,null,null,null,null,null,null,null,null,null,null,null,null,null,null,null,null,"","","","",null,null,null,null,"","",""]
["",null,null,null,null,null,"","","","","",null,"",null,null,null,"",null,null,null,null,"","","",null,null,null,null,null,null,null,null,null,null,null,null,null,null,null,null,null,null,null,null,null,null,"","","","",null,null,null,null,"","",""]
["",null,null,null,null,null,"","","","","",null,"",null,null,null,"",null,null,null,null,"","","",null,null,null,null,null,null,null,null,null,null,null,null,null,null,null,null,null,null,null,null,null,null,"","","","",null,null,null,null,"","",""]
["",null,null,null,null,null,"","","","","",null,"",null,null,null,"",null,null,null,null,"","","",null,null,null,null,null,null,null,null,null,null,null,null,null,null,null,null,null,null,null,null,null,null,"","","","",null,null,null,null,"","",""]
["",null,null,null,null,null,"","","","","",null,"",null,null,null,"",null,null,null,null,"","","",null,null,null,null,null,null,null,null,null,null,null,null,null,null,null,null,null,null,null,null,null,null,"","","","",null,null,null,null,"","",""]
["",null,null,null,null,null,"","","","","",null,"",null,null,null,"",null,null,null,null,"","","",null,null,null,null,null,null,null,null,null,null,null,null,null,null,null,null,null,null,null,null,null,null,"","","","",null,null,null,null,"","",""]
["",null,null,null,null,null,"","","","","",null,"",null,null,null,"",null,null,null,null,"","","",null,null,null,null,null,null,null,null,null,null,null,null,null,null,null,null,null,null,null,null,null,null,"","","","",null,null,null,null,"","",""]
["",null,null,null,null,null,"","","","","",null,"",null,null,null,"",null,null,null,null,"","","",null,null,null,null,null,null,null,null,null,null,null,null,null,null,null,null,null,null,null,null,null,null,"","","","",null,null,null,null,"","",""]
["",null,null,null,null,null,"","","",{"$f":"IF(E840=\"\",\"\",DATE(I840,H840,G840))","v":""},"",null,{"$f":"IF(E840=\"\",\"\",IF(ISODD(MID(E840,13,1)),\"ذكر\",\"أنثى\"))","v":""},null,null,null,"",null,null,null,null,"","","",null,null,null,null,null,null,null,null,null,null,null,null,null,null,null,null,null,null,null,null,null,null,"","","","",null,null,null,null,"","",""]
[{"$f":"IF(F841=\"\",\"\",A840+1)","v":""},null,null,null,null,null,{"$f":"RIGHT(LEFT(E841,7),2)","v":""},{"$f":"RIGHT(LEFT(E841,5),2)","v":""},{"$f":"IF(E841=\"\",\"\",IF(ISODD(MID(E841,1,1)),MID(E841,2,2)+2000,MID(E841,2,2)+1900))","v":""},"",{"$f":"IF(J841=\"\",\"\",$K$4+J841-1)","v":""},null,"",null,null,null,{"$f":"IF(F841=\"\",\"\",\"الغربية\")","v":""},null,null,null,null,{"$f":"IF(U841=\"\",\"\",DATEDIF(U841,$V$3,\"md\"))","v":""},{"$f":"IF(U841=\"\",\"\",DATEDIF(U841,$V$3,\"ym\"))","v":""},{"$f":"IF(U841=\"\",\"\",DATEDIF(U841,$V$3,\"y\"))","v":""},null,null,null,null,null,null,null,null,null,null,null,null,null,null,null,null,null,null,null,null,null,null,{"$f":"IF(U841=\"\",\"\",DATEDIF(U841,$AU$3,\"md\"))","v":""},{"$f":"IF(U841=\"\",\"\",DATEDIF(U841,$AU$3,\"ym\"))","v":""},{"$f":"IF(U841=\"\",\"\",DATEDIF(U841,$AU$3,\"y\"))","v":""},"",null,null,null,null,{"$f":"IF(A841=\"\",\"\",A841)","v":""},{"$f":"IF(D841=\"\",\"\",D841)","v":""},{"$f":"IF(F841=\"\",\"\",F841)","v":""}]
["",null,null,null,null,null,"","","","","",null,"",null,null,null,"",null,null,null,null,"","","",null,null,null,null,null,null,null,null,null,null,null,null,null,null,null,null,null,null,null,null,null,null,"","","",{"$f":"IF(J842=\"\",\"\",$AX$3+J842-1)","v":""},null,null,null,null,"","",""]
["",null,null,null,null,null,"","","","","",null,"",null,null,null,"",null,null,null,null,"","","",null,null,null,null,null,null,null,null,null,null,null,null,null,null,null,null,null,null,null,null,null,null,"","","","",null,null,null,null,"","",""]
["",null,null,null,null,null,"","","","","",null,"",null,null,null,"",null,null,null,null,"","","",null,null,null,null,null,null,null,null,null,null,null,null,null,null,null,null,null,null,null,null,null,null,"","","","",null,null,null,null,"","",""]
["",null,null,null,null,null,"","","","","",null,"",null,null,null,"",null,null,null,null,"","","",null,null,null,null,null,null,null,null,null,null,null,null,null,null,null,null,null,null,null,null,null,null,"","","","",null,null,null,null,"","",""]
["",null,null,null,null,null,"","","","","",null,"",null,null,null,"",null,null,null,null,"","","",null,null,null,null,null,null,null,null,null,null,null,null,null,null,null,null,null,null,null,null,null,null,"","","","",null,null,null,null,"","",""]
["",null,null,null,null,null,"","","","","",null,"",null,null,null,"",null,null,null,null,"","","",null,null,null,null,null,null,null,null,null,null,null,null,null,null,null,null,null,null,null,null,null,null,"","","","",null,null,null,null,"","",""]
["",null,null,null,null,null,"","","","","",null,"",null,null,null,"",null,null,null,null,"","","",null,null,null,null,null,null,null,null,null,null,null,null,null,null,null,null,null,null,null,null,null,null,"","","","",null,null,null,null,"","",""]
["",null,null,null,null,null,"","","","","",null,"",null,null,null,"",null,null,null,null,"","","",null,null,null,null,null,null,null,null,null,null,null,null,null,null,null,null,null,null,null,null,null,null,"","","","",null,null,null,null,"","",""]
["",null,null,null,null,null,"","","","","",null,"",null,null,null,"",null,null,null,null,"","","",null,null,null,null,null,null,null,null,null,null,null,null,null,null,null,null,null,null,null,null,null,null,"","","","",null,null,null,null,"","",""]
["",null,null,null,null,null,"","","","","",null,"",null,null,null,"",null,null,null,null,"","","",null,null,null,null,null,null,null,null,null,null,null,null,null,null,null,null,null,null,null,null,null,null,"","","","",null,null,null,null,"","",""]
["",null,null,null,null,null,"","","","","",null,"",null,null,null,"",null,null,null,null,"","","",null,null,null,null,null,null,null,null,null,null,null,null,null,null,null,null,null,null,null,null,null,null,"","","","",null,null,null,null,"","",""]
["",null,null,null,null,null,"","","","","",null,"",null,null,null,"",null,null,null,null,"","","",null,null,null,null,null,null,null,null,null,null,null,null,null,null,null,null,null,null,null,null,null,null,"","","","",null,null,null,null,"","",""]
["",null,null,null,null,null,"","","","","",null,"",null,null,null,"",null,null,null,null,"","","",null,null,null,null,null,null,null,null,null,null,null,null,null,null,null,null,null,null,null,null,null,null,"","","","",null,null,null,null,"","",""]
["",null,null,null,null,null,"","","","","",null,"",null,null,null,"",null,null,null,null,"","","",null,null,null,null,null,null,null,null,null,null,null,null,null,null,null,null,null,null,null,null,null,null,"","","","",null,null,null,null,"","",""]
["",null,null,null,null,null,"","","","","",null,"",null,null,null,"",null,null,null,null,"","","",null,null,null,null,null,null,null,null,null,null,null,null,null,null,null,null,null,null,null,null,null,null,"","","","",null,null,null,null,"","",""]
["",null,null,null,null,null,"","","","","",null,"",null,null,null,"",null,null,null,null,"","","",null,null,null,null,null,null,null,null,null,null,null,null,null,null,null,null,null,null,null,null,null,null,"","","","",null,null,null,null,"","",""]
["",null,null,null,null,null,"","","","","",null,"",null,null,null,"",null,null,null,null,"","","",null,null,null,null,null,null,null,null,null,null,null,null,null,null,null,null,null,null,null,null,null,null,"","","","",null,null,null,null,"","",""]
["",null,null,null,null,null,"","","","","",null,"",null,null,null,"",null,null,null,null,"","","",null,null,null,null,null,null,null,null,null,null,null,null,null,null,null,null,null,null,null,null,null,null,"","","","",null,null,null,null,"","",""]
["",null,null,null,null,null,"","","","","",null,"",null,null,null,"",null,null,null,null,"","","",null,null,null,null,null,null,null,null,null,null,null,null,null,null,null,null,null,null,null,null,null,null,"","","","",null,null,null,null,"","",""]
["",null,null,null,null,null,"","","","","",null,"",null,null,null,"",null,null,null,null,"","","",null,null,null,null,null,null,null,null,null,null,null,null,null,null,null,null,null,null,null,null,null,null,"","","","",null,null,null,null,"","",""]
["",null,null,null,null,null,"","","","","",null,"",null,null,null,"",null,null,null,null,"","","",null,null,null,null,null,null,null,null,null,null,null,null,null,null,null,null,null,null,null,null,null,null,"","","","",null,null,null,null,"","",""]
["",null,null,null,null,null,"","","","","",null,"",null,null,null,"",null,null,null,null,"","","",null,null,null,null,null,null,null,null,null,null,null,null,null,null,null,null,null,null,null,null,null,null,"","","","",null,null,null,null,"","",""]
["",null,null,null,null,null,"","","","","",null,"",null,null,null,"",null,null,null,null,"","","",null,null,null,null,null,null,null,null,null,null,null,null,null,null,null,null,null,null,null,null,null,null,"","","","",null,null,null,null,"","",""]
["",null,null,null,null,null,"","","","","",null,"",null,null,null,"",null,null,null,null,"","","",null,null,null,null,null,null,null,null,null,null,null,null,null,null,null,null,null,null,null,null,null,null,"","","","",null,null,null,null,"","",""]
["",null,null,null,null,null,"","","","","",null,"",null,null,null,"",null,null,null,null,"","","",null,null,null,null,null,null,null,null,null,null,null,null,null,null,null,null,null,null,null,null,null,null,"","","","",null,null,null,null,"","",""]
["",null,null,null,null,null,"","","","","",null,"",null,null,null,"",null,null,null,null,"","","",null,null,null,null,null,null,null,null,null,null,null,null,null,null,null,null,null,null,null,null,null,null,"","","","",null,null,null,null,"","",""]
["",null,null,null,null,null,"","","","","",null,"",null,null,null,"",null,null,null,null,"","","",null,null,null,null,null,null,null,null,null,null,null,null,null,null,null,null,null,null,null,null,null,null,"","","","",null,null,null,null,"","",""]
["",null,null,null,null,null,"","","","","",null,"",null,null,null,"",null,null,null,null,"","","",null,null,null,null,null,null,null,null,null,null,null,null,null,null,null,null,null,null,null,null,null,null,"","","","",null,null,null,null,"","",""]
["",null,null,null,null,null,"","","","","",null,"",null,null,null,"",null,null,null,null,"","","",null,null,null,null,null,null,null,null,null,null,null,null,null,null,null,null,null,null,null,null,null,null,"","","","",null,null,null,null,"","",""]
["",null,null,null,null,null,"","","","","",null,"",null,null,null,"",null,null,null,null,"","","",null,null,null,null,null,null,null,null,null,null,null,null,null,null,null,null,null,null,null,null,null,null,"","","","",null,null,null,null,"","",""]
["",null,null,null,null,null,"","","","","",null,"",null,null,null,"",null,null,null,null,"","","",null,null,null,null,null,null,null,null,null,null,null,null,null,null,null,null,null,null,null,null,null,null,"","","","",null,null,null,null,"","",""]
["",null,null,null,null,null,"","","","","",null,"",null,null,null,"",null,null,null,null,"","","",null,null,null,null,null,null,null,null,null,null,null,null,null,null,null,null,null,null,null,null,null,null,"","","","",null,null,null,null,"","",""]
["",null,null,null,null,null,"","","","","",null,"",null,null,null,"",null,null,null,null,"","","",null,null,null,null,null,null,null,null,null,null,null,null,null,null,null,null,null,null,null,null,null,null,"","","","",null,null,null,null,"","",""]
["",null,null,null,null,null,"","","","","",null,"",null,null,null,"",null,null,null,null,"","","",null,null,null,null,null,null,null,null,null,null,null,null,null,null,null,null,null,null,null,null,null,null,"","","","",null,null,null,null,"","",""]
["",null,null,null,null,null,"","","","","",null,"",null,null,null,"",null,null,null,null,"","","",null,null,null,null,null,null,null,null,null,null,null,null,null,null,null,null,null,null,null,null,null,null,"","","","",null,null,null,null,"","",""]
["",null,null,null,null,null,"","","","","",null,"",null,null,null,"",null,null,null,null,"","","",null,null,null,null,null,null,null,null,null,null,null,null,null,null,null,null,null,null,null,null,null,null,"","","","",null,null,null,null,"","",""]
["",null,null,null,null,null,"","","","","",null,"",null,null,null,"",null,null,null,null,"","","",null,null,null,null,null,null,null,null,null,null,null,null,null,null,null,null,null,null,null,null,null,null,"","","","",null,null,null,null,"","",""]
["",null,null,null,null,null,"","","","","",null,"",null,null,null,"",null,null,null,null,"","","",null,null,null,null,null,null,null,null,null,null,null,null,null,null,null,null,null,null,null,null,null,null,"","","","",null,null,null,null,"","",""]
["",null,null,null,null,null,"","","","","",null,"",null,null,null,"",null,null,null,null,"","","",null,null,null,null,null,null,null,null,null,null,null,null,null,null,null,null,null,null,null,null,null,null,"","","","",null,null,null,null,"","",""]
["",null,null,null,null,null,"","","","","",null,"",null,null,null,"",null,null,null,null,"","","",null,null,null,null,null,null,null,null,null,null,null,null,null,null,null,null,null,null,null,null,null,null,"","","","",null,null,null,null,"","",""]
["",null,null,null,null,null,"","","","","",null,"",null,null,null,"",null,null,null,null,"","","",null,null,null,null,null,null,null,null,null,null,null,null,null,null,null,null,null,null,null,null,null,null,"","","","",null,null,null,null,"","",""]
["",null,null,null,null,null,"","","","","",null,"",null,null,null,"",null,null,null,null,"","","",null,null,null,null,null,null,null,null,null,null,null,null,null,null,null,null,null,null,null,null,null,null,"","","","",null,null,null,null,"","",""]
["",null,null,null,null,null,"","","","","",null,"",null,null,null,"",null,null,null,null,"","","",null,null,null,null,null,null,null,null,null,null,null,null,null,null,null,null,null,null,null,null,null,null,"","","","",null,null,null,null,"","",""]
["",null,null,null,null,null,"","","","","",null,"",null,null,null,"",null,null,null,null,"","","",null,null,null,null,null,null,null,null,null,null,null,null,null,null,null,null,null,null,null,null,null,null,"","","","",null,null,null,null,"","",""]
["",null,null,null,null,null,"","","","","",null,"",null,null,null,"",null,null,null,null,"","","",null,null,null,null,null,null,null,null,null,null,null,null,null,null,null,null,null,null,null,null,null,null,"","","","",null,null,null,null,"","",""]
["",null,null,null,null,null,"","","","","",null,"",null,null,null,"",null,null,null,null,"","","",null,null,null,null,null,null,null,null,null,null,null,null,null,null,null,null,null,null,null,null,null,null,"","","","",null,null,null,null,"","",""]
["",null,null,null,null,null,"","","","","",null,"",null,null,null,"",null,null,null,null,"","","",null,null,null,null,null,null,null,null,null,null,null,null,null,null,null,null,null,null,null,null,null,null,"","","","",null,null,null,null,"","",""]
["",null,null,null,null,null,"","","","","",null,"",null,null,null,"",null,null,null,null,"","","",null,null,null,null,null,null,null,null,null,null,null,null,null,null,null,null,null,null,null,null,null,null,"","","","",null,null,null,null,"","",""]
["",null,null,null,null,null,"","","","","",null,"",null,null,null,"",null,null,null,null,"","","",null,null,null,null,null,null,null,null,null,null,null,null,null,null,null,null,null,null,null,null,null,null,"","","","",null,null,null,null,"","",""]
["",null,null,null,null,null,"","","","","",null,"",null,null,null,"",null,null,null,null,"","","",null,null,null,null,null,null,null,null,null,null,null,null,null,null,null,null,null,null,null,null,null,null,"","","","",null,null,null,null,"","",""]
["",null,null,null,null,null,"","","","","",null,"",null,null,null,"",null,null,null,null,"","","",null,null,null,null,null,null,null,null,null,null,null,null,null,null,null,null,null,null,null,null,null,null,"","","","",null,null,null,null,"","",""]
["",null,null,null,null,null,"","","","","",null,"",null,null,null,"",null,null,null,null,"","","",null,null,null,null,null,null,null,null,null,null,null,null,null,null,null,null,null,null,null,null,null,null,"","","","",null,null,null,null,"","",""]
["",null,null,null,null,null,"","","","","",null,"",null,null,null,"",null,null,null,null,"","","",null,null,null,null,null,null,null,null,null,null,null,null,null,null,null,null,null,null,null,null,null,null,"","","","",null,null,null,null,"","",""]
["",null,null,null,null,null,"","","","","",null,"",null,null,null,"",null,null,null,null,"","","",null,null,null,null,null,null,null,null,null,null,null,null,null,null,null,null,null,null,null,null,null,null,"","","","",null,null,null,null,"","",""]
["",null,null,null,null,null,"","","","","",null,"",null,null,null,"",null,null,null,null,"","","",null,null,null,null,null,null,null,null,null,null,null,null,null,null,null,null,null,null,null,null,null,null,"","","","",null,null,null,null,"","",""]
["",null,null,null,null,null,"","","","","",null,"",null,null,null,"",null,null,null,null,"","","",null,null,null,null,null,null,null,null,null,null,null,null,null,null,null,null,null,null,null,null,null,null,"","","","",null,null,null,null,"","",""]
["",null,null,null,null,null,"","","","","",null,"",null,null,null,"",null,null,null,null,"","","",null,null,null,null,null,null,null,null,null,null,null,null,null,null,null,null,null,null,null,null,null,null,"","","","",null,null,null,null,"","",""]
["",null,null,null,null,null,"","","","","",null,"",null,null,null,"",null,null,null,null,"","","",null,null,null,null,null,null,null,null,null,null,null,null,null,null,null,null,null,null,null,null,null,null,"","","","",null,null,null,null,"","",""]
["",null,null,null,null,null,"","","","","",null,"",null,null,null,"",null,null,null,null,"","","",null,null,null,null,null,null,null,null,null,null,null,null,null,null,null,null,null,null,null,null,null,null,"","","","",null,null,null,null,"","",""]
["",null,null,null,null,null,"","","","","",null,"",null,null,null,"",null,null,null,null,"","","",null,null,null,null,null,null,null,null,null,null,null,null,null,null,null,null,null,null,null,null,null,null,"","","","",null,null,null,null,"","",""]
["",null,null,null,null,null,"","","","","",null,"",null,null,null,"",null,null,null,null,"","","",null,null,null,null,null,null,null,null,null,null,null,null,null,null,null,null,null,null,null,null,null,null,"","","","",null,null,null,null,"","",""]
["",null,null,null,null,null,"","","","","",null,"",null,null,null,"",null,null,null,null,"","","",null,null,null,null,null,null,null,null,null,null,null,null,null,null,null,null,null,null,null,null,null,null,"","","","",null,null,null,null,"","",""]
["",null,null,null,null,null,"","","",{"$f":"IF(E904=\"\",\"\",DATE(I904,H904,G904))","v":""},"",null,{"$f":"IF(E904=\"\",\"\",IF(ISODD(MID(E904,13,1)),\"ذكر\",\"أنثى\"))","v":""},null,null,null,"",null,null,null,null,"","","",null,null,null,null,null,null,null,null,null,null,null,null,null,null,null,null,null,null,null,null,null,null,"","","","",null,null,null,null,"","",""]
[{"$f":"IF(F905=\"\",\"\",A904+1)","v":""},null,null,null,null,null,{"$f":"RIGHT(LEFT(E905,7),2)","v":""},{"$f":"RIGHT(LEFT(E905,5),2)","v":""},{"$f":"IF(E905=\"\",\"\",IF(ISODD(MID(E905,1,1)),MID(E905,2,2)+2000,MID(E905,2,2)+1900))","v":""},"",{"$f":"IF(J905=\"\",\"\",$K$4+J905-1)","v":""},null,"",null,null,null,{"$f":"IF(F905=\"\",\"\",\"الغربية\")","v":""},null,null,null,null,{"$f":"IF(U905=\"\",\"\",DATEDIF(U905,$V$3,\"md\"))","v":""},{"$f":"IF(U905=\"\",\"\",DATEDIF(U905,$V$3,\"ym\"))","v":""},{"$f":"IF(U905=\"\",\"\",DATEDIF(U905,$V$3,\"y\"))","v":""},null,null,null,null,null,null,null,null,null,null,null,null,null,null,null,null,null,null,null,null,null,null,{"$f":"IF(U905=\"\",\"\",DATEDIF(U905,$AU$3,\"md\"))","v":""},{"$f":"IF(U905=\"\",\"\",DATEDIF(U905,$AU$3,\"ym\"))","v":""},{"$f":"IF(U905=\"\",\"\",DATEDIF(U905,$AU$3,\"y\"))","v":""},"",null,null,null,null,{"$f":"IF(A905=\"\",\"\",A905)","v":""},{"$f":"IF(D905=\"\",\"\",D905)","v":""},{"$f":"IF(F905=\"\",\"\",F905)","v":""}]
["",null,null,null,null,null,"","","","","",null,"",null,null,null,"",null,null,null,null,"","","",null,null,null,null,null,null,null,null,null,null,null,null,null,null,null,null,null,null,null,null,null,null,"","","",{"$f":"IF(J906=\"\",\"\",$AX$3+J906-1)","v":""},null,null,null,null,"","",""]
["",null,null,null,null,null,"","","","","",null,"",null,null,null,"",null,null,null,null,"","","",null,null,null,null,null,null,null,null,null,null,null,null,null,null,null,null,null,null,null,null,null,null,"","","","",null,null,null,null,"","",""]
["",null,null,null,null,null,"","","","","",null,"",null,null,null,"",null,null,null,null,"","","",null,null,null,null,null,null,null,null,null,null,null,null,null,null,null,null,null,null,null,null,null,null,"","","","",null,null,null,null,"","",""]
["",null,null,null,null,null,"","","","","",null,"",null,null,null,"",null,null,null,null,"","","",null,null,null,null,null,null,null,null,null,null,null,null,null,null,null,null,null,null,null,null,null,null,"","","","",null,null,null,null,"","",""]
["",null,null,null,null,null,"","","","","",null,"",null,null,null,"",null,null,null,null,"","","",null,null,null,null,null,null,null,null,null,null,null,null,null,null,null,null,null,null,null,null,null,null,"","","","",null,null,null,null,"","",""]
["",null,null,null,null,null,"","","","","",null,"",null,null,null,"",null,null,null,null,"","","",null,null,null,null,null,null,null,null,null,null,null,null,null,null,null,null,null,null,null,null,null,null,"","","","",null,null,null,null,"","",""]
["",null,null,null,null,null,"","","","","",null,"",null,null,null,"",null,null,null,null,"","","",null,null,null,null,null,null,null,null,null,null,null,null,null,null,null,null,null,null,null,null,null,null,"","","","",null,null,null,null,"","",""]
["",null,null,null,null,null,"","","","","",null,"",null,null,null,"",null,null,null,null,"","","",null,null,null,null,null,null,null,null,null,null,null,null,null,null,null,null,null,null,null,null,null,null,"","","","",null,null,null,null,"","",""]
["",null,null,null,null,null,"","","","","",null,"",null,null,null,"",null,null,null,null,"","","",null,null,null,null,null,null,null,null,null,null,null,null,null,null,null,null,null,null,null,null,null,null,"","","","",null,null,null,null,"","",""]
["",null,null,null,null,null,"","","","","",null,"",null,null,null,"",null,null,null,null,"","","",null,null,null,null,null,null,null,null,null,null,null,null,null,null,null,null,null,null,null,null,null,null,"","","","",null,null,null,null,"","",""]
["",null,null,null,null,null,"","","","","",null,"",null,null,null,"",null,null,null,null,"","","",null,null,null,null,null,null,null,null,null,null,null,null,null,null,null,null,null,null,null,null,null,null,"","","","",null,null,null,null,"","",""]
["",null,null,null,null,null,"","","","","",null,"",null,null,null,"",null,null,null,null,"","","",null,null,null,null,null,null,null,null,null,null,null,null,null,null,null,null,null,null,null,null,null,null,"","","","",null,null,null,null,"","",""]
["",null,null,null,null,null,"","","","","",null,"",null,null,null,"",null,null,null,null,"","","",null,null,null,null,null,null,null,null,null,null,null,null,null,null,null,null,null,null,null,null,null,null,"","","","",null,null,null,null,"","",""]
["",null,null,null,null,null,"","","","","",null,"",null,null,null,"",null,null,null,null,"","","",null,null,null,null,null,null,null,null,null,null,null,null,null,null,null,null,null,null,null,null,null,null,"","","","",null,null,null,null,"","",""]
["",null,null,null,null,null,"","","","","",null,"",null,null,null,"",null,null,null,null,"","","",null,null,null,null,null,null,null,null,null,null,null,null,null,null,null,null,null,null,null,null,null,null,"","","","",null,null,null,null,"","",""]
["",null,null,null,null,null,"","","","","",null,"",null,null,null,"",null,null,null,null,"","","",null,null,null,null,null,null,null,null,null,null,null,null,null,null,null,null,null,null,null,null,null,null,"","","","",null,null,null,null,"","",""]
["",null,null,null,null,null,"","","","","",null,"",null,null,null,"",null,null,null,null,"","","",null,null,null,null,null,null,null,null,null,null,null,null,null,null,null,null,null,null,null,null,null,null,"","","","",null,null,null,null,"","",""]
["",null,null,null,null,null,"","","","","",null,"",null,null,null,"",null,null,null,null,"","","",null,null,null,null,null,null,null,null,null,null,null,null,null,null,null,null,null,null,null,null,null,null,"","","","",null,null,null,null,"","",""]
["",null,null,null,null,null,"","","","","",null,"",null,null,null,"",null,null,null,null,"","","",null,null,null,null,null,null,null,null,null,null,null,null,null,null,null,null,null,null,null,null,null,null,"","","","",null,null,null,null,"","",""]
["",null,null,null,null,null,"","","","","",null,"",null,null,null,"",null,null,null,null,"","","",null,null,null,null,null,null,null,null,null,null,null,null,null,null,null,null,null,null,null,null,null,null,"","","","",null,null,null,null,"","",""]
["",null,null,null,null,null,"","","","","",null,"",null,null,null,"",null,null,null,null,"","","",null,null,null,null,null,null,null,null,null,null,null,null,null,null,null,null,null,null,null,null,null,null,"","","","",null,null,null,null,"","",""]
["",null,null,null,null,null,"","","","","",null,"",null,null,null,"",null,null,null,null,"","","",null,null,null,null,null,null,null,null,null,null,null,null,null,null,null,null,null,null,null,null,null,null,"","","","",null,null,null,null,"","",""]
["",null,null,null,null,null,"","","","","",null,"",null,null,null,"",null,null,null,null,"","","",null,null,null,null,null,null,null,null,null,null,null,null,null,null,null,null,null,null,null,null,null,null,"","","","",null,null,null,null,"","",""]
["",null,null,null,null,null,"","","","","",null,"",null,null,null,"",null,null,null,null,"","","",null,null,null,null,null,null,null,null,null,null,null,null,null,null,null,null,null,null,null,null,null,null,"","","","",null,null,null,null,"","",""]
["",null,null,null,null,null,"","","","","",null,"",null,null,null,"",null,null,null,null,"","","",null,null,null,null,null,null,null,null,null,null,null,null,null,null,null,null,null,null,null,null,null,null,"","","","",null,null,null,null,"","",""]
["",null,null,null,null,null,"","","","","",null,"",null,null,null,"",null,null,null,null,"","","",null,null,null,null,null,null,null,null,null,null,null,null,null,null,null,null,null,null,null,null,null,null,"","","","",null,null,null,null,"","",""]
["",null,null,null,null,null,"","","","","",null,"",null,null,null,"",null,null,null,null,"","","",null,null,null,null,null,null,null,null,null,null,null,null,null,null,null,null,null,null,null,null,null,null,"","","","",null,null,null,null,"","",""]
["",null,null,null,null,null,"","","","","",null,"",null,null,null,"",null,null,null,null,"","","",null,null,null,null,null,null,null,null,null,null,null,null,null,null,null,null,null,null,null,null,null,null,"","","","",null,null,null,null,"","",""]
["",null,null,null,null,null,"","","","","",null,"",null,null,null,"",null,null,null,null,"","","",null,null,null,null,null,null,null,null,null,null,null,null,null,null,null,null,null,null,null,null,null,null,"","","","",null,null,null,null,"","",""]
["",null,null,null,null,null,"","","","","",null,"",null,null,null,"",null,null,null,null,"","","",null,null,null,null,null,null,null,null,null,null,null,null,null,null,null,null,null,null,null,null,null,null,"","","","",null,null,null,null,"","",""]
["",null,null,null,null,null,"","","","","",null,"",null,null,null,"",null,null,null,null,"","","",null,null,null,null,null,null,null,null,null,null,null,null,null,null,null,null,null,null,null,null,null,null,"","","","",null,null,null,null,"","",""]
["",null,null,null,null,null,"","","","","",null,"",null,null,null,"",null,null,null,null,"","","",null,null,null,null,null,null,null,null,null,null,null,null,null,null,null,null,null,null,null,null,null,null,"","","","",null,null,null,null,"","",""]
["",null,null,null,null,null,"","","","","",null,"",null,null,null,"",null,null,null,null,"","","",null,null,null,null,null,null,null,null,null,null,null,null,null,null,null,null,null,null,null,null,null,null,"","","","",null,null,null,null,"","",""]
["",null,null,null,null,null,"","","","","",null,"",null,null,null,"",null,null,null,null,"","","",null,null,null,null,null,null,null,null,null,null,null,null,null,null,null,null,null,null,null,null,null,null,"","","","",null,null,null,null,"","",""]
["",null,null,null,null,null,"","","","","",null,"",null,null,null,"",null,null,null,null,"","","",null,null,null,null,null,null,null,null,null,null,null,null,null,null,null,null,null,null,null,null,null,null,"","","","",null,null,null,null,"","",""]
["",null,null,null,null,null,"","","","","",null,"",null,null,null,"",null,null,null,null,"","","",null,null,null,null,null,null,null,null,null,null,null,null,null,null,null,null,null,null,null,null,null,null,"","","","",null,null,null,null,"","",""]
["",null,null,null,null,null,"","","","","",null,"",null,null,null,"",null,null,null,null,"","","",null,null,null,null,null,null,null,null,null,null,null,null,null,null,null,null,null,null,null,null,null,null,"","","","",null,null,null,null,"","",""]
["",null,null,null,null,null,"","","","","",null,"",null,null,null,"",null,null,null,null,"","","",null,null,null,null,null,null,null,null,null,null,null,null,null,null,null,null,null,null,null,null,null,null,"","","","",null,null,null,null,"","",""]
["",null,null,null,null,null,"","","","","",null,"",null,null,null,"",null,null,null,null,"","","",null,null,null,null,null,null,null,null,null,null,null,null,null,null,null,null,null,null,null,null,null,null,"","","","",null,null,null,null,"","",""]
["",null,null,null,null,null,"","","","","",null,"",null,null,null,"",null,null,null,null,"","","",null,null,null,null,null,null,null,null,null,null,null,null,null,null,null,null,null,null,null,null,null,null,"","","","",null,null,null,null,"","",""]
["",null,null,null,null,null,"","","","","",null,"",null,null,null,"",null,null,null,null,"","","",null,null,null,null,null,null,null,null,null,null,null,null,null,null,null,null,null,null,null,null,null,null,"","","","",null,null,null,null,"","",""]
["",null,null,null,null,null,"","","","","",null,"",null,null,null,"",null,null,null,null,"","","",null,null,null,null,null,null,null,null,null,null,null,null,null,null,null,null,null,null,null,null,null,null,"","","","",null,null,null,null,"","",""]
["",null,null,null,null,null,"","","","","",null,"",null,null,null,"",null,null,null,null,"","","",null,null,null,null,null,null,null,null,null,null,null,null,null,null,null,null,null,null,null,null,null,null,"","","","",null,null,null,null,"","",""]
["",null,null,null,null,null,"","","","","",null,"",null,null,null,"",null,null,null,null,"","","",null,null,null,null,null,null,null,null,null,null,null,null,null,null,null,null,null,null,null,null,null,null,"","","","",null,null,null,null,"","",""]
["",null,null,null,null,null,"","","","","",null,"",null,null,null,"",null,null,null,null,"","","",null,null,null,null,null,null,null,null,null,null,null,null,null,null,null,null,null,null,null,null,null,null,"","","","",null,null,null,null,"","",""]
["",null,null,null,null,null,"","","","","",null,"",null,null,null,"",null,null,null,null,"","","",null,null,null,null,null,null,null,null,null,null,null,null,null,null,null,null,null,null,null,null,null,null,"","","","",null,null,null,null,"","",""]
["",null,null,null,null,null,"","","","","",null,"",null,null,null,"",null,null,null,null,"","","",null,null,null,null,null,null,null,null,null,null,null,null,null,null,null,null,null,null,null,null,null,null,"","","","",null,null,null,null,"","",""]
["",null,null,null,null,null,"","","","","",null,"",null,null,null,"",null,null,null,null,"","","",null,null,null,null,null,null,null,null,null,null,null,null,null,null,null,null,null,null,null,null,null,null,"","","","",null,null,null,null,"","",""]
["",null,null,null,null,null,"","","","","",null,"",null,null,null,"",null,null,null,null,"","","",null,null,null,null,null,null,null,null,null,null,null,null,null,null,null,null,null,null,null,null,null,null,"","","","",null,null,null,null,"","",""]
["",null,null,null,null,null,"","","","","",null,"",null,null,null,"",null,null,null,null,"","","",null,null,null,null,null,null,null,null,null,null,null,null,null,null,null,null,null,null,null,null,null,null,"","","","",null,null,null,null,"","",""]
["",null,null,null,null,null,"","","","","",null,"",null,null,null,"",null,null,null,null,"","","",null,null,null,null,null,null,null,null,null,null,null,null,null,null,null,null,null,null,null,null,null,null,"","","","",null,null,null,null,"","",""]
["",null,null,null,null,null,"","","","","",null,"",null,null,null,"",null,null,null,null,"","","",null,null,null,null,null,null,null,null,null,null,null,null,null,null,null,null,null,null,null,null,null,null,"","","","",null,null,null,null,"","",""]
["",null,null,null,null,null,"","","","","",null,"",null,null,null,"",null,null,null,null,"","","",null,null,null,null,null,null,null,null,null,null,null,null,null,null,null,null,null,null,null,null,null,null,"","","","",null,null,null,null,"","",""]
["",null,null,null,null,null,"","","","","",null,"",null,null,null,"",null,null,null,null,"","","",null,null,null,null,null,null,null,null,null,null,null,null,null,null,null,null,null,null,null,null,null,null,"","","","",null,null,null,null,"","",""]
["",null,null,null,null,null,"","","","","",null,"",null,null,null,"",null,null,null,null,"","","",null,null,null,null,null,null,null,null,null,null,null,null,null,null,null,null,null,null,null,null,null,null,"","","","",null,null,null,null,"","",""]
["",null,null,null,null,null,"","","","","",null,"",null,null,null,"",null,null,null,null,"","","",null,null,null,null,null,null,null,null,null,null,null,null,null,null,null,null,null,null,null,null,null,null,"","","","",null,null,null,null,"","",""]
["",null,null,null,null,null,"","","","","",null,"",null,null,null,"",null,null,null,null,"","","",null,null,null,null,null,null,null,null,null,null,null,null,null,null,null,null,null,null,null,null,null,null,"","","","",null,null,null,null,"","",""]
["",null,null,null,null,null,"","","","","",null,"",null,null,null,"",null,null,null,null,"","","",null,null,null,null,null,null,null,null,null,null,null,null,null,null,null,null,null,null,null,null,null,null,"","","","",null,null,null,null,"","",""]
["",null,null,null,null,null,"","","","","",null,"",null,null,null,"",null,null,null,null,"","","",null,null,null,null,null,null,null,null,null,null,null,null,null,null,null,null,null,null,null,null,null,null,"","","","",null,null,null,null,"","",""]
["",null,null,null,null,null,"","","","","",null,"",null,null,null,"",null,null,null,null,"","","",null,null,null,null,null,null,null,null,null,null,null,null,null,null,null,null,null,null,null,null,null,null,"","","","",null,null,null,null,"","",""]
["",null,null,null,null,null,"","","","","",null,"",null,null,null,"",null,null,null,null,"","","",null,null,null,null,null,null,null,null,null,null,null,null,null,null,null,null,null,null,null,null,null,null,"","","","",null,null,null,null,"","",""]
["",null,null,null,null,null,"","","","","",null,"",null,null,null,"",null,null,null,null,"","","",null,null,null,null,null,null,null,null,null,null,null,null,null,null,null,null,null,null,null,null,null,null,"","","","",null,null,null,null,"","",""]
["",null,null,null,null,null,"","","",{"$f":"IF(E968=\"\",\"\",DATE(I968,H968,G968))","v":""},"",null,{"$f":"IF(E968=\"\",\"\",IF(ISODD(MID(E968,13,1)),\"ذكر\",\"أنثى\"))","v":""},null,null,null,"",null,null,null,null,"","","",null,null,null,null,null,null,null,null,null,null,null,null,null,null,null,null,null,null,null,null,null,null,"","","","",null,null,null,null,"","",""]
[{"$f":"IF(F969=\"\",\"\",A968+1)","v":""},null,null,null,null,null,{"$f":"RIGHT(LEFT(E969,7),2)","v":""},{"$f":"RIGHT(LEFT(E969,5),2)","v":""},{"$f":"IF(E969=\"\",\"\",IF(ISODD(MID(E969,1,1)),MID(E969,2,2)+2000,MID(E969,2,2)+1900))","v":""},"",{"$f":"IF(J969=\"\",\"\",$K$4+J969-1)","v":""},null,"",null,null,null,{"$f":"IF(F969=\"\",\"\",\"الغربية\")","v":""},null,null,null,null,{"$f":"IF(U969=\"\",\"\",DATEDIF(U969,$V$3,\"md\"))","v":""},{"$f":"IF(U969=\"\",\"\",DATEDIF(U969,$V$3,\"ym\"))","v":""},{"$f":"IF(U969=\"\",\"\",DATEDIF(U969,$V$3,\"y\"))","v":""},null,null,null,null,null,null,null,null,null,null,null,null,null,null,null,null,null,null,null,null,null,null,{"$f":"IF(U969=\"\",\"\",DATEDIF(U969,$AU$3,\"md\"))","v":""},{"$f":"IF(U969=\"\",\"\",DATEDIF(U969,$AU$3,\"ym\"))","v":""},{"$f":"IF(U969=\"\",\"\",DATEDIF(U969,$AU$3,\"y\"))","v":""},"",null,null,null,null,{"$f":"IF(A969=\"\",\"\",A969)","v":""},{"$f":"IF(D969=\"\",\"\",D969)","v":""},{"$f":"IF(F969=\"\",\"\",F969)","v":""}]
["",null,null,null,null,null,"","","","","",null,"",null,null,null,"",null,null,null,null,"","","",null,null,null,null,null,null,null,null,null,null,null,null,null,null,null,null,null,null,null,null,null,null,"","","",{"$f":"IF(J970=\"\",\"\",$AX$3+J970-1)","v":""},null,null,null,null,"","",""]
["",null,null,null,null,null,"","","","","",null,"",null,null,null,"",null,null,null,null,"","","",null,null,null,null,null,null,null,null,null,null,null,null,null,null,null,null,null,null,null,null,null,null,"","","","",null,null,null,null,"","",""]
["",null,null,null,null,null,"","","","","",null,"",null,null,null,"",null,null,null,null,"","","",null,null,null,null,null,null,null,null,null,null,null,null,null,null,null,null,null,null,null,null,null,null,"","","","",null,null,null,null,"","",""]
["",null,null,null,null,null,"","","","","",null,"",null,null,null,"",null,null,null,null,"","","",null,null,null,null,null,null,null,null,null,null,null,null,null,null,null,null,null,null,null,null,null,null,"","","","",null,null,null,null,"","",""]
["",null,null,null,null,null,"","","","","",null,"",null,null,null,"",null,null,null,null,"","","",null,null,null,null,null,null,null,null,null,null,null,null,null,null,null,null,null,null,null,null,null,null,"","","","",null,null,null,null,"","",""]
["",null,null,null,null,null,"","","","","",null,"",null,null,null,"",null,null,null,null,"","","",null,null,null,null,null,null,null,null,null,null,null,null,null,null,null,null,null,null,null,null,null,null,"","","","",null,null,null,null,"","",""]
["",null,null,null,null,null,"","","","","",null,"",null,null,null,"",null,null,null,null,"","","",null,null,null,null,null,null,null,null,null,null,null,null,null,null,null,null,null,null,null,null,null,null,"","","","",null,null,null,null,"","",""]
["",null,null,null,null,null,"","","","","",null,"",null,null,null,"",null,null,null,null,"","","",null,null,null,null,null,null,null,null,null,null,null,null,null,null,null,null,null,null,null,null,null,null,"","","","",null,null,null,null,"","",""]
["",null,null,null,null,null,"","","","","",null,"",null,null,null,"",null,null,null,null,"","","",null,null,null,null,null,null,null,null,null,null,null,null,null,null,null,null,null,null,null,null,null,null,"","","","",null,null,null,null,"","",""]
["",null,null,null,null,null,"","","","","",null,"",null,null,null,"",null,null,null,null,"","","",null,null,null,null,null,null,null,null,null,null,null,null,null,null,null,null,null,null,null,null,null,null,"","","","",null,null,null,null,"","",""]
["",null,null,null,null,null,"","","","","",null,"",null,null,null,"",null,null,null,null,"","","",null,null,null,null,null,null,null,null,null,null,null,null,null,null,null,null,null,null,null,null,null,null,"","","","",null,null,null,null,"","",""]
["",null,null,null,null,null,"","","","","",null,"",null,null,null,"",null,null,null,null,"","","",null,null,null,null,null,null,null,null,null,null,null,null,null,null,null,null,null,null,null,null,null,null,"","","","",null,null,null,null,"","",""]
["",null,null,null,null,null,"","","","","",null,"",null,null,null,"",null,null,null,null,"","","",null,null,null,null,null,null,null,null,null,null,null,null,null,null,null,null,null,null,null,null,null,null,"","","","",null,null,null,null,"","",""]
["",null,null,null,null,null,"","","","","",null,"",null,null,null,"",null,null,null,null,"","","",null,null,null,null,null,null,null,null,null,null,null,null,null,null,null,null,null,null,null,null,null,null,"","","","",null,null,null,null,"","",""]
["",null,null,null,null,null,"","","","","",null,"",null,null,null,"",null,null,null,null,"","","",null,null,null,null,null,null,null,null,null,null,null,null,null,null,null,null,null,null,null,null,null,null,"","","","",null,null,null,null,"","",""]
["",null,null,null,null,null,"","","","","",null,"",null,null,null,"",null,null,null,null,"","","",null,null,null,null,null,null,null,null,null,null,null,null,null,null,null,null,null,null,null,null,null,null,"","","","",null,null,null,null,"","",""]
["",null,null,null,null,null,"","","","","",null,"",null,null,null,"",null,null,null,null,"","","",null,null,null,null,null,null,null,null,null,null,null,null,null,null,null,null,null,null,null,null,null,null,"","","","",null,null,null,null,"","",""]
["",null,null,null,null,null,"","","","","",null,"",null,null,null,"",null,null,null,null,"","","",null,null,null,null,null,null,null,null,null,null,null,null,null,null,null,null,null,null,null,null,null,null,"","","","",null,null,null,null,"","",""]
["",null,null,null,null,null,"","","","","",null,"",null,null,null,"",null,null,null,null,"","","",null,null,null,null,null,null,null,null,null,null,null,null,null,null,null,null,null,null,null,null,null,null,"","","","",null,null,null,null,"","",""]
["",null,null,null,null,null,"","","","","",null,"",null,null,null,"",null,null,null,null,"","","",null,null,null,null,null,null,null,null,null,null,null,null,null,null,null,null,null,null,null,null,null,null,"","","","",null,null,null,null,"","",""]
["",null,null,null,null,null,"","","","","",null,"",null,null,null,"",null,null,null,null,"","","",null,null,null,null,null,null,null,null,null,null,null,null,null,null,null,null,null,null,null,null,null,null,"","","","",null,null,null,null,"","",""]
["",null,null,null,null,null,"","","","","",null,"",null,null,null,"",null,null,null,null,"","","",null,null,null,null,null,null,null,null,null,null,null,null,null,null,null,null,null,null,null,null,null,null,"","","","",null,null,null,null,"","",""]
["",null,null,null,null,null,"","","","","",null,"",null,null,null,"",null,null,null,null,"","","",null,null,null,null,null,null,null,null,null,null,null,null,null,null,null,null,null,null,null,null,null,null,"","","","",null,null,null,null,"","",""]
["",null,null,null,null,null,"","","","","",null,"",null,null,null,"",null,null,null,null,"","","",null,null,null,null,null,null,null,null,null,null,null,null,null,null,null,null,null,null,null,null,null,null,"","","","",null,null,null,null,"","",""]
["",null,null,null,null,null,"","","","","",null,"",null,null,null,"",null,null,null,null,"","","",null,null,null,null,null,null,null,null,null,null,null,null,null,null,null,null,null,null,null,null,null,null,"","","","",null,null,null,null,"","",""]
["",null,null,null,null,null,"","","","","",null,"",null,null,null,"",null,null,null,null,"","","",null,null,null,null,null,null,null,null,null,null,null,null,null,null,null,null,null,null,null,null,null,null,"","","","",null,null,null,null,"","",""]
["",null,null,null,null,null,"","","","","",null,"",null,null,null,"",null,null,null,null,"","","",null,null,null,null,null,null,null,null,null,null,null,null,null,null,null,null,null,null,null,null,null,null,"","","","",null,null,null,null,"","",""]
["",null,null,null,null,null,"","","","","",null,"",null,null,null,"",null,null,null,null,"","","",null,null,null,null,null,null,null,null,null,null,null,null,null,null,null,null,null,null,null,null,null,null,"","","","",null,null,null,null,"","",""]
["",null,null,null,null,null,"","","","","",null,"",null,null,null,"",null,null,null,null,"","","",null,null,null,null,null,null,null,null,null,null,null,null,null,null,null,null,null,null,null,null,null,null,"","","","",null,null,null,null,"","",""]
["",null,null,null,null,null,"","","","","",null,"",null,null,null,"",null,null,null,null,"","","",null,null,null,null,null,null,null,null,null,null,null,null,null,null,null,null,null,null,null,null,null,null,"","","","",null,null,null,null,"","",""]
["",null,null,null,null,null,"","","","","",null,"",null,null,null,"",null,null,null,null,"","","",null,null,null,null,null,null,null,null,null,null,null,null,null,null,null,null,null,null,null,null,null,null,"","","","",null,null,null,null,"","",""]
["",null,null,null,null,null,"","","","","",null,"",null,null,null,"",null,null,null,null,"","","",null,null,null,null,null,null,null,null,null,null,null,null,null,null,null,null,null,null,null,null,null,null,"","","","",null,null,null,null,"","",""]
["",null,null,null,null,null,"","","","","",null,"",null,null,null,"",null,null,null,null,"","","",null,null,null,null,null,null,null,null,null,null,null,null,null,null,null,null,null,null,null,null,null,null,"","","","",null,null,null,null,"","",""]
["",null,null,null,null,null,"","","","","",null,"",null,null,null,"",null,null,null,null,"","","",null,null,null,null,null,null,null,null,null,null,null,null,null,null,null,null,null,null,null,null,null,null,"","","","",null,null,null,null,"","",""]
["",null,null,null,null,null,"","","","","",null,"",null,null,null,"",null,null,null,null,"","","",null,null,null,null,null,null,null,null,null,null,null,null,null,null,null,null,null,null,null,null,null,null,"","","","",null,null,null,null,"","",""]
["",null,null,null,null,null,"","","","","",null,"",null,null,null,"",null,null,null,null,"","","",null,null,null,null,null,null,null,null,null,null,null,null,null,null,null,null,null,null,null,null,null,null,"","","","",null,null,null,null,"","",""]
["",null,null,null,null,null,"","","","","",null,"",null,null,null,"",null,null,null,null,"","","",null,null,null,null,null,null,null,null,null,null,null,null,null,null,null,null,null,null,null,null,null,null,"","","","",null,null,null,null,"","",""]
["",null,null,null,null,null,"","","","","",null,"",null,null,null,"",null,null,null,null,"","","",null,null,null,null,null,null,null,null,null,null,null,null,null,null,null,null,null,null,null,null,null,null,"","","","",null,null,null,null,"","",""]
["",null,null,null,null,null,"","","","","",null,"",null,null,null,"",null,null,null,null,"","","",null,null,null,null,null,null,null,null,null,null,null,null,null,null,null,null,null,null,null,null,null,null,"","","","",null,null,null,null,"","",""]
["",null,null,null,null,null,"","","","","",null,"",null,null,null,"",null,null,null,null,"","","",null,null,null,null,null,null,null,null,null,null,null,null,null,null,null,null,null,null,null,null,null,null,"","","","",null,null,null,null,"","",""]
["",null,null,null,null,null,"","","","","",null,"",null,null,null,"",null,null,null,null,"","","",null,null,null,null,null,null,null,null,null,null,null,null,null,null,null,null,null,null,null,null,null,null,"","","","",null,null,null,null,"","",""]
["",null,null,null,null,null,"","","","","",null,"",null,null,null,"",null,null,null,null,"","","",null,null,null,null,null,null,null,null,null,null,null,null,null,null,null,null,null,null,null,null,null,null,"","","","",null,null,null,null,"","",""]
["",null,null,null,null,null,"","","","","",null,"",null,null,null,"",null,null,null,null,"","","",null,null,null,null,null,null,null,null,null,null,null,null,null,null,null,null,null,null,null,null,null,null,"","","","",null,null,null,null,"","",""]
["",null,null,null,null,null,"","","","","",null,"",null,null,null,"",null,null,null,null,"","","",null,null,null,null,null,null,null,null,null,null,null,null,null,null,null,null,null,null,null,null,null,null,"","","","",null,null,null,null,"","",""]
["",null,null,null,null,null,"","","","","",null,"",null,null,null,"",null,null,null,null,"","","",null,null,null,null,null,null,null,null,null,null,null,null,null,null,null,null,null,null,null,null,null,null,"","","","",null,null,null,null,"","",""]
["",null,null,null,null,null,"","","","","",null,"",null,null,null,"",null,null,null,null,"","","",null,null,null,null,null,null,null,null,null,null,null,null,null,null,null,null,null,null,null,null,null,null,"","","","",null,null,null,null,"","",""]
["",null,null,null,null,null,"","","","","",null,"",null,null,null,"",null,null,null,null,"","","",null,null,null,null,null,null,null,null,null,null,null,null,null,null,null,null,null,null,null,null,null,null,"","","","",null,null,null,null,"","",""]
["",null,null,null,null,null,"","","","","",null,"",null,null,null,"",null,null,null,null,"","","",null,null,null,null,null,null,null,null,null,null,null,null,null,null,null,null,null,null,null,null,null,null,"","","","",null,null,null,null,"","",""]
["",null,null,null,null,null,"","","","","",null,"",null,null,null,"",null,null,null,null,"","","",null,null,null,null,null,null,null,null,null,null,null,null,null,null,null,null,null,null,null,null,null,null,"","","","",null,null,null,null,"","",""]
["",null,null,null,null,null,"","","","","",null,"",null,null,null,"",null,null,null,null,"","","",null,null,null,null,null,null,null,null,null,null,null,null,null,null,null,null,null,null,null,null,null,null,"","","","",null,null,null,null,"","",""]
["",null,null,null,null,null,"","","","","",null,"",null,null,null,"",null,null,null,null,"","","",null,null,null,null,null,null,null,null,null,null,null,null,null,null,null,null,null,null,null,null,null,null,"","","","",null,null,null,null,"","",""]
["",null,null,null,null,null,"","","","","",null,"",null,null,null,"",null,null,null,null,"","","",null,null,null,null,null,null,null,null,null,null,null,null,null,null,null,null,null,null,null,null,null,null,"","","","",null,null,null,null,"","",""]
["",null,null,null,null,null,"","","","","",null,"",null,null,null,"",null,null,null,null,"","","",null,null,null,null,null,null,null,null,null,null,null,null,null,null,null,null,null,null,null,null,null,null,"","","","",null,null,null,null,"","",""]
["",null,null,null,null,null,"","","","","",null,"",null,null,null,"",null,null,null,null,"","","",null,null,null,null,null,null,null,null,null,null,null,null,null,null,null,null,null,null,null,null,null,null,"","","","",null,null,null,null,"","",""]
["",null,null,null,null,null,"","","","","",null,"",null,null,null,"",null,null,null,null,"","","",null,null,null,null,null,null,null,null,null,null,null,null,null,null,null,null,null,null,null,null,null,null,"","","","",null,null,null,null,"","",""]
["",null,null,null,null,null,"","","","","",null,"",null,null,null,"",null,null,null,null,"","","",null,null,null,null,null,null,null,null,null,null,null,null,null,null,null,null,null,null,null,null,null,null,"","","","",null,null,null,null,"","",""]
["",null,null,null,null,null,"","","","","",null,"",null,null,null,"",null,null,null,null,"","","",null,null,null,null,null,null,null,null,null,null,null,null,null,null,null,null,null,null,null,null,null,null,"","","","",null,null,null,null,"","",""]
["",null,null,null,null,null,"","","","","",null,"",null,null,null,"",null,null,null,null,"","","",null,null,null,null,null,null,null,null,null,null,null,null,null,null,null,null,null,null,null,null,null,null,"","","","",null,null,null,null,"","",""]
["",null,null,null,null,null,"","","","","",null,"",null,null,null,"",null,null,null,null,"","","",null,null,null,null,null,null,null,null,null,null,null,null,null,null,null,null,null,null,null,null,null,null,"","","","",null,null,null,null,"","",""]
["",null,null,null,null,null,"","","","","",null,"",null,null,null,"",null,null,null,null,"","","",null,null,null,null,null,null,null,null,null,null,null,null,null,null,null,null,null,null,null,null,null,null,"","","","",null,null,null,null,"","",""]
["",null,null,null,null,null,"","","","","",null,"",null,null,null,"",null,null,null,null,"","","",null,null,null,null,null,null,null,null,null,null,null,null,null,null,null,null,null,null,null,null,null,null,"","","","",null,null,null,null,"","",""]
["",null,null,null,null,null,"","","","","",null,"",null,null,null,"",null,null,null,null,"","","",null,null,null,null,null,null,null,null,null,null,null,null,null,null,null,null,null,null,null,null,null,null,"","","","",null,null,null,null,"","",""]
["",null,null,null,null,null,"","","",{"$f":"IF(E1032=\"\",\"\",DATE(I1032,H1032,G1032))","v":""},"",null,{"$f":"IF(E1032=\"\",\"\",IF(ISODD(MID(E1032,13,1)),\"ذكر\",\"أنثى\"))","v":""},null,null,null,"",null,null,null,null,"","","",null,null,null,null,null,null,null,null,null,null,null,null,null,null,null,null,null,null,null,null,null,null,"","","","",null,null,null,null,"","",""]
[{"$f":"IF(F1033=\"\",\"\",A1032+1)","v":""},null,null,null,null,null,{"$f":"RIGHT(LEFT(E1033,7),2)","v":""},{"$f":"RIGHT(LEFT(E1033,5),2)","v":""},{"$f":"IF(E1033=\"\",\"\",IF(ISODD(MID(E1033,1,1)),MID(E1033,2,2)+2000,MID(E1033,2,2)+1900))","v":""},"",{"$f":"IF(J1033=\"\",\"\",$K$4+J1033-1)","v":""},null,"",null,null,null,{"$f":"IF(F1033=\"\",\"\",\"الغربية\")","v":""},null,null,null,null,{"$f":"IF(U1033=\"\",\"\",DATEDIF(U1033,$V$3,\"md\"))","v":""},{"$f":"IF(U1033=\"\",\"\",DATEDIF(U1033,$V$3,\"ym\"))","v":""},{"$f":"IF(U1033=\"\",\"\",DATEDIF(U1033,$V$3,\"y\"))","v":""},null,null,null,null,null,null,null,null,null,null,null,null,null,null,null,null,null,null,null,null,null,null,{"$f":"IF(U1033=\"\",\"\",DATEDIF(U1033,$AU$3,\"md\"))","v":""},{"$f":"IF(U1033=\"\",\"\",DATEDIF(U1033,$AU$3,\"ym\"))","v":""},{"$f":"IF(U1033=\"\",\"\",DATEDIF(U1033,$AU$3,\"y\"))","v":""},"",null,null,null,null,{"$f":"IF(A1033=\"\",\"\",A1033)","v":""},{"$f":"IF(D1033=\"\",\"\",D1033)","v":""},{"$f":"IF(F1033=\"\",\"\",F1033)","v":""}]
["",null,null,null,null,null,"","","","","",null,"",null,null,null,"",null,null,null,null,"","","",null,null,null,null,null,null,null,null,null,null,null,null,null,null,null,null,null,null,null,null,null,null,"","","",{"$f":"IF(J1034=\"\",\"\",$AX$3+J1034-1)","v":""},null,null,null,null,"","",""]
["",null,null,null,null,null,"","","","","",null,"",null,null,null,"",null,null,null,null,"","","",null,null,null,null,null,null,null,null,null,null,null,null,null,null,null,null,null,null,null,null,null,null,"","","","",null,null,null,null,"","",""]
["",null,null,null,null,null,"","","","","",null,"",null,null,null,"",null,null,null,null,"","","",null,null,null,null,null,null,null,null,null,null,null,null,null,null,null,null,null,null,null,null,null,null,"","","","",null,null,null,null,"","",""]
["",null,null,null,null,null,"","","","","",null,"",null,null,null,"",null,null,null,null,"","","",null,null,null,null,null,null,null,null,null,null,null,null,null,null,null,null,null,null,null,null,null,null,"","","","",null,null,null,null,"","",""]
["",null,null,null,null,null,"","","","","",null,"",null,null,null,"",null,null,null,null,"","","",null,null,null,null,null,null,null,null,null,null,null,null,null,null,null,null,null,null,null,null,null,null,"","","","",null,null,null,null,"","",""]
["",null,null,null,null,null,"","","","","",null,"",null,null,null,"",null,null,null,null,"","","",null,null,null,null,null,null,null,null,null,null,null,null,null,null,null,null,null,null,null,null,null,null,"","","","",null,null,null,null,"","",""]
["",null,null,null,null,null,"","","","","",null,"",null,null,null,"",null,null,null,null,"","","",null,null,null,null,null,null,null,null,null,null,null,null,null,null,null,null,null,null,null,null,null,null,"","","","",null,null,null,null,"","",""]
["",null,null,null,null,null,"","","","","",null,"",null,null,null,"",null,null,null,null,"","","",null,null,null,null,null,null,null,null,null,null,null,null,null,null,null,null,null,null,null,null,null,null,"","","","",null,null,null,null,"","",""]
["",null,null,null,null,null,"","","","","",null,"",null,null,null,"",null,null,null,null,"","","",null,null,null,null,null,null,null,null,null,null,null,null,null,null,null,null,null,null,null,null,null,null,"","","","",null,null,null,null,"","",""]
["",null,null,null,null,null,"","","","","",null,"",null,null,null,"",null,null,null,null,"","","",null,null,null,null,null,null,null,null,null,null,null,null,null,null,null,null,null,null,null,null,null,null,"","","","",null,null,null,null,"","",""]
["",null,null,null,null,null,"","","","","",null,"",null,null,null,"",null,null,null,null,"","","",null,null,null,null,null,null,null,null,null,null,null,null,null,null,null,null,null,null,null,null,null,null,"","","","",null,null,null,null,"","",""]
["",null,null,null,null,null,"","","","","",null,"",null,null,null,"",null,null,null,null,"","","",null,null,null,null,null,null,null,null,null,null,null,null,null,null,null,null,null,null,null,null,null,null,"","","","",null,null,null,null,"","",""]
["",null,null,null,null,null,"","","","","",null,"",null,null,null,"",null,null,null,null,"","","",null,null,null,null,null,null,null,null,null,null,null,null,null,null,null,null,null,null,null,null,null,null,"","","","",null,null,null,null,"","",""]
["",null,null,null,null,null,"","","","","",null,"",null,null,null,"",null,null,null,null,"","","",null,null,null,null,null,null,null,null,null,null,null,null,null,null,null,null,null,null,null,null,null,null,"","","","",null,null,null,null,"","",""]
["",null,null,null,null,null,"","","","","",null,"",null,null,null,"",null,null,null,null,"","","",null,null,null,null,null,null,null,null,null,null,null,null,null,null,null,null,null,null,null,null,null,null,"","","","",null,null,null,null,"","",""]
["",null,null,null,null,null,"","","","","",null,"",null,null,null,"",null,null,null,null,"","","",null,null,null,null,null,null,null,null,null,null,null,null,null,null,null,null,null,null,null,null,null,null,"","","","",null,null,null,null,"","",""]
["",null,null,null,null,null,"","","","","",null,"",null,null,null,"",null,null,null,null,"","","",null,null,null,null,null,null,null,null,null,null,null,null,null,null,null,null,null,null,null,null,null,null,"","","","",null,null,null,null,"","",""]
["",null,null,null,null,null,"","","","","",null,"",null,null,null,"",null,null,null,null,"","","",null,null,null,null,null,null,null,null,null,null,null,null,null,null,null,null,null,null,null,null,null,null,"","","","",null,null,null,null,"","",""]
["",null,null,null,null,null,"","","","","",null,"",null,null,null,"",null,null,null,null,"","","",null,null,null,null,null,null,null,null,null,null,null,null,null,null,null,null,null,null,null,null,null,null,"","","","",null,null,null,null,"","",""]
["",null,null,null,null,null,"","","","","",null,"",null,null,null,"",null,null,null,null,"","","",null,null,null,null,null,null,null,null,null,null,null,null,null,null,null,null,null,null,null,null,null,null,"","","","",null,null,null,null,"","",""]
["",null,null,null,null,null,"","","","","",null,"",null,null,null,"",null,null,null,null,"","","",null,null,null,null,null,null,null,null,null,null,null,null,null,null,null,null,null,null,null,null,null,null,"","","","",null,null,null,null,"","",""]
["",null,null,null,null,null,"","","","","",null,"",null,null,null,"",null,null,null,null,"","","",null,null,null,null,null,null,null,null,null,null,null,null,null,null,null,null,null,null,null,null,null,null,"","","","",null,null,null,null,"","",""]
["",null,null,null,null,null,"","","","","",null,"",null,null,null,"",null,null,null,null,"","","",null,null,null,null,null,null,null,null,null,null,null,null,null,null,null,null,null,null,null,null,null,null,"","","","",null,null,null,null,"","",""]
["",null,null,null,null,null,"","","","","",null,"",null,null,null,"",null,null,null,null,"","","",null,null,null,null,null,null,null,null,null,null,null,null,null,null,null,null,null,null,null,null,null,null,"","","","",null,null,null,null,"","",""]
["",null,null,null,null,null,"","","","","",null,"",null,null,null,"",null,null,null,null,"","","",null,null,null,null,null,null,null,null,null,null,null,null,null,null,null,null,null,null,null,null,null,null,"","","","",null,null,null,null,"","",""]
["",null,null,null,null,null,"","","","","",null,"",null,null,null,"",null,null,null,null,"","","",null,null,null,null,null,null,null,null,null,null,null,null,null,null,null,null,null,null,null,null,null,null,"","","","",null,null,null,null,"","",""]
["",null,null,null,null,null,"","","","","",null,"",null,null,null,"",null,null,null,null,"","","",null,null,null,null,null,null,null,null,null,null,null,null,null,null,null,null,null,null,null,null,null,null,"","","","",null,null,null,null,"","",""]
["",null,null,null,null,null,"","","","","",null,"",null,null,null,"",null,null,null,null,"","","",null,null,null,null,null,null,null,null,null,null,null,null,null,null,null,null,null,null,null,null,null,null,"","","","",null,null,null,null,"","",""]
["",null,null,null,null,null,"","","","","",null,"",null,null,null,"",null,null,null,null,"","","",null,null,null,null,null,null,null,null,null,null,null,null,null,null,null,null,null,null,null,null,null,null,"","","","",null,null,null,null,"","",""]
["",null,null,null,null,null,"","","","","",null,"",null,null,null,"",null,null,null,null,"","","",null,null,null,null,null,null,null,null,null,null,null,null,null,null,null,null,null,null,null,null,null,null,"","","","",null,null,null,null,"","",""]
["",null,null,null,null,null,"","","","","",null,"",null,null,null,"",null,null,null,null,"","","",null,null,null,null,null,null,null,null,null,null,null,null,null,null,null,null,null,null,null,null,null,null,"","","","",null,null,null,null,"","",""]
["",null,null,null,null,null,"","","","","",null,"",null,null,null,"",null,null,null,null,"","","",null,null,null,null,null,null,null,null,null,null,null,null,null,null,null,null,null,null,null,null,null,null,"","","","",null,null,null,null,"","",""]
["",null,null,null,null,null,"","","","","",null,"",null,null,null,"",null,null,null,null,"","","",null,null,null,null,null,null,null,null,null,null,null,null,null,null,null,null,null,null,null,null,null,null,"","","","",null,null,null,null,"","",""]
["",null,null,null,null,null,"","","","","",null,"",null,null,null,"",null,null,null,null,"","","",null,null,null,null,null,null,null,null,null,null,null,null,null,null,null,null,null,null,null,null,null,null,"","","","",null,null,null,null,"","",""]
["",null,null,null,null,null,"","","","","",null,"",null,null,null,"",null,null,null,null,"","","",null,null,null,null,null,null,null,null,null,null,null,null,null,null,null,null,null,null,null,null,null,null,"","","","",null,null,null,null,"","",""]
["",null,null,null,null,null,"","","","","",null,"",null,null,null,"",null,null,null,null,"","","",null,null,null,null,null,null,null,null,null,null,null,null,null,null,null,null,null,null,null,null,null,null,"","","","",null,null,null,null,"","",""]
["",null,null,null,null,null,"","","","","",null,"",null,null,null,"",null,null,null,null,"","","",null,null,null,null,null,null,null,null,null,null,null,null,null,null,null,null,null,null,null,null,null,null,"","","","",null,null,null,null,"","",""]
["",null,null,null,null,null,"","","","","",null,"",null,null,null,"",null,null,null,null,"","","",null,null,null,null,null,null,null,null,null,null,null,null,null,null,null,null,null,null,null,null,null,null,"","","","",null,null,null,null,"","",""]
["",null,null,null,null,null,"","","","","",null,"",null,null,null,"",null,null,null,null,"","","",null,null,null,null,null,null,null,null,null,null,null,null,null,null,null,null,null,null,null,null,null,null,"","","","",null,null,null,null,"","",""]
["",null,null,null,null,null,"","","","","",null,"",null,null,null,"",null,null,null,null,"","","",null,null,null,null,null,null,null,null,null,null,null,null,null,null,null,null,null,null,null,null,null,null,"","","","",null,null,null,null,"","",""]
["",null,null,null,null,null,"","","","","",null,"",null,null,null,"",null,null,null,null,"","","",null,null,null,null,null,null,null,null,null,null,null,null,null,null,null,null,null,null,null,null,null,null,"","","","",null,null,null,null,"","",""]
["",null,null,null,null,null,"","","","","",null,"",null,null,null,"",null,null,null,null,"","","",null,null,null,null,null,null,null,null,null,null,null,null,null,null,null,null,null,null,null,null,null,null,"","","","",null,null,null,null,"","",""]
["",null,null,null,null,null,"","","","","",null,"",null,null,null,"",null,null,null,null,"","","",null,null,null,null,null,null,null,null,null,null,null,null,null,null,null,null,null,null,null,null,null,null,"","","","",null,null,null,null,"","",""]
["",null,null,null,null,null,"","","","","",null,"",null,null,null,"",null,null,null,null,"","","",null,null,null,null,null,null,null,null,null,null,null,null,null,null,null,null,null,null,null,null,null,null,"","","","",null,null,null,null,"","",""]
["",null,null,null,null,null,"","","","","",null,"",null,null,null,"",null,null,null,null,"","","",null,null,null,null,null,null,null,null,null,null,null,null,null,null,null,null,null,null,null,null,null,null,"","","","",null,null,null,null,"","",""]
["",null,null,null,null,null,"","","","","",null,"",null,null,null,"",null,null,null,null,"","","",null,null,null,null,null,null,null,null,null,null,null,null,null,null,null,null,null,null,null,null,null,null,"","","","",null,null,null,null,"","",""]
["",null,null,null,null,null,"","","","","",null,"",null,null,null,"",null,null,null,null,"","","",null,null,null,null,null,null,null,null,null,null,null,null,null,null,null,null,null,null,null,null,null,null,"","","","",null,null,null,null,"","",""]
["",null,null,null,null,null,"","","","","",null,"",null,null,null,"",null,null,null,null,"","","",null,null,null,null,null,null,null,null,null,null,null,null,null,null,null,null,null,null,null,null,null,null,"","","","",null,null,null,null,"","",""]
["",null,null,null,null,null,"","","","","",null,"",null,null,null,"",null,null,null,null,"","","",null,null,null,null,null,null,null,null,null,null,null,null,null,null,null,null,null,null,null,null,null,null,"","","","",null,null,null,null,"","",""]
["",null,null,null,null,null,"","","","","",null,"",null,null,null,"",null,null,null,null,"","","",null,null,null,null,null,null,null,null,null,null,null,null,null,null,null,null,null,null,null,null,null,null,"","","","",null,null,null,null,"","",""]
["",null,null,null,null,null,"","","","","",null,"",null,null,null,"",null,null,null,null,"","","",null,null,null,null,null,null,null,null,null,null,null,null,null,null,null,null,null,null,null,null,null,null,"","","","",null,null,null,null,"","",""]
["",null,null,null,null,null,"","","","","",null,"",null,null,null,"",null,null,null,null,"","","",null,null,null,null,null,null,null,null,null,null,null,null,null,null,null,null,null,null,null,null,null,null,"","","","",null,null,null,null,"","",""]
["",null,null,null,null,null,"","","","","",null,"",null,null,null,"",null,null,null,null,"","","",null,null,null,null,null,null,null,null,null,null,null,null,null,null,null,null,null,null,null,null,null,null,"","","","",null,null,null,null,"","",""]
["",null,null,null,null,null,"","","","","",null,"",null,null,null,"",null,null,null,null,"","","",null,null,null,null,null,null,null,null,null,null,null,null,null,null,null,null,null,null,null,null,null,null,"","","","",null,null,null,null,"","",""]
["",null,null,null,null,null,"","","","","",null,"",null,null,null,"",null,null,null,null,"","","",null,null,null,null,null,null,null,null,null,null,null,null,null,null,null,null,null,null,null,null,null,null,"","","","",null,null,null,null,"","",""]
["",null,null,null,null,null,"","","","","",null,"",null,null,null,"",null,null,null,null,"","","",null,null,null,null,null,null,null,null,null,null,null,null,null,null,null,null,null,null,null,null,null,null,"","","","",null,null,null,null,"","",""]
["",null,null,null,null,null,"","","","","",null,"",null,null,null,"",null,null,null,null,"","","",null,null,null,null,null,null,null,null,null,null,null,null,null,null,null,null,null,null,null,null,null,null,"","","","",null,null,null,null,"","",""]
["",null,null,null,null,null,"","","","","",null,"",null,null,null,"",null,null,null,null,"","","",null,null,null,null,null,null,null,null,null,null,null,null,null,null,null,null,null,null,null,null,null,null,"","","","",null,null,null,null,"","",""]
["",null,null,null,null,null,"","","","","",null,"",null,null,null,"",null,null,null,null,"","","",null,null,null,null,null,null,null,null,null,null,null,null,null,null,null,null,null,null,null,null,null,null,"","","","",null,null,null,null,"","",""]
["",null,null,null,null,null,"","","","","",null,"",null,null,null,"",null,null,null,null,"","","",null,null,null,null,null,null,null,null,null,null,null,null,null,null,null,null,null,null,null,null,null,null,"","","","",null,null,null,null,"","",""]
["",null,null,null,null,null,"","","","","",null,"",null,null,null,"",null,null,null,null,"","","",null,null,null,null,null,null,null,null,null,null,null,null,null,null,null,null,null,null,null,null,null,null,"","","","",null,null,null,null,"","",""]
["",null,null,null,null,null,"","","","","",null,"",null,null,null,"",null,null,null,null,"","","",null,null,null,null,null,null,null,null,null,null,null,null,null,null,null,null,null,null,null,null,null,null,"","","","",null,null,null,null,"","",""]
["",null,null,null,null,null,"","","",{"$f":"IF(E1096=\"\",\"\",DATE(I1096,H1096,G1096))","v":""},"",null,{"$f":"IF(E1096=\"\",\"\",IF(ISODD(MID(E1096,13,1)),\"ذكر\",\"أنثى\"))","v":""},null,null,null,"",null,null,null,null,"","","",null,null,null,null,null,null,null,null,null,null,null,null,null,null,null,null,null,null,null,null,null,null,"","","","",null,null,null,null,"","",""]
[{"$f":"IF(F1097=\"\",\"\",A1096+1)","v":""},null,null,null,null,null,{"$f":"RIGHT(LEFT(E1097,7),2)","v":""},{"$f":"RIGHT(LEFT(E1097,5),2)","v":""},{"$f":"IF(E1097=\"\",\"\",IF(ISODD(MID(E1097,1,1)),MID(E1097,2,2)+2000,MID(E1097,2,2)+1900))","v":""},{"$f":"IF(E1097=\"\",\"\",DATE(I1097,H1097,G1097))","v":""},{"$f":"IF(J1097=\"\",\"\",$K$4+J1097-1)","v":""},null,{"$f":"IF(E1097=\"\",\"\",IF(ISODD(MID(E1097,13,1)),\"ذكر\",\"أنثى\"))","v":""},null,null,null,{"$f":"IF(F1097=\"\",\"\",\"الغربية\")","v":""},null,null,null,null,{"$f":"IF(U1097=\"\",\"\",DATEDIF(U1097,$V$3,\"md\"))","v":""},{"$f":"IF(U1097=\"\",\"\",DATEDIF(U1097,$V$3,\"ym\"))","v":""},{"$f":"IF(U1097=\"\",\"\",DATEDIF(U1097,$V$3,\"y\"))","v":""},null,null,null,null,null,null,null,null,null,null,null,null,null,null,null,null,null,null,null,null,null,null,{"$f":"IF(U1097=\"\",\"\",DATEDIF(U1097,$AU$3,\"md\"))","v":""},{"$f":"IF(U1097=\"\",\"\",DATEDIF(U1097,$AU$3,\"ym\"))","v":""},{"$f":"IF(U1097=\"\",\"\",DATEDIF(U1097,$AU$3,\"y\"))","v":""},"",null,null,null,null,{"$f":"IF(A1097=\"\",\"\",A1097)","v":""},{"$f":"IF(D1097=\"\",\"\",D1097)","v":""},{"$f":"IF(F1097=\"\",\"\",F1097)","v":""}]
[null,null,null,null,null,null,null,null,null,null,null,null,null,null,null,null,null,null,null,null,null,null,null,null,null,null,null,null,null,null,null,null,null,null,null,null,null,null,null,null,null,null,null,null,null,null,null,null,null,null,null,null,null,null,{"$f":"IF(A1098=\"\",\"\",A1098)","v":""},{"$f":"IF(D1098=\"\",\"\",D1098)","v":""},{"$f":"IF(F1098=\"\",\"\",F1098)","v":""}]
[null,null,null,null,null,null,null,null,null,null,null,null,null,null,null,null,null,null,null,null,null,null,null,null,null,null,null,null,null,null,null,null,null,null,null,null,null,null,null,null,null,null,null,null,null,null,null,null,null,null,null,null,null,null,{"$f":"IF(A1099=\"\",\"\",A1099)","v":""},{"$f":"IF(D1099=\"\",\"\",D1099)","v":""},{"$f":"IF(F1099=\"\",\"\",F1099)","v":""}]
[null,null,null,null,null,null,null,null,null,null,null,null,null,null,null,null,null,null,null,null,null,null,null,null,null,null,null,null,null,null,null,null,null,null,null,null,null,null,null,null,null,null,null,null,null,null,null,null,null,null,null,null,null,null,{"$f":"IF(A1100=\"\",\"\",A1100)","v":""},{"$f":"IF(D1100=\"\",\"\",D1100)","v":""},{"$f":"IF(F1100=\"\",\"\",F1100)","v":""}]
[null,null,null,null,null,null,null,null,null,null,null,null,null,null,null,null,null,null,null,null,null,null,null,null,null,null,null,null,null,null,null,null,null,null,null,null,null,null,null,null,null,null,null,null,null,null,null,null,null,null,null,null,null,null,{"$f":"IF(A1101=\"\",\"\",A1101)","v":""},{"$f":"IF(D1101=\"\",\"\",D1101)","v":""},{"$f":"IF(F1101=\"\",\"\",F1101)","v":""}]

{"sheet":"التغذية","index":1,"n_rows":9,"n_cols":44,"rows_kept":9,"cut":false,"hidden":false,"merged":[]}
[]
[]
[]
[]
["التغذية"]
["مسلسل","جهة العمل","المرحلة المقيد عليها","كود المعلم","الرقم القومي","الاسم","تاريخ الميلاد - يوم","تاريخ الميلاد - شهر","تاريخ الميلاد - سنة","تاريخ الميلاد","تاريخ المعاش","محافظة الميلاد","النوع","الديانة","الجنسية","الحالة الاجتماعية","محافظة العنوان","العنوان","رقم الهاتف","المجموعة النوعية","تاريخ التعيين","سنوات الخبرة - يوم","سنوات الخبرة - شهر","سنوات الخبرة - سنة","الموقف من العمل","تاريخ استلام العمل","الوظيفة الحالية","رقم القرار","تاريخ الوظيفة","الدرجة المالية","رقم القرار","تاريخ القرار","مادة التدريس","التخصص على الكادر","نوع المؤهل","اسم المؤهل","جهة الحصول","تقدير المؤهل","تاريخ المؤهل","مؤهلات أعلى - نوع المؤهل","مؤهلات أعلى - اسم المؤهل","مؤهلات أعلى - جهة الحصول","مؤهلات أعلى - تاريخ الحصول","مؤهلات أعلى - تقدير المؤهل"]
[]
[24,"التغذية","ابتدائي",123479,28509181600510,"حاتم 24","18","09",1985,"1985-09-18","2045-09-17","X","ذكر","مسلم","مصري","متزوج + أكثر من 3","الغربية","طنطا - محافظة الغربية","012345678910",21,0,25,"منتدب داخل الوزارة","2001-02-04","معلم خبير","5109","2018-10-18","------","------","------","لغة عربية ودين","معلم لغة عربية ابتدائي","عليا","ليسانس آداب وتربية","جامعة طنطا","جيد جدا","1996-06-03","بدون","بدون","بدون","بدون","بدون"]
[25,"التغذية","------",123480,28509181600510,"حاتم 25","18","09",1985,"1985-09-18","2045-09-17","Y","ذكر","مسلم","مصري","متزوج + 2","الغربية","طنطا - محافظة الغربية","012345678910",3,5,8,"على رأس العمل","2012-08-27","امين معمل - مرافق زراعية رابع","3886","2012-08-09","الثالثة",5038,"2019-10-29","------","------","متوسطة","دبلوم زراعة متوسطة","وزارة التربية والتعليم","------","2009-05-01","------","------","------","------","------"]

{"sheet":"تنسيق التعليم الإعدادي","index":2,"n_rows":9,"n_cols":44,"rows_kept":9,"cut":false,"hidden":false,"merged":[]}
[]
[]
[]
[]
["تنسيق التعليم الإعدادي"]
["مسلسل","جهة العمل","المرحلة المقيد عليها","كود المعلم","الرقم القومي","الاسم","تاريخ الميلاد - يوم","تاريخ الميلاد - شهر","تاريخ الميلاد - سنة","تاريخ الميلاد","تاريخ المعاش","محافظة الميلاد","النوع","الديانة","الجنسية","الحالة الاجتماعية","محافظة العنوان","العنوان","رقم الهاتف","المجموعة النوعية","تاريخ التعيين","سنوات الخبرة - يوم","سنوات الخبرة - شهر","سنوات الخبرة - سنة","الموقف من العمل","تاريخ استلام العمل","الوظيفة الحالية","رقم القرار","تاريخ الوظيفة","الدرجة المالية","رقم القرار","تاريخ القرار","مادة التدريس","التخصص على الكادر","نوع المؤهل","اسم المؤهل","جهة الحصول","تقدير المؤهل","تاريخ المؤهل","مؤهلات أعلى - نوع المؤهل","مؤهلات أعلى - اسم المؤهل","مؤهلات أعلى - جهة الحصول","مؤهلات أعلى - تاريخ الحصول","مؤهلات أعلى - تقدير المؤهل"]
[]
[22,"تنسيق التعليم الإعدادي","إعدادي",123477,28509181600510,"حاتم 22","18","09",1985,"1985-09-18","2045-09-17","V","ذكر","مسلم","مصري","متزوج","الغربية","طنطا - محافظة الغربية","012345678910",24,3,29,"منتدب داخل الوزارة","1992-01-16","معلم خبير","6210","2014-10-20","------","------","------","لغة إنجليزية","معلم لغة إنجليزية إعدادي / ثانوي","عليا","ليسانس آداب وتربية","جامعة طنطا","مقبول","1991-05-01","بدون","بدون","بدون","بدون","بدون"]
[23,"تنسيق التعليم الإعدادي","------",123478,28509181600510,"حاتم 23","18","09",1985,"1985-09-18","2045-09-17","W","ذكر","مسلم","مصري","متزوج + أكثر من 3","الغربية","طنطا - محافظة الغربية","012345678910",19,6,27,"على رأس العمل","1993-07-10","رئيس وحدة","6313","2003-12-08","الأولى","6665","2014-12-11","------","------","فوق المتوسطة","شهادة إعداد فنيين تجاريين","وزارة التعليم العالي","------","1983-06-30","بدون","بدون","بدون","بدون","بدون"]

{"sheet":"مكتب المدير العام","index":3,"n_rows":14,"n_cols":44,"rows_kept":14,"cut":false,"hidden":false,"merged":[]}
[]
[]
[]
[]
["مكتب المدير العام"]
["مسلسل","جهة العمل","المرحلة المقيد عليها","كود المعلم","الرقم القومي","الاسم","تاريخ الميلاد - يوم","تاريخ الميلاد - شهر","تاريخ الميلاد - سنة","تاريخ الميلاد","تاريخ المعاش","محافظة الميلاد","النوع","الديانة","الجنسية","الحالة الاجتماعية","محافظة العنوان","العنوان","رقم الهاتف","المجموعة النوعية","تاريخ التعيين","سنوات الخبرة - يوم","سنوات الخبرة - شهر","سنوات الخبرة - سنة","الموقف من العمل","تاريخ استلام العمل","الوظيفة الحالية","رقم القرار","تاريخ الوظيفة","الدرجة المالية","رقم القرار","تاريخ القرار","مادة التدريس","التخصص على الكادر","نوع المؤهل","اسم المؤهل","جهة الحصول","تقدير المؤهل","تاريخ المؤهل","مؤهلات أعلى - نوع المؤهل","مؤهلات أعلى - اسم المؤهل","مؤهلات أعلى - جهة الحصول","مؤهلات أعلى - تاريخ الحصول","مؤهلات أعلى - تقدير المؤهل"]
[]
[3,"مكتب المدير العام","ابتدائي",123458,28509181600510,"حاتم 3","18","09",1985,"1985-09-18","2045-09-17","C","ذكر","مسلم","مصري","متزوج + 3","الغربية","طنطا - محافظة الغربية","012345678910",5,9,20,"منتدب داخل الوزارة","2005-04-19","معلم أول أ","6210","2014-10-20","ــــــــــ","ــــــــــ","ــــــــــ","اللغة العربية والتربية الاسلامية","مدرس ابتدائي","عليا","ليسانس آداب وتربية","جامعة طنطا","جيد جدا","2002-07-01","بدون","بدون","بدون","بدون","بدون"]
[15,"مكتب المدير العام","------",123470,28509181600510,"حاتم 15","18","09",1985,"1985-09-18","2045-09-17","O","ذكر","مسلم","مصري","أعزب","الغربية","طنطا - محافظة الغربية","012345678910",27,4,5,"على رأس العمل","2017-05-28","كاتب رابع - سكرتير رابع","911","2017-05-17","الرابعة","911","2015-07-28","------","------","متوسطة","ثانوية تجارية","وزارة التربية و التعليم","------","1994-05-01","بدون","بدون","بدون","بدون","بدون"]
[16,"مكتب المدير العام","------",123471,28509181600510,"حاتم 16","18","09",1985,"1985-09-18","2045-09-17","P","ذكر","مسلم","مصري","متزوج","الغربية","طنطا - محافظة الغربية","012345678910",28,3,5,"على رأس العمل","2017-05-28","كاتب رابع - سكرتير رابع","911","2017-05-17","الرابعة","911","2015-08-27","------","------","متوسطة","ثانوية تجارية","وزارة التربية و التعليم","------","1989-05-01","بدون","بدون","بدون","بدون","بدون"]
[17,"مكتب المدير العام","------",123472,28509181600510,"حاتم 17","18","09",1985,"1985-09-18","2045-09-17","Q","ذكر","مسلم","مصري","متزوج","الغربية","طنطا - محافظة الغربية","012345678910",29,8,26,"على رأس العمل","1994-05-15","رئيس وحدة","6468","2005-11-25","الأولى","5646","2016-12-13","------","------","متوسطة","ثانوية تجارية","وزارة التربية والتعليم","------","1983-06-30","بدون","بدون","بدون","بدون","بدون"]
[18,"مكتب المدير العام","------",123473,28509181600510,"حاتم 18","18","09",1985,"1985-09-18","2045-09-17","R","ذكر","مسلم","مصري","متزوج","الغربية","طنطا - محافظة الغربية","012345678910",13,1,26,"على رأس العمل","1995-01-18","رئيس وحدة","213","2005-11-17","الأولى","5646","2016-07-01","------","------","متوسطة","ثانوية تجارية","وزارة التربية و التعليم","------","1983-09-01","بدون","بدون","بدون","بدون","بدون"]
[19,"مكتب المدير العام","------",123474,28509181600510,"حاتم 19","18","09",1985,"1985-09-18","2045-09-17","S","ذكر","مسلم","مصري","متزوج + 3","الغربية","طنطا - محافظة الغربية","012345678910",13,10,26,"على رأس العمل","1994-02-12","عامل خدمات ","80","1994-01-22","الثالثة","1876","2012-01-16","------","------","أقل من متوسطة","الابتدائية","وزارة التربية والتعليم","------","1983-12-01","بدون","بدون","بدون","بدون","بدون"]
[20,"مكتب المدير العام","------",123475,28509181600510,"حاتم 20","18","09",1985,"1985-09-18","2045-09-17","T","ذكر","مسلم","مصري","متزوج + 2","الغربية","طنطا - محافظة الغربية","012345678910",9,3,27,"على رأس العمل","1993-10-16","عامل خدمات","4336","1993-09-26","الثالثة","5487","2010-09-21","------","------","محو أمية","محو أمية","هيئة محو الأمية","------","1982-07-03","بدون","بدون","بدون","بدون","بدون"]

{"sheet":"شئون الطلبة والامتحانات","index":4,"n_rows":21,"n_cols":44,"rows_kept":21,"cut":false,"hidden":false,"merged":[]}
[]
[]
[]
[]
["شئون الطلبة والامتحانات"]
["مسلسل","جهة العمل","المرحلة المقيد عليها","كود المعلم","الرقم القومي","الاسم","تاريخ الميلاد - يوم","تاريخ الميلاد - شهر","تاريخ الميلاد - سنة","تاريخ الميلاد","تاريخ المعاش","محافظة الميلاد","النوع","الديانة","الجنسية","الحالة الاجتماعية","محافظة العنوان","العنوان","رقم الهاتف","المجموعة النوعية","تاريخ التعيين","سنوات الخبرة - يوم","سنوات الخبرة - شهر","سنوات الخبرة - سنة","الموقف من العمل","تاريخ استلام العمل","الوظيفة الحالية","رقم القرار","تاريخ الوظيفة","الدرجة المالية","رقم القرار","تاريخ القرار","مادة التدريس","التخصص على الكادر","نوع المؤهل","اسم المؤهل","جهة الحصول","تقدير المؤهل","تاريخ المؤهل","مؤهلات أعلى - نوع المؤهل","مؤهلات أعلى - اسم المؤهل","مؤهلات أعلى - جهة الحصول","مؤهلات أعلى - تاريخ الحصول","مؤهلات أعلى - تقدير المؤهل"]
[]
[1,"شئون الطلبة والامتحانات","ابتدائي",123456,28509181600510,"حاتم 1","18","09",1985,"1985-09-18","2045-09-17","A","ذكر","مسلم","مصري","متزوج + 3","الغربية","طنطا - محافظة الغربية","012345678910",27,11,23,"منتدب داخل الوزارة",null,"معلم خبير","5109","2018-10-18","-----","ــــــــــ","ــــــــــ","اللغة العربية","معلم فصل ابتدائي","عليا","بكالوريوس تربية","جامعة طنطا","مقبول",null,"بدون","بدون","بدون","بدون","بدون"]
[2,"شئون الطلبة والامتحانات","ابتدائي",123457,28509181600510,"حاتم 2","18","09",1985,"1985-09-18","2045-09-17","B","ذكر","مسلم","مصري","متزوج + 3","الغربية","طنطا - محافظة الغربية","012345678910",22,5,23,"منتدب داخل الوزارة","2002-02-07","معلم خبير","5109","2018-10-18","ــــــــــ","ــــــــــ","ــــــــــ","حاسب آلي متفرغ","معلم الحاسب الآلي","عليا","بكالوريوس تربية","جامعة طنطا","مقبول","2000-11-01","بدون","بدون","بدون","بدون","بدون"]
[4,"شئون الطلبة والامتحانات","ثانوي عام",123459,28509181600510,"حاتم 4","18","09",1985,"1985-09-18","2045-09-17","D","ذكر","مسلم","مصري","متزوج + 3","الغربية","طنطا - محافظة الغربية","012345678910",24,0,36,"منتدب داخل الوزارة","1985-03-23","رئيس وحدة","6311","2003-12-08","الأولى","6665","2014-10-01","ــــــــــ","ــــــــــ","متوسطة","ثانوية تجارية","وزارة التربية والتعليم","ـــــ","1980-05-01","بدون","بدون","بدون","بدون","بدون"]
[5,"شئون الطلبة والامتحانات","ـــــ",123460,28509181600510,"حاتم 5","18","09",1985,"1985-09-18","2045-09-17","E","ذكر","مسلم","مصري","متزوج ","الغربية","طنطا - محافظة الغربية","012345678910",29,8,26,"على رأس العمل","1994-06-06","رئيس وحدة","6313","2003-12-08","الأولى","5646","2014-12-01","ــــــــــ","ــــــــــ","فوق المتوسطة","شهادة إعداد فنيين تجاريين","وزارة التعليم العالي","ـــــ","1983-09-01","بدون","بدون","بدون","بدون","بدون"]
[6,"شئون الطلبة والامتحانات","ـــــ",123461,28509181600510,"حاتم 6","18","09",1985,"1985-09-18","2045-09-17","F","ذكر","مسلم","مصري","متزوج ","الغربية","طنطا - محافظة الغربية","012345678910",13,1,26,"على رأس العمل","1995-02-11","رئيس وحدة","6486","2005-11-17","الأولى","5646","2016-07-01","ــــــــــ","ــــــــــ","متوسطة","ثانوية تجارية","وزارة التربية والتعليم","ـــــ","1983-06-15","بدون","بدون","بدون","بدون","بدون"]
[7,"شئون الطلبة والامتحانات","ـــــ",123462,28509181600510,"حاتم 7","18","09",1985,"1985-09-18","2045-09-17","G","ذكر","مسلم","مصري","متزوج + 3","الغربية","طنطا - محافظة الغربية","012345678910",25,5,31,"على رأس العمل","1991-06-06","رئيس وحدة","121","2004-03-14","الأولى",6665,"2014-10-01","ــــــــــ","ــــــــــ","متوسطة","ثانوية تجارية","وزارة التربية والتعليم","ـــــ","1982-01-07","بدون","بدون","بدون","بدون","بدون"]
[8,"شئون الطلبة والامتحانات","ـــــ",123463,28509181600510,"حاتم 8","18","09",1985,"1985-09-18","2045-09-17","H","ذكر","مسلم","مصري","أرمل","الغربية","طنطا - محافظة الغربية","012345678910",13,1,26,"على رأس العمل","1994-12-05","رئيس وحدة","6486","2005-11-12","الأولى","5646","2016-07-01","ــــــــــ","ــــــــــ","متوسطة","ثانوية تجارية","وزارة التربية والتعليم","ـــــ","1983-07-01","بدون","بدون","بدون","بدون","بدون"]
[9,"شئون الطلبة والامتحانات","ـــــ",123464,28509181600510,"حاتم 9","18","09",1985,"1985-09-18","2045-09-17","I","ذكر","مسلم","مصري","متزوج","الغربية","طنطا - محافظة الغربية","012345678910",29,8,26,"على رأس العمل","1994-04-16","رئيس وحدة","6486","2005-11-17","الأولى","5646","2016-07-01","ــــــــــ","ــــــــــ","متوسطة","ثانوية تجارية","وزارة التربية والتعليم","ـــــ","1983-06-01","بدون","بدون","بدون","بدون","بدون"]
[10,"شئون الطلبة والامتحانات","---------",123465,28509181600510,"حاتم 10","18","09",1985,"1985-09-18","2045-09-17","J","ذكر","مسلم","مصري","متزوج","الغربية","طنطا - محافظة الغربية","012345678910",25,10,7,"على رأس العمل","2013-08-14","كاتب رابع - سكرتير رابع","2391","2013-07-28","الرابعة","2391","2013-01-30","------","-------","متوسطة","دبلوم صناعة ثانوي","وزارة التربية والتعليم","-----","1995-05-01","بدون","بدون","بدون","بدون","بدون"]
[11,"شئون الطلبة والامتحانات","------",123466,28509181600510,"حاتم 11","18","09",1985,"1985-09-18","2045-09-17","K","ذكر","مسلم","مصري","متزوج","الغربية","طنطا - محافظة الغربية","012345678910",13,1,26,"على رأس العمل","1994-12-03","رئيس وحدة","6486","2005-11-12","الأولى","5646","2011-07-01","------","------","متوسطة","ثانوية تجارية","وزارة التربية والتعليم","------","1983-07-01","بدون","بدون","بدون","بدون","بدون"]
[12,"شئون الطلبة والامتحانات","ـــــ",123467,28509181600510,"حاتم 12","18","09",1985,"1985-09-18","2045-09-17","L","ذكر","مسلم","مصري","متزوج","الغربية","طنطا - محافظة الغربية","012345678910",28,3,5,"منتدب داخل الوزارة","2017-07-11","فني رابع","911","2017-05-17","الرابعة","911","2015-08-27","ــــــــــ","ــــــــــ","متوسطة","دبلوم صناعة ثانوي","وزارة التربية والتعليم",null,"1995-05-01","بدون","بدون","بدون","بدون","بدون"]
[13,"شئون الطلبة والامتحانات","ـــــ",123468,28509181600510,"حاتم 13","18","09",1985,"1985-09-18","2045-09-17","M","ذكر","مسلم","مصري","متزوج + 2","الغربية","طنطا - محافظة الغربية","012345678910",24,3,32,"منتدب داخل الوزارة","1988-09-21","معلم أول أ","6210","2014-10-20","ــــــــــ","ــــــــــ","ــــــــــ","مدرس فصل","معلم لغة عربية ابتدائي","فوق المتوسطة","دبلوم المعلمين و المعلمات","وزارة التربية والتعليم","------","1988-05-01","بدون","بدون","بدون","بدون","بدون"]
[14,"شئون الطلبة والامتحانات","ـــــ",123469,28509181600510,"حاتم 14","18","09",1985,"1985-09-18","2045-09-17","N","ذكر","مسلم","مصري","متزوج + 1","الغربية","طنطا - محافظة الغربية","012345678910",24,7,33,"على رأس العمل","1987-10-01","رئيس وحدة","6313","2003-12-08","الأولى","6665","2014-07-01","ــــــــــ","ــــــــــ","متوسطة","ثانوية تجارية","وزارة التربية والتعليم","------","1981-06-01","بدون","بدون","بدون","بدون","بدون"]
[21,"شئون الطلبة والامتحانات","------",123476,28509181600510,"حاتم 21","18","09",1985,"1985-09-18","2045-09-17","U","ذكر","مسلم","مصري","متزوج","الغربية","طنطا - محافظة الغربية","012345678910",25,10,7,"على رأس العمل","2013-08-28","كاتب رابع - سكرتير رابع","2391","2013-07-28","الرابعة","2391","2013-01-30","------","------","متوسطة","دبلوم صناعة ثانوي","وزارة التربية والتعليم","------","1993-05-01","بدون","بدون","بدون","بدون","بدون"]